Payment Date,Transaction Number,Net Amount,Supplier (Beneficiary) Name,Local Supplier Internal Reference,Directorate / Service Where Expenditure Incurred,Service Category Label,Service Category URI,SeRCOP Expenditure Category,SeRCOP Expenditure Code,Purpose of Spend,SeRCOP Detailed Expenditure Code,Capital/Revenue,Procurement Classification
29-JUN-2021,7011601,991.18,RINGTONS LTD (387786),387786,Commissioning & Asset Management,Children's & Education Services,103,Supplies and Services,504,Equipment,5023,Revenue,CATERING.FOOD & BEVERAGES
29-JUN-2021,7011602,11,NEWCASTLE CITY COUNCIL,014331,"Health, Education, Care and Safeguarding",Children's & Education Services,103,Supplies and Services,504,Miscellaneous Expenses,5034,Revenue,NON INFLUENCIBLE.PUBLIC SECTOR
29-JUN-2021,7011602,35,NEWCASTLE CITY COUNCIL,014331,"Health, Education, Care and Safeguarding",Children's & Education Services,103,Supplies and Services,504,Miscellaneous Expenses,5034,Revenue,NON INFLUENCIBLE.PUBLIC SECTOR
29-JUN-2021,7011602,70,NEWCASTLE CITY COUNCIL,014331,"Health, Education, Care and Safeguarding",Children's & Education Services,103,Supplies and Services,504,Expenses,5030,Revenue,NON INFLUENCIBLE.PUBLIC SECTOR
29-JUN-2021,7011603,9.46,GREGGS PLC,340206,"Health, Education, Care and Safeguarding",Children's & Education Services,103,Third Party Payments,505,Other Establishments,5041,Revenue,CATERING.FOOD & BEVERAGES
29-JUN-2021,7011604,271.37,NAUTICALIA LTD,330092,"Environment, Housing & Leisure",Cultural & Related Services,104,Supplies and Services,504,Equipment,5023,Revenue,EDUCATIONAL SUPPLIES.SUPPLIES
29-JUN-2021,7011605,57.99,NHBS LTD,319916,Housing Property and Construction,Housing Services,108,Supplies and Services,504,Miscellaneous Expenses,5034,Revenue,ENVIRONMENTAL SERVICES.EQUIPMENT
29-JUN-2021,7011606,72.77,GAFFERTAPE.COM,386734,"Environment, Housing & Leisure",Cultural & Related Services,104,Supplies and Services,504,Equipment,5023,Revenue,BUILDING MATERIALS.GENERAL MATERIALS
29-JUN-2021,7011607,175.83,SP GEORDIE GIFTS,397545,"Environment, Housing & Leisure",Cultural & Related Services,104,Supplies and Services,504,Equipment,5023,Revenue,
29-JUN-2021,7011608,0.01,CHIRTON MAIN SERVICE,397459,"Environment, Housing & Leisure",Cultural & Related Services,104,Transport,503,Direct Transport Costs,5016,Revenue,BUILDING MATERIALS.GENERAL MATERIALS
29-JUN-2021,7011608,19.45,CHIRTON MAIN SERVICE,397459,"Environment, Housing & Leisure",Cultural & Related Services,104,Transport,503,Direct Transport Costs,5016,Revenue,BUILDING MATERIALS.GENERAL MATERIALS
29-JUN-2021,7011608,37.92,CHIRTON MAIN SERVICE,397459,"Environment, Housing & Leisure",Cultural & Related Services,104,Supplies and Services,504,Equipment,5023,Revenue,BUILDING MATERIALS.GENERAL MATERIALS
29-JUN-2021,7011608,40.54,CHIRTON MAIN SERVICE,397459,"Environment, Housing & Leisure",Cultural & Related Services,104,Transport,503,Direct Transport Costs,5016,Revenue,BUILDING MATERIALS.GENERAL MATERIALS
29-JUN-2021,7011608,56.82,CHIRTON MAIN SERVICE,397459,"Environment, Housing & Leisure",Cultural & Related Services,104,Transport,503,Direct Transport Costs,5016,Revenue,BUILDING MATERIALS.GENERAL MATERIALS
29-JUN-2021,7011608,58.55,CHIRTON MAIN SERVICE,397459,"Environment, Housing & Leisure",Cultural & Related Services,104,Transport,503,Direct Transport Costs,5016,Revenue,BUILDING MATERIALS.GENERAL MATERIALS
29-JUN-2021,7011609,132.5,SUMUP DREAMING BEDS,397228,"Health, Education, Care and Safeguarding",Children's & Education Services,103,Supplies and Services,504,Equipment,5023,Revenue,FURNITURE.DOMESTIC
29-JUN-2021,7011610,42.47,AWS EMEA,397215,Resources,Central Services,102,Supplies and Services,504,"Printing, Stationery and General Office Expenses",5026,Revenue,ADVERTISING & MARKETING.EVENTS & PROMOTIONS
29-JUN-2021,7011611,20.83,GIFFGAFF,397090,"Health, Education, Care and Safeguarding",Children's & Education Services,103,Supplies and Services,504,Miscellaneous Expenses,5034,Revenue,TELECOMMUNICATIONS.MOBILE
29-JUN-2021,7011612,14.57,GITHUB.COM,396988,Resources,Central Services,102,Supplies and Services,504,"Printing, Stationery and General Office Expenses",5026,Revenue,ICT.SOFTWARE
29-JUN-2021,7011613,-15.14,BUNZL UK LTD T/A BUNZL CLEANING & HYGIENE SUPPLIES,027747,Commissioning & Asset Management,Children's & Education Services,103,Supplies and Services,504,Equipment,5023,Revenue,CLEANING & JANITORIAL.CLEANING MATERIALS
29-JUN-2021,7011613,-9,BUNZL UK LTD T/A BUNZL CLEANING & HYGIENE SUPPLIES,027747,Commissioning & Asset Management,Children's & Education Services,103,Supplies and Services,504,Equipment,5023,Revenue,CLEANING & JANITORIAL.CLEANING MATERIALS
29-JUN-2021,7011613,-7.56,BUNZL UK LTD T/A BUNZL CLEANING & HYGIENE SUPPLIES,027747,Commissioning & Asset Management,Children's & Education Services,103,Supplies and Services,504,Equipment,5023,Revenue,CLEANING & JANITORIAL.CLEANING MATERIALS
29-JUN-2021,7011613,-4.77,BUNZL UK LTD T/A BUNZL CLEANING & HYGIENE SUPPLIES,027747,Commissioning & Asset Management,Children's & Education Services,103,Supplies and Services,504,Equipment,5023,Revenue,CLEANING & JANITORIAL.CLEANING MATERIALS
29-JUN-2021,7011613,0.7,BUNZL UK LTD T/A BUNZL CLEANING & HYGIENE SUPPLIES,027747,Commissioning & Asset Management,Children's & Education Services,103,Supplies and Services,504,Equipment,5023,Revenue,CLEANING & JANITORIAL.CLEANING MATERIALS
29-JUN-2021,7011613,0.78,BUNZL UK LTD T/A BUNZL CLEANING & HYGIENE SUPPLIES,027747,Commissioning & Asset Management,Children's & Education Services,103,Supplies and Services,504,Equipment,5023,Revenue,CLEANING & JANITORIAL.CLEANING MATERIALS
29-JUN-2021,7011613,0.78,BUNZL UK LTD T/A BUNZL CLEANING & HYGIENE SUPPLIES,027747,Commissioning & Asset Management,Children's & Education Services,103,Supplies and Services,504,Equipment,5023,Revenue,CLEANING & JANITORIAL.CLEANING MATERIALS
29-JUN-2021,7011613,0.87,BUNZL UK LTD T/A BUNZL CLEANING & HYGIENE SUPPLIES,027747,Commissioning & Asset Management,Children's & Education Services,103,Supplies and Services,504,Equipment,5023,Revenue,CLEANING & JANITORIAL.CLEANING MATERIALS
29-JUN-2021,7011613,1.05,BUNZL UK LTD T/A BUNZL CLEANING & HYGIENE SUPPLIES,027747,Commissioning & Asset Management,Children's & Education Services,103,Supplies and Services,504,Equipment,5023,Revenue,CLEANING & JANITORIAL.CLEANING MATERIALS
29-JUN-2021,7011613,1.05,BUNZL UK LTD T/A BUNZL CLEANING & HYGIENE SUPPLIES,027747,Commissioning & Asset Management,Children's & Education Services,103,Supplies and Services,504,Equipment,5023,Revenue,CLEANING & JANITORIAL.CLEANING MATERIALS
29-JUN-2021,7011613,1.17,BUNZL UK LTD T/A BUNZL CLEANING & HYGIENE SUPPLIES,027747,Commissioning & Asset Management,Children's & Education Services,103,Supplies and Services,504,Equipment,5023,Revenue,CLEANING & JANITORIAL.CLEANING MATERIALS
29-JUN-2021,7011613,1.18,BUNZL UK LTD T/A BUNZL CLEANING & HYGIENE SUPPLIES,027747,Commissioning & Asset Management,Children's & Education Services,103,Supplies and Services,504,Equipment,5023,Revenue,CLEANING & JANITORIAL.CLEANING MATERIALS
29-JUN-2021,7011613,1.18,BUNZL UK LTD T/A BUNZL CLEANING & HYGIENE SUPPLIES,027747,Commissioning & Asset Management,Children's & Education Services,103,Supplies and Services,504,Equipment,5023,Revenue,CLEANING & JANITORIAL.CLEANING MATERIALS
29-JUN-2021,7011613,1.18,BUNZL UK LTD T/A BUNZL CLEANING & HYGIENE SUPPLIES,027747,Commissioning & Asset Management,Children's & Education Services,103,Supplies and Services,504,Equipment,5023,Revenue,CLEANING & JANITORIAL.CLEANING MATERIALS
29-JUN-2021,7011613,1.18,BUNZL UK LTD T/A BUNZL CLEANING & HYGIENE SUPPLIES,027747,Commissioning & Asset Management,Children's & Education Services,103,Supplies and Services,504,Equipment,5023,Revenue,CLEANING & JANITORIAL.CLEANING MATERIALS
29-JUN-2021,7011613,1.18,BUNZL UK LTD T/A BUNZL CLEANING & HYGIENE SUPPLIES,027747,Commissioning & Asset Management,Children's & Education Services,103,Supplies and Services,504,Equipment,5023,Revenue,CLEANING & JANITORIAL.CLEANING MATERIALS
29-JUN-2021,7011613,1.18,BUNZL UK LTD T/A BUNZL CLEANING & HYGIENE SUPPLIES,027747,Commissioning & Asset Management,Children's & Education Services,103,Supplies and Services,504,Equipment,5023,Revenue,CLEANING & JANITORIAL.CLEANING MATERIALS
29-JUN-2021,7011613,1.18,BUNZL UK LTD T/A BUNZL CLEANING & HYGIENE SUPPLIES,027747,Commissioning & Asset Management,Children's & Education Services,103,Supplies and Services,504,Equipment,5023,Revenue,CLEANING & JANITORIAL.CLEANING MATERIALS
29-JUN-2021,7011613,1.18,BUNZL UK LTD T/A BUNZL CLEANING & HYGIENE SUPPLIES,027747,Commissioning & Asset Management,Children's & Education Services,103,Supplies and Services,504,Equipment,5023,Revenue,CLEANING & JANITORIAL.CLEANING MATERIALS
29-JUN-2021,7011613,1.18,BUNZL UK LTD T/A BUNZL CLEANING & HYGIENE SUPPLIES,027747,Commissioning & Asset Management,Children's & Education Services,103,Supplies and Services,504,Equipment,5023,Revenue,CLEANING & JANITORIAL.CLEANING MATERIALS
29-JUN-2021,7011613,1.18,BUNZL UK LTD T/A BUNZL CLEANING & HYGIENE SUPPLIES,027747,Commissioning & Asset Management,Children's & Education Services,103,Supplies and Services,504,Equipment,5023,Revenue,CLEANING & JANITORIAL.CLEANING MATERIALS
29-JUN-2021,7011613,1.18,BUNZL UK LTD T/A BUNZL CLEANING & HYGIENE SUPPLIES,027747,Commissioning & Asset Management,Children's & Education Services,103,Supplies and Services,504,Equipment,5023,Revenue,CLEANING & JANITORIAL.CLEANING MATERIALS
29-JUN-2021,7011613,1.18,BUNZL UK LTD T/A BUNZL CLEANING & HYGIENE SUPPLIES,027747,Commissioning & Asset Management,Children's & Education Services,103,Supplies and Services,504,Equipment,5023,Revenue,CLEANING & JANITORIAL.CLEANING MATERIALS
29-JUN-2021,7011613,1.18,BUNZL UK LTD T/A BUNZL CLEANING & HYGIENE SUPPLIES,027747,Commissioning & Asset Management,Children's & Education Services,103,Supplies and Services,504,Equipment,5023,Revenue,CLEANING & JANITORIAL.CLEANING MATERIALS
29-JUN-2021,7011613,1.19,BUNZL UK LTD T/A BUNZL CLEANING & HYGIENE SUPPLIES,027747,Commissioning & Asset Management,Children's & Education Services,103,Supplies and Services,504,Equipment,5023,Revenue,CLEANING & JANITORIAL.CLEANING MATERIALS
29-JUN-2021,7011613,1.19,BUNZL UK LTD T/A BUNZL CLEANING & HYGIENE SUPPLIES,027747,Commissioning & Asset Management,Children's & Education Services,103,Supplies and Services,504,Equipment,5023,Revenue,CLEANING & JANITORIAL.CLEANING MATERIALS
29-JUN-2021,7011613,1.19,BUNZL UK LTD T/A BUNZL CLEANING & HYGIENE SUPPLIES,027747,Commissioning & Asset Management,Children's & Education Services,103,Supplies and Services,504,Equipment,5023,Revenue,CLEANING & JANITORIAL.CLEANING MATERIALS
29-JUN-2021,7011613,1.25,BUNZL UK LTD T/A BUNZL CLEANING & HYGIENE SUPPLIES,027747,Commissioning & Asset Management,Children's & Education Services,103,Supplies and Services,504,Equipment,5023,Revenue,CLEANING & JANITORIAL.CLEANING MATERIALS
29-JUN-2021,7011613,1.25,BUNZL UK LTD T/A BUNZL CLEANING & HYGIENE SUPPLIES,027747,Commissioning & Asset Management,Children's & Education Services,103,Supplies and Services,504,Equipment,5023,Revenue,CLEANING & JANITORIAL.CLEANING MATERIALS
29-JUN-2021,7011613,1.25,BUNZL UK LTD T/A BUNZL CLEANING & HYGIENE SUPPLIES,027747,Commissioning & Asset Management,Children's & Education Services,103,Supplies and Services,504,Equipment,5023,Revenue,CLEANING & JANITORIAL.CLEANING MATERIALS
29-JUN-2021,7011613,1.4,BUNZL UK LTD T/A BUNZL CLEANING & HYGIENE SUPPLIES,027747,Commissioning & Asset Management,Children's & Education Services,103,Supplies and Services,504,Equipment,5023,Revenue,CLEANING & JANITORIAL.CLEANING MATERIALS
29-JUN-2021,7011613,1.4,BUNZL UK LTD T/A BUNZL CLEANING & HYGIENE SUPPLIES,027747,Commissioning & Asset Management,Children's & Education Services,103,Supplies and Services,504,Equipment,5023,Revenue,CLEANING & JANITORIAL.CLEANING MATERIALS
29-JUN-2021,7011613,1.49,BUNZL UK LTD T/A BUNZL CLEANING & HYGIENE SUPPLIES,027747,Commissioning & Asset Management,Children's & Education Services,103,Supplies and Services,504,Equipment,5023,Revenue,CLEANING & JANITORIAL.CLEANING MATERIALS
29-JUN-2021,7011613,1.49,BUNZL UK LTD T/A BUNZL CLEANING & HYGIENE SUPPLIES,027747,Commissioning & Asset Management,Children's & Education Services,103,Supplies and Services,504,Equipment,5023,Revenue,CLEANING & JANITORIAL.CLEANING MATERIALS
29-JUN-2021,7011613,1.5,BUNZL UK LTD T/A BUNZL CLEANING & HYGIENE SUPPLIES,027747,Commissioning & Asset Management,Children's & Education Services,103,Supplies and Services,504,Equipment,5023,Revenue,CLEANING & JANITORIAL.CLEANING MATERIALS
29-JUN-2021,7011613,1.51,BUNZL UK LTD T/A BUNZL CLEANING & HYGIENE SUPPLIES,027747,Commissioning & Asset Management,Children's & Education Services,103,Supplies and Services,504,Equipment,5023,Revenue,CLEANING & JANITORIAL.CLEANING MATERIALS
29-JUN-2021,7011613,1.75,BUNZL UK LTD T/A BUNZL CLEANING & HYGIENE SUPPLIES,027747,Commissioning & Asset Management,Children's & Education Services,103,Supplies and Services,504,Equipment,5023,Revenue,CLEANING & JANITORIAL.CLEANING MATERIALS
29-JUN-2021,7011613,1.95,BUNZL UK LTD T/A BUNZL CLEANING & HYGIENE SUPPLIES,027747,Commissioning & Asset Management,Children's & Education Services,103,Supplies and Services,504,Equipment,5023,Revenue,CLEANING & JANITORIAL.CLEANING MATERIALS
29-JUN-2021,7011613,1.95,BUNZL UK LTD T/A BUNZL CLEANING & HYGIENE SUPPLIES,027747,Commissioning & Asset Management,Children's & Education Services,103,Supplies and Services,504,Equipment,5023,Revenue,CLEANING & JANITORIAL.CLEANING MATERIALS
29-JUN-2021,7011613,1.95,BUNZL UK LTD T/A BUNZL CLEANING & HYGIENE SUPPLIES,027747,Commissioning & Asset Management,Children's & Education Services,103,Supplies and Services,504,Equipment,5023,Revenue,CLEANING & JANITORIAL.CLEANING MATERIALS
29-JUN-2021,7011613,1.95,BUNZL UK LTD T/A BUNZL CLEANING & HYGIENE SUPPLIES,027747,Commissioning & Asset Management,Children's & Education Services,103,Supplies and Services,504,Equipment,5023,Revenue,CLEANING & JANITORIAL.CLEANING MATERIALS
29-JUN-2021,7011613,2.1,BUNZL UK LTD T/A BUNZL CLEANING & HYGIENE SUPPLIES,027747,Commissioning & Asset Management,Children's & Education Services,103,Supplies and Services,504,Equipment,5023,Revenue,CLEANING & JANITORIAL.CLEANING MATERIALS
29-JUN-2021,7011613,2.1,BUNZL UK LTD T/A BUNZL CLEANING & HYGIENE SUPPLIES,027747,Commissioning & Asset Management,Children's & Education Services,103,Supplies and Services,504,Equipment,5023,Revenue,CLEANING & JANITORIAL.CLEANING MATERIALS
29-JUN-2021,7011613,2.1,BUNZL UK LTD T/A BUNZL CLEANING & HYGIENE SUPPLIES,027747,Commissioning & Asset Management,Children's & Education Services,103,Supplies and Services,504,Equipment,5023,Revenue,CLEANING & JANITORIAL.CLEANING MATERIALS
29-JUN-2021,7011613,2.1,BUNZL UK LTD T/A BUNZL CLEANING & HYGIENE SUPPLIES,027747,Commissioning & Asset Management,Children's & Education Services,103,Supplies and Services,504,Equipment,5023,Revenue,CLEANING & JANITORIAL.CLEANING MATERIALS
29-JUN-2021,7011613,2.1,BUNZL UK LTD T/A BUNZL CLEANING & HYGIENE SUPPLIES,027747,Commissioning & Asset Management,Children's & Education Services,103,Supplies and Services,504,Equipment,5023,Revenue,CLEANING & JANITORIAL.CLEANING MATERIALS
29-JUN-2021,7011613,2.1,BUNZL UK LTD T/A BUNZL CLEANING & HYGIENE SUPPLIES,027747,Commissioning & Asset Management,Children's & Education Services,103,Supplies and Services,504,Equipment,5023,Revenue,CLEANING & JANITORIAL.CLEANING MATERIALS
29-JUN-2021,7011613,2.1,BUNZL UK LTD T/A BUNZL CLEANING & HYGIENE SUPPLIES,027747,Commissioning & Asset Management,Children's & Education Services,103,Supplies and Services,504,Equipment,5023,Revenue,CLEANING & JANITORIAL.CLEANING MATERIALS
29-JUN-2021,7011613,2.1,BUNZL UK LTD T/A BUNZL CLEANING & HYGIENE SUPPLIES,027747,Commissioning & Asset Management,Children's & Education Services,103,Supplies and Services,504,Equipment,5023,Revenue,CLEANING & JANITORIAL.CLEANING MATERIALS
29-JUN-2021,7011613,2.36,BUNZL UK LTD T/A BUNZL CLEANING & HYGIENE SUPPLIES,027747,Commissioning & Asset Management,Children's & Education Services,103,Supplies and Services,504,Equipment,5023,Revenue,CLEANING & JANITORIAL.CLEANING MATERIALS
29-JUN-2021,7011613,2.36,BUNZL UK LTD T/A BUNZL CLEANING & HYGIENE SUPPLIES,027747,Commissioning & Asset Management,Children's & Education Services,103,Supplies and Services,504,Equipment,5023,Revenue,CLEANING & JANITORIAL.CLEANING MATERIALS
29-JUN-2021,7011613,2.36,BUNZL UK LTD T/A BUNZL CLEANING & HYGIENE SUPPLIES,027747,Commissioning & Asset Management,Children's & Education Services,103,Supplies and Services,504,Equipment,5023,Revenue,CLEANING & JANITORIAL.CLEANING MATERIALS
29-JUN-2021,7011613,2.36,BUNZL UK LTD T/A BUNZL CLEANING & HYGIENE SUPPLIES,027747,Commissioning & Asset Management,Children's & Education Services,103,Supplies and Services,504,Equipment,5023,Revenue,CLEANING & JANITORIAL.CLEANING MATERIALS
29-JUN-2021,7011613,2.36,BUNZL UK LTD T/A BUNZL CLEANING & HYGIENE SUPPLIES,027747,Commissioning & Asset Management,Children's & Education Services,103,Supplies and Services,504,Equipment,5023,Revenue,CLEANING & JANITORIAL.CLEANING MATERIALS
29-JUN-2021,7011613,2.36,BUNZL UK LTD T/A BUNZL CLEANING & HYGIENE SUPPLIES,027747,Commissioning & Asset Management,Children's & Education Services,103,Supplies and Services,504,Equipment,5023,Revenue,CLEANING & JANITORIAL.CLEANING MATERIALS
29-JUN-2021,7011613,2.36,BUNZL UK LTD T/A BUNZL CLEANING & HYGIENE SUPPLIES,027747,Commissioning & Asset Management,Children's & Education Services,103,Supplies and Services,504,Equipment,5023,Revenue,CLEANING & JANITORIAL.CLEANING MATERIALS
29-JUN-2021,7011613,2.36,BUNZL UK LTD T/A BUNZL CLEANING & HYGIENE SUPPLIES,027747,Commissioning & Asset Management,Children's & Education Services,103,Supplies and Services,504,Equipment,5023,Revenue,CLEANING & JANITORIAL.CLEANING MATERIALS
29-JUN-2021,7011613,2.38,BUNZL UK LTD T/A BUNZL CLEANING & HYGIENE SUPPLIES,027747,Commissioning & Asset Management,Children's & Education Services,103,Supplies and Services,504,Equipment,5023,Revenue,CLEANING & JANITORIAL.CLEANING MATERIALS
29-JUN-2021,7011613,2.49,BUNZL UK LTD T/A BUNZL CLEANING & HYGIENE SUPPLIES,027747,Commissioning & Asset Management,Children's & Education Services,103,Supplies and Services,504,Equipment,5023,Revenue,CLEANING & JANITORIAL.CLEANING MATERIALS
29-JUN-2021,7011613,2.49,BUNZL UK LTD T/A BUNZL CLEANING & HYGIENE SUPPLIES,027747,Commissioning & Asset Management,Children's & Education Services,103,Supplies and Services,504,Equipment,5023,Revenue,CLEANING & JANITORIAL.CLEANING MATERIALS
29-JUN-2021,7011613,2.49,BUNZL UK LTD T/A BUNZL CLEANING & HYGIENE SUPPLIES,027747,Commissioning & Asset Management,Children's & Education Services,103,Supplies and Services,504,Equipment,5023,Revenue,CLEANING & JANITORIAL.CLEANING MATERIALS
29-JUN-2021,7011613,2.49,BUNZL UK LTD T/A BUNZL CLEANING & HYGIENE SUPPLIES,027747,Commissioning & Asset Management,Children's & Education Services,103,Supplies and Services,504,Equipment,5023,Revenue,CLEANING & JANITORIAL.CLEANING MATERIALS
29-JUN-2021,7011613,2.66,BUNZL UK LTD T/A BUNZL CLEANING & HYGIENE SUPPLIES,027747,Commissioning & Asset Management,Children's & Education Services,103,Supplies and Services,504,Equipment,5023,Revenue,CLEANING & JANITORIAL.CLEANING MATERIALS
29-JUN-2021,7011613,2.74,BUNZL UK LTD T/A BUNZL CLEANING & HYGIENE SUPPLIES,027747,Commissioning & Asset Management,Children's & Education Services,103,Supplies and Services,504,Equipment,5023,Revenue,CLEANING & JANITORIAL.CLEANING MATERIALS
29-JUN-2021,7011613,2.8,BUNZL UK LTD T/A BUNZL CLEANING & HYGIENE SUPPLIES,027747,Commissioning & Asset Management,Children's & Education Services,103,Supplies and Services,504,Equipment,5023,Revenue,CLEANING & JANITORIAL.CLEANING MATERIALS
29-JUN-2021,7011613,3.02,BUNZL UK LTD T/A BUNZL CLEANING & HYGIENE SUPPLIES,027747,Commissioning & Asset Management,Children's & Education Services,103,Supplies and Services,504,Equipment,5023,Revenue,CLEANING & JANITORIAL.CLEANING MATERIALS
29-JUN-2021,7011613,3.4,BUNZL UK LTD T/A BUNZL CLEANING & HYGIENE SUPPLIES,027747,Commissioning & Asset Management,Children's & Education Services,103,Supplies and Services,504,Equipment,5023,Revenue,CLEANING & JANITORIAL.CLEANING MATERIALS
29-JUN-2021,7011613,3.4,BUNZL UK LTD T/A BUNZL CLEANING & HYGIENE SUPPLIES,027747,Commissioning & Asset Management,Children's & Education Services,103,Supplies and Services,504,Equipment,5023,Revenue,CLEANING & JANITORIAL.CLEANING MATERIALS
29-JUN-2021,7011613,3.4,BUNZL UK LTD T/A BUNZL CLEANING & HYGIENE SUPPLIES,027747,Commissioning & Asset Management,Children's & Education Services,103,Supplies and Services,504,Equipment,5023,Revenue,CLEANING & JANITORIAL.CLEANING MATERIALS
29-JUN-2021,7011613,3.4,BUNZL UK LTD T/A BUNZL CLEANING & HYGIENE SUPPLIES,027747,Commissioning & Asset Management,Children's & Education Services,103,Supplies and Services,504,Equipment,5023,Revenue,CLEANING & JANITORIAL.CLEANING MATERIALS
29-JUN-2021,7011613,3.4,BUNZL UK LTD T/A BUNZL CLEANING & HYGIENE SUPPLIES,027747,Commissioning & Asset Management,Children's & Education Services,103,Supplies and Services,504,Equipment,5023,Revenue,CLEANING & JANITORIAL.CLEANING MATERIALS
29-JUN-2021,7011613,3.4,BUNZL UK LTD T/A BUNZL CLEANING & HYGIENE SUPPLIES,027747,Commissioning & Asset Management,Children's & Education Services,103,Supplies and Services,504,Equipment,5023,Revenue,CLEANING & JANITORIAL.CLEANING MATERIALS
29-JUN-2021,7011613,3.5,BUNZL UK LTD T/A BUNZL CLEANING & HYGIENE SUPPLIES,027747,Commissioning & Asset Management,Children's & Education Services,103,Supplies and Services,504,Equipment,5023,Revenue,CLEANING & JANITORIAL.CLEANING MATERIALS
29-JUN-2021,7011613,3.5,BUNZL UK LTD T/A BUNZL CLEANING & HYGIENE SUPPLIES,027747,Commissioning & Asset Management,Children's & Education Services,103,Supplies and Services,504,Equipment,5023,Revenue,CLEANING & JANITORIAL.CLEANING MATERIALS
29-JUN-2021,7011613,3.5,BUNZL UK LTD T/A BUNZL CLEANING & HYGIENE SUPPLIES,027747,Commissioning & Asset Management,Children's & Education Services,103,Supplies and Services,504,Equipment,5023,Revenue,CLEANING & JANITORIAL.CLEANING MATERIALS
29-JUN-2021,7011613,3.54,BUNZL UK LTD T/A BUNZL CLEANING & HYGIENE SUPPLIES,027747,Commissioning & Asset Management,Children's & Education Services,103,Supplies and Services,504,Equipment,5023,Revenue,CLEANING & JANITORIAL.CLEANING MATERIALS
29-JUN-2021,7011613,3.54,BUNZL UK LTD T/A BUNZL CLEANING & HYGIENE SUPPLIES,027747,Commissioning & Asset Management,Children's & Education Services,103,Supplies and Services,504,Equipment,5023,Revenue,CLEANING & JANITORIAL.CLEANING MATERIALS
29-JUN-2021,7011613,3.75,BUNZL UK LTD T/A BUNZL CLEANING & HYGIENE SUPPLIES,027747,Commissioning & Asset Management,Children's & Education Services,103,Supplies and Services,504,Equipment,5023,Revenue,CLEANING & JANITORIAL.CLEANING MATERIALS
29-JUN-2021,7011613,3.78,BUNZL UK LTD T/A BUNZL CLEANING & HYGIENE SUPPLIES,027747,Commissioning & Asset Management,Children's & Education Services,103,Supplies and Services,504,Equipment,5023,Revenue,CLEANING & JANITORIAL.CLEANING MATERIALS
29-JUN-2021,7011613,3.78,BUNZL UK LTD T/A BUNZL CLEANING & HYGIENE SUPPLIES,027747,Commissioning & Asset Management,Children's & Education Services,103,Supplies and Services,504,Equipment,5023,Revenue,CLEANING & JANITORIAL.CLEANING MATERIALS
29-JUN-2021,7011613,3.78,BUNZL UK LTD T/A BUNZL CLEANING & HYGIENE SUPPLIES,027747,Commissioning & Asset Management,Children's & Education Services,103,Supplies and Services,504,Equipment,5023,Revenue,CLEANING & JANITORIAL.CLEANING MATERIALS
29-JUN-2021,7011613,3.78,BUNZL UK LTD T/A BUNZL CLEANING & HYGIENE SUPPLIES,027747,Commissioning & Asset Management,Children's & Education Services,103,Supplies and Services,504,Equipment,5023,Revenue,CLEANING & JANITORIAL.CLEANING MATERIALS
29-JUN-2021,7011613,3.78,BUNZL UK LTD T/A BUNZL CLEANING & HYGIENE SUPPLIES,027747,Commissioning & Asset Management,Children's & Education Services,103,Supplies and Services,504,Equipment,5023,Revenue,CLEANING & JANITORIAL.CLEANING MATERIALS
29-JUN-2021,7011613,3.78,BUNZL UK LTD T/A BUNZL CLEANING & HYGIENE SUPPLIES,027747,Commissioning & Asset Management,Children's & Education Services,103,Supplies and Services,504,Equipment,5023,Revenue,CLEANING & JANITORIAL.CLEANING MATERIALS
29-JUN-2021,7011613,3.78,BUNZL UK LTD T/A BUNZL CLEANING & HYGIENE SUPPLIES,027747,Commissioning & Asset Management,Children's & Education Services,103,Supplies and Services,504,Equipment,5023,Revenue,CLEANING & JANITORIAL.CLEANING MATERIALS
29-JUN-2021,7011613,3.78,BUNZL UK LTD T/A BUNZL CLEANING & HYGIENE SUPPLIES,027747,Commissioning & Asset Management,Children's & Education Services,103,Supplies and Services,504,Equipment,5023,Revenue,CLEANING & JANITORIAL.CLEANING MATERIALS
29-JUN-2021,7011613,3.78,BUNZL UK LTD T/A BUNZL CLEANING & HYGIENE SUPPLIES,027747,Commissioning & Asset Management,Children's & Education Services,103,Supplies and Services,504,Equipment,5023,Revenue,CLEANING & JANITORIAL.CLEANING MATERIALS
29-JUN-2021,7011613,3.78,BUNZL UK LTD T/A BUNZL CLEANING & HYGIENE SUPPLIES,027747,Commissioning & Asset Management,Children's & Education Services,103,Supplies and Services,504,Equipment,5023,Revenue,CLEANING & JANITORIAL.CLEANING MATERIALS
29-JUN-2021,7011613,3.78,BUNZL UK LTD T/A BUNZL CLEANING & HYGIENE SUPPLIES,027747,Commissioning & Asset Management,Children's & Education Services,103,Supplies and Services,504,Equipment,5023,Revenue,CLEANING & JANITORIAL.CLEANING MATERIALS
29-JUN-2021,7011613,3.78,BUNZL UK LTD T/A BUNZL CLEANING & HYGIENE SUPPLIES,027747,Commissioning & Asset Management,Children's & Education Services,103,Supplies and Services,504,Equipment,5023,Revenue,CLEANING & JANITORIAL.CLEANING MATERIALS
29-JUN-2021,7011613,3.9,BUNZL UK LTD T/A BUNZL CLEANING & HYGIENE SUPPLIES,027747,Commissioning & Asset Management,Children's & Education Services,103,Supplies and Services,504,Equipment,5023,Revenue,CLEANING & JANITORIAL.CLEANING MATERIALS
29-JUN-2021,7011613,3.9,BUNZL UK LTD T/A BUNZL CLEANING & HYGIENE SUPPLIES,027747,Commissioning & Asset Management,Children's & Education Services,103,Supplies and Services,504,Equipment,5023,Revenue,CLEANING & JANITORIAL.CLEANING MATERIALS
29-JUN-2021,7011613,3.9,BUNZL UK LTD T/A BUNZL CLEANING & HYGIENE SUPPLIES,027747,Commissioning & Asset Management,Children's & Education Services,103,Supplies and Services,504,Equipment,5023,Revenue,CLEANING & JANITORIAL.CLEANING MATERIALS
29-JUN-2021,7011613,3.9,BUNZL UK LTD T/A BUNZL CLEANING & HYGIENE SUPPLIES,027747,Commissioning & Asset Management,Children's & Education Services,103,Supplies and Services,504,Equipment,5023,Revenue,CLEANING & JANITORIAL.CLEANING MATERIALS
29-JUN-2021,7011613,3.9,BUNZL UK LTD T/A BUNZL CLEANING & HYGIENE SUPPLIES,027747,Commissioning & Asset Management,Children's & Education Services,103,Supplies and Services,504,Equipment,5023,Revenue,CLEANING & JANITORIAL.CLEANING MATERIALS
29-JUN-2021,7011613,3.9,BUNZL UK LTD T/A BUNZL CLEANING & HYGIENE SUPPLIES,027747,Commissioning & Asset Management,Children's & Education Services,103,Supplies and Services,504,Equipment,5023,Revenue,CLEANING & JANITORIAL.CLEANING MATERIALS
29-JUN-2021,7011613,3.9,BUNZL UK LTD T/A BUNZL CLEANING & HYGIENE SUPPLIES,027747,Commissioning & Asset Management,Children's & Education Services,103,Supplies and Services,504,Equipment,5023,Revenue,CLEANING & JANITORIAL.CLEANING MATERIALS
29-JUN-2021,7011613,3.9,BUNZL UK LTD T/A BUNZL CLEANING & HYGIENE SUPPLIES,027747,Commissioning & Asset Management,Children's & Education Services,103,Supplies and Services,504,Equipment,5023,Revenue,CLEANING & JANITORIAL.CLEANING MATERIALS
29-JUN-2021,7011613,3.94,BUNZL UK LTD T/A BUNZL CLEANING & HYGIENE SUPPLIES,027747,Commissioning & Asset Management,Children's & Education Services,103,Supplies and Services,504,Equipment,5023,Revenue,CLEANING & JANITORIAL.CLEANING MATERIALS
29-JUN-2021,7011613,3.94,BUNZL UK LTD T/A BUNZL CLEANING & HYGIENE SUPPLIES,027747,Commissioning & Asset Management,Children's & Education Services,103,Supplies and Services,504,Equipment,5023,Revenue,CLEANING & JANITORIAL.CLEANING MATERIALS
29-JUN-2021,7011613,3.94,BUNZL UK LTD T/A BUNZL CLEANING & HYGIENE SUPPLIES,027747,Commissioning & Asset Management,Children's & Education Services,103,Supplies and Services,504,Equipment,5023,Revenue,CLEANING & JANITORIAL.CLEANING MATERIALS
29-JUN-2021,7011613,3.94,BUNZL UK LTD T/A BUNZL CLEANING & HYGIENE SUPPLIES,027747,Commissioning & Asset Management,Children's & Education Services,103,Supplies and Services,504,Equipment,5023,Revenue,CLEANING & JANITORIAL.CLEANING MATERIALS
29-JUN-2021,7011613,3.94,BUNZL UK LTD T/A BUNZL CLEANING & HYGIENE SUPPLIES,027747,Commissioning & Asset Management,Children's & Education Services,103,Supplies and Services,504,Equipment,5023,Revenue,CLEANING & JANITORIAL.CLEANING MATERIALS
29-JUN-2021,7011613,3.94,BUNZL UK LTD T/A BUNZL CLEANING & HYGIENE SUPPLIES,027747,Commissioning & Asset Management,Children's & Education Services,103,Supplies and Services,504,Equipment,5023,Revenue,CLEANING & JANITORIAL.CLEANING MATERIALS
29-JUN-2021,7011613,3.94,BUNZL UK LTD T/A BUNZL CLEANING & HYGIENE SUPPLIES,027747,Commissioning & Asset Management,Children's & Education Services,103,Supplies and Services,504,Equipment,5023,Revenue,CLEANING & JANITORIAL.CLEANING MATERIALS
29-JUN-2021,7011613,3.94,BUNZL UK LTD T/A BUNZL CLEANING & HYGIENE SUPPLIES,027747,Commissioning & Asset Management,Children's & Education Services,103,Supplies and Services,504,Equipment,5023,Revenue,CLEANING & JANITORIAL.CLEANING MATERIALS
29-JUN-2021,7011613,3.94,BUNZL UK LTD T/A BUNZL CLEANING & HYGIENE SUPPLIES,027747,Commissioning & Asset Management,Children's & Education Services,103,Supplies and Services,504,Equipment,5023,Revenue,CLEANING & JANITORIAL.CLEANING MATERIALS
29-JUN-2021,7011613,3.95,BUNZL UK LTD T/A BUNZL CLEANING & HYGIENE SUPPLIES,027747,Commissioning & Asset Management,Children's & Education Services,103,Supplies and Services,504,Equipment,5023,Revenue,CLEANING & JANITORIAL.CLEANING MATERIALS
29-JUN-2021,7011613,3.95,BUNZL UK LTD T/A BUNZL CLEANING & HYGIENE SUPPLIES,027747,Commissioning & Asset Management,Children's & Education Services,103,Supplies and Services,504,Equipment,5023,Revenue,CLEANING & JANITORIAL.CLEANING MATERIALS
29-JUN-2021,7011613,3.95,BUNZL UK LTD T/A BUNZL CLEANING & HYGIENE SUPPLIES,027747,Commissioning & Asset Management,Children's & Education Services,103,Supplies and Services,504,Equipment,5023,Revenue,CLEANING & JANITORIAL.CLEANING MATERIALS
29-JUN-2021,7011613,3.95,BUNZL UK LTD T/A BUNZL CLEANING & HYGIENE SUPPLIES,027747,Commissioning & Asset Management,Children's & Education Services,103,Supplies and Services,504,Equipment,5023,Revenue,CLEANING & JANITORIAL.CLEANING MATERIALS
29-JUN-2021,7011613,3.95,BUNZL UK LTD T/A BUNZL CLEANING & HYGIENE SUPPLIES,027747,Commissioning & Asset Management,Children's & Education Services,103,Supplies and Services,504,Equipment,5023,Revenue,CLEANING & JANITORIAL.CLEANING MATERIALS
29-JUN-2021,7011613,3.95,BUNZL UK LTD T/A BUNZL CLEANING & HYGIENE SUPPLIES,027747,Commissioning & Asset Management,Children's & Education Services,103,Supplies and Services,504,Equipment,5023,Revenue,CLEANING & JANITORIAL.CLEANING MATERIALS
29-JUN-2021,7011613,3.95,BUNZL UK LTD T/A BUNZL CLEANING & HYGIENE SUPPLIES,027747,Commissioning & Asset Management,Children's & Education Services,103,Supplies and Services,504,Equipment,5023,Revenue,CLEANING & JANITORIAL.CLEANING MATERIALS
29-JUN-2021,7011613,3.95,BUNZL UK LTD T/A BUNZL CLEANING & HYGIENE SUPPLIES,027747,Commissioning & Asset Management,Children's & Education Services,103,Supplies and Services,504,Equipment,5023,Revenue,CLEANING & JANITORIAL.CLEANING MATERIALS
29-JUN-2021,7011613,3.95,BUNZL UK LTD T/A BUNZL CLEANING & HYGIENE SUPPLIES,027747,Commissioning & Asset Management,Children's & Education Services,103,Supplies and Services,504,Equipment,5023,Revenue,CLEANING & JANITORIAL.CLEANING MATERIALS
29-JUN-2021,7011613,3.95,BUNZL UK LTD T/A BUNZL CLEANING & HYGIENE SUPPLIES,027747,Commissioning & Asset Management,Children's & Education Services,103,Supplies and Services,504,Equipment,5023,Revenue,CLEANING & JANITORIAL.CLEANING MATERIALS
29-JUN-2021,7011613,3.95,BUNZL UK LTD T/A BUNZL CLEANING & HYGIENE SUPPLIES,027747,Commissioning & Asset Management,Children's & Education Services,103,Supplies and Services,504,Equipment,5023,Revenue,CLEANING & JANITORIAL.CLEANING MATERIALS
29-JUN-2021,7011613,3.95,BUNZL UK LTD T/A BUNZL CLEANING & HYGIENE SUPPLIES,027747,Commissioning & Asset Management,Children's & Education Services,103,Supplies and Services,504,Equipment,5023,Revenue,CLEANING & JANITORIAL.CLEANING MATERIALS
29-JUN-2021,7011613,3.95,BUNZL UK LTD T/A BUNZL CLEANING & HYGIENE SUPPLIES,027747,Commissioning & Asset Management,Children's & Education Services,103,Supplies and Services,504,Equipment,5023,Revenue,CLEANING & JANITORIAL.CLEANING MATERIALS
29-JUN-2021,7011613,3.95,BUNZL UK LTD T/A BUNZL CLEANING & HYGIENE SUPPLIES,027747,Commissioning & Asset Management,Children's & Education Services,103,Supplies and Services,504,Equipment,5023,Revenue,CLEANING & JANITORIAL.CLEANING MATERIALS
29-JUN-2021,7011613,3.95,BUNZL UK LTD T/A BUNZL CLEANING & HYGIENE SUPPLIES,027747,Commissioning & Asset Management,Children's & Education Services,103,Supplies and Services,504,Equipment,5023,Revenue,CLEANING & JANITORIAL.CLEANING MATERIALS
29-JUN-2021,7011613,3.95,BUNZL UK LTD T/A BUNZL CLEANING & HYGIENE SUPPLIES,027747,Commissioning & Asset Management,Children's & Education Services,103,Supplies and Services,504,Equipment,5023,Revenue,CLEANING & JANITORIAL.CLEANING MATERIALS
29-JUN-2021,7011613,3.95,BUNZL UK LTD T/A BUNZL CLEANING & HYGIENE SUPPLIES,027747,Commissioning & Asset Management,Children's & Education Services,103,Supplies and Services,504,Equipment,5023,Revenue,CLEANING & JANITORIAL.CLEANING MATERIALS
29-JUN-2021,7011613,3.95,BUNZL UK LTD T/A BUNZL CLEANING & HYGIENE SUPPLIES,027747,Commissioning & Asset Management,Children's & Education Services,103,Supplies and Services,504,Equipment,5023,Revenue,CLEANING & JANITORIAL.CLEANING MATERIALS
29-JUN-2021,7011613,3.95,BUNZL UK LTD T/A BUNZL CLEANING & HYGIENE SUPPLIES,027747,Commissioning & Asset Management,Children's & Education Services,103,Supplies and Services,504,Equipment,5023,Revenue,CLEANING & JANITORIAL.CLEANING MATERIALS
29-JUN-2021,7011613,3.95,BUNZL UK LTD T/A BUNZL CLEANING & HYGIENE SUPPLIES,027747,Commissioning & Asset Management,Children's & Education Services,103,Supplies and Services,504,Equipment,5023,Revenue,CLEANING & JANITORIAL.CLEANING MATERIALS
29-JUN-2021,7011613,4.2,BUNZL UK LTD T/A BUNZL CLEANING & HYGIENE SUPPLIES,027747,Commissioning & Asset Management,Children's & Education Services,103,Supplies and Services,504,Equipment,5023,Revenue,CLEANING & JANITORIAL.CLEANING MATERIALS
29-JUN-2021,7011613,4.2,BUNZL UK LTD T/A BUNZL CLEANING & HYGIENE SUPPLIES,027747,Commissioning & Asset Management,Children's & Education Services,103,Supplies and Services,504,Equipment,5023,Revenue,CLEANING & JANITORIAL.CLEANING MATERIALS
29-JUN-2021,7011613,4.2,BUNZL UK LTD T/A BUNZL CLEANING & HYGIENE SUPPLIES,027747,Commissioning & Asset Management,Children's & Education Services,103,Supplies and Services,504,Equipment,5023,Revenue,CLEANING & JANITORIAL.CLEANING MATERIALS
29-JUN-2021,7011613,4.2,BUNZL UK LTD T/A BUNZL CLEANING & HYGIENE SUPPLIES,027747,Commissioning & Asset Management,Children's & Education Services,103,Supplies and Services,504,Equipment,5023,Revenue,CLEANING & JANITORIAL.CLEANING MATERIALS
29-JUN-2021,7011613,4.2,BUNZL UK LTD T/A BUNZL CLEANING & HYGIENE SUPPLIES,027747,Commissioning & Asset Management,Children's & Education Services,103,Supplies and Services,504,Equipment,5023,Revenue,CLEANING & JANITORIAL.CLEANING MATERIALS
29-JUN-2021,7011613,4.2,BUNZL UK LTD T/A BUNZL CLEANING & HYGIENE SUPPLIES,027747,Commissioning & Asset Management,Children's & Education Services,103,Supplies and Services,504,Equipment,5023,Revenue,CLEANING & JANITORIAL.CLEANING MATERIALS
29-JUN-2021,7011613,4.2,BUNZL UK LTD T/A BUNZL CLEANING & HYGIENE SUPPLIES,027747,Commissioning & Asset Management,Children's & Education Services,103,Supplies and Services,504,Equipment,5023,Revenue,CLEANING & JANITORIAL.CLEANING MATERIALS
29-JUN-2021,7011613,4.47,BUNZL UK LTD T/A BUNZL CLEANING & HYGIENE SUPPLIES,027747,Commissioning & Asset Management,Children's & Education Services,103,Supplies and Services,504,Equipment,5023,Revenue,CLEANING & JANITORIAL.CLEANING MATERIALS
29-JUN-2021,7011613,4.72,BUNZL UK LTD T/A BUNZL CLEANING & HYGIENE SUPPLIES,027747,Commissioning & Asset Management,Children's & Education Services,103,Supplies and Services,504,Equipment,5023,Revenue,CLEANING & JANITORIAL.CLEANING MATERIALS
29-JUN-2021,7011613,4.76,BUNZL UK LTD T/A BUNZL CLEANING & HYGIENE SUPPLIES,027747,Commissioning & Asset Management,Children's & Education Services,103,Supplies and Services,504,Equipment,5023,Revenue,CLEANING & JANITORIAL.CLEANING MATERIALS
29-JUN-2021,7011613,4.77,BUNZL UK LTD T/A BUNZL CLEANING & HYGIENE SUPPLIES,027747,Commissioning & Asset Management,Children's & Education Services,103,Supplies and Services,504,Equipment,5023,Revenue,CLEANING & JANITORIAL.CLEANING MATERIALS
29-JUN-2021,7011613,4.77,BUNZL UK LTD T/A BUNZL CLEANING & HYGIENE SUPPLIES,027747,Commissioning & Asset Management,Children's & Education Services,103,Supplies and Services,504,Equipment,5023,Revenue,CLEANING & JANITORIAL.CLEANING MATERIALS
29-JUN-2021,7011613,4.77,BUNZL UK LTD T/A BUNZL CLEANING & HYGIENE SUPPLIES,027747,Commissioning & Asset Management,Children's & Education Services,103,Supplies and Services,504,Equipment,5023,Revenue,CLEANING & JANITORIAL.CLEANING MATERIALS
29-JUN-2021,7011613,4.77,BUNZL UK LTD T/A BUNZL CLEANING & HYGIENE SUPPLIES,027747,Commissioning & Asset Management,Children's & Education Services,103,Supplies and Services,504,Equipment,5023,Revenue,CLEANING & JANITORIAL.CLEANING MATERIALS
29-JUN-2021,7011613,4.77,BUNZL UK LTD T/A BUNZL CLEANING & HYGIENE SUPPLIES,027747,Commissioning & Asset Management,Children's & Education Services,103,Supplies and Services,504,Equipment,5023,Revenue,CLEANING & JANITORIAL.CLEANING MATERIALS
29-JUN-2021,7011613,4.77,BUNZL UK LTD T/A BUNZL CLEANING & HYGIENE SUPPLIES,027747,Commissioning & Asset Management,Children's & Education Services,103,Supplies and Services,504,Equipment,5023,Revenue,CLEANING & JANITORIAL.CLEANING MATERIALS
29-JUN-2021,7011613,4.98,BUNZL UK LTD T/A BUNZL CLEANING & HYGIENE SUPPLIES,027747,Commissioning & Asset Management,Children's & Education Services,103,Supplies and Services,504,Equipment,5023,Revenue,CLEANING & JANITORIAL.CLEANING MATERIALS
29-JUN-2021,7011613,4.98,BUNZL UK LTD T/A BUNZL CLEANING & HYGIENE SUPPLIES,027747,Commissioning & Asset Management,Children's & Education Services,103,Supplies and Services,504,Equipment,5023,Revenue,CLEANING & JANITORIAL.CLEANING MATERIALS
29-JUN-2021,7011613,4.98,BUNZL UK LTD T/A BUNZL CLEANING & HYGIENE SUPPLIES,027747,Commissioning & Asset Management,Children's & Education Services,103,Supplies and Services,504,Equipment,5023,Revenue,CLEANING & JANITORIAL.CLEANING MATERIALS
29-JUN-2021,7011613,4.98,BUNZL UK LTD T/A BUNZL CLEANING & HYGIENE SUPPLIES,027747,Commissioning & Asset Management,Children's & Education Services,103,Supplies and Services,504,Equipment,5023,Revenue,CLEANING & JANITORIAL.CLEANING MATERIALS
29-JUN-2021,7011613,4.98,BUNZL UK LTD T/A BUNZL CLEANING & HYGIENE SUPPLIES,027747,Commissioning & Asset Management,Children's & Education Services,103,Supplies and Services,504,Equipment,5023,Revenue,CLEANING & JANITORIAL.CLEANING MATERIALS
29-JUN-2021,7011613,4.98,BUNZL UK LTD T/A BUNZL CLEANING & HYGIENE SUPPLIES,027747,Commissioning & Asset Management,Children's & Education Services,103,Supplies and Services,504,Equipment,5023,Revenue,CLEANING & JANITORIAL.CLEANING MATERIALS
29-JUN-2021,7011613,4.98,BUNZL UK LTD T/A BUNZL CLEANING & HYGIENE SUPPLIES,027747,Commissioning & Asset Management,Children's & Education Services,103,Supplies and Services,504,Equipment,5023,Revenue,CLEANING & JANITORIAL.CLEANING MATERIALS
29-JUN-2021,7011613,5.32,BUNZL UK LTD T/A BUNZL CLEANING & HYGIENE SUPPLIES,027747,Commissioning & Asset Management,Children's & Education Services,103,Supplies and Services,504,Equipment,5023,Revenue,CLEANING & JANITORIAL.CLEANING MATERIALS
29-JUN-2021,7011613,5.58,BUNZL UK LTD T/A BUNZL CLEANING & HYGIENE SUPPLIES,027747,Commissioning & Asset Management,Children's & Education Services,103,Supplies and Services,504,Equipment,5023,Revenue,CLEANING & JANITORIAL.CLEANING MATERIALS
29-JUN-2021,7011613,5.58,BUNZL UK LTD T/A BUNZL CLEANING & HYGIENE SUPPLIES,027747,Commissioning & Asset Management,Children's & Education Services,103,Supplies and Services,504,Equipment,5023,Revenue,CLEANING & JANITORIAL.CLEANING MATERIALS
29-JUN-2021,7011613,5.58,BUNZL UK LTD T/A BUNZL CLEANING & HYGIENE SUPPLIES,027747,Commissioning & Asset Management,Children's & Education Services,103,Supplies and Services,504,Equipment,5023,Revenue,CLEANING & JANITORIAL.CLEANING MATERIALS
29-JUN-2021,7011613,5.58,BUNZL UK LTD T/A BUNZL CLEANING & HYGIENE SUPPLIES,027747,Commissioning & Asset Management,Children's & Education Services,103,Supplies and Services,504,Equipment,5023,Revenue,CLEANING & JANITORIAL.CLEANING MATERIALS
29-JUN-2021,7011613,5.85,BUNZL UK LTD T/A BUNZL CLEANING & HYGIENE SUPPLIES,027747,Commissioning & Asset Management,Children's & Education Services,103,Supplies and Services,504,Equipment,5023,Revenue,CLEANING & JANITORIAL.CLEANING MATERIALS
29-JUN-2021,7011613,5.85,BUNZL UK LTD T/A BUNZL CLEANING & HYGIENE SUPPLIES,027747,Commissioning & Asset Management,Children's & Education Services,103,Supplies and Services,504,Equipment,5023,Revenue,CLEANING & JANITORIAL.CLEANING MATERIALS
29-JUN-2021,7011613,5.96,BUNZL UK LTD T/A BUNZL CLEANING & HYGIENE SUPPLIES,027747,Commissioning & Asset Management,Children's & Education Services,103,Supplies and Services,504,Equipment,5023,Revenue,CLEANING & JANITORIAL.CLEANING MATERIALS
29-JUN-2021,7011613,6.67,BUNZL UK LTD T/A BUNZL CLEANING & HYGIENE SUPPLIES,027747,Commissioning & Asset Management,Children's & Education Services,103,Supplies and Services,504,Equipment,5023,Revenue,CLEANING & JANITORIAL.CLEANING MATERIALS
29-JUN-2021,7011613,6.67,BUNZL UK LTD T/A BUNZL CLEANING & HYGIENE SUPPLIES,027747,Commissioning & Asset Management,Children's & Education Services,103,Supplies and Services,504,Equipment,5023,Revenue,CLEANING & JANITORIAL.CLEANING MATERIALS
29-JUN-2021,7011613,6.8,BUNZL UK LTD T/A BUNZL CLEANING & HYGIENE SUPPLIES,027747,Commissioning & Asset Management,Children's & Education Services,103,Supplies and Services,504,Equipment,5023,Revenue,CLEANING & JANITORIAL.CLEANING MATERIALS
29-JUN-2021,7011613,6.81,BUNZL UK LTD T/A BUNZL CLEANING & HYGIENE SUPPLIES,027747,Commissioning & Asset Management,Children's & Education Services,103,Supplies and Services,504,Equipment,5023,Revenue,CLEANING & JANITORIAL.CLEANING MATERIALS
29-JUN-2021,7011613,6.81,BUNZL UK LTD T/A BUNZL CLEANING & HYGIENE SUPPLIES,027747,Commissioning & Asset Management,Children's & Education Services,103,Supplies and Services,504,Equipment,5023,Revenue,CLEANING & JANITORIAL.CLEANING MATERIALS
29-JUN-2021,7011613,7,BUNZL UK LTD T/A BUNZL CLEANING & HYGIENE SUPPLIES,027747,Commissioning & Asset Management,Children's & Education Services,103,Supplies and Services,504,Equipment,5023,Revenue,CLEANING & JANITORIAL.CLEANING MATERIALS
29-JUN-2021,7011613,7.08,BUNZL UK LTD T/A BUNZL CLEANING & HYGIENE SUPPLIES,027747,Commissioning & Asset Management,Children's & Education Services,103,Supplies and Services,504,Equipment,5023,Revenue,CLEANING & JANITORIAL.CLEANING MATERIALS
29-JUN-2021,7011613,7.18,BUNZL UK LTD T/A BUNZL CLEANING & HYGIENE SUPPLIES,027747,Commissioning & Asset Management,Children's & Education Services,103,Supplies and Services,504,Equipment,5023,Revenue,CLEANING & JANITORIAL.CLEANING MATERIALS
29-JUN-2021,7011613,7.18,BUNZL UK LTD T/A BUNZL CLEANING & HYGIENE SUPPLIES,027747,Commissioning & Asset Management,Children's & Education Services,103,Supplies and Services,504,Equipment,5023,Revenue,CLEANING & JANITORIAL.CLEANING MATERIALS
29-JUN-2021,7011613,7.18,BUNZL UK LTD T/A BUNZL CLEANING & HYGIENE SUPPLIES,027747,Commissioning & Asset Management,Children's & Education Services,103,Supplies and Services,504,Equipment,5023,Revenue,CLEANING & JANITORIAL.CLEANING MATERIALS
29-JUN-2021,7011613,7.18,BUNZL UK LTD T/A BUNZL CLEANING & HYGIENE SUPPLIES,027747,Commissioning & Asset Management,Children's & Education Services,103,Supplies and Services,504,Equipment,5023,Revenue,CLEANING & JANITORIAL.CLEANING MATERIALS
29-JUN-2021,7011613,7.18,BUNZL UK LTD T/A BUNZL CLEANING & HYGIENE SUPPLIES,027747,Commissioning & Asset Management,Children's & Education Services,103,Supplies and Services,504,Equipment,5023,Revenue,CLEANING & JANITORIAL.CLEANING MATERIALS
29-JUN-2021,7011613,7.18,BUNZL UK LTD T/A BUNZL CLEANING & HYGIENE SUPPLIES,027747,Commissioning & Asset Management,Children's & Education Services,103,Supplies and Services,504,Equipment,5023,Revenue,CLEANING & JANITORIAL.CLEANING MATERIALS
29-JUN-2021,7011613,7.18,BUNZL UK LTD T/A BUNZL CLEANING & HYGIENE SUPPLIES,027747,Commissioning & Asset Management,Children's & Education Services,103,Supplies and Services,504,Equipment,5023,Revenue,CLEANING & JANITORIAL.CLEANING MATERIALS
29-JUN-2021,7011613,7.18,BUNZL UK LTD T/A BUNZL CLEANING & HYGIENE SUPPLIES,027747,Commissioning & Asset Management,Children's & Education Services,103,Supplies and Services,504,Equipment,5023,Revenue,CLEANING & JANITORIAL.CLEANING MATERIALS
29-JUN-2021,7011613,7.18,BUNZL UK LTD T/A BUNZL CLEANING & HYGIENE SUPPLIES,027747,Commissioning & Asset Management,Children's & Education Services,103,Supplies and Services,504,Equipment,5023,Revenue,CLEANING & JANITORIAL.CLEANING MATERIALS
29-JUN-2021,7011613,7.56,BUNZL UK LTD T/A BUNZL CLEANING & HYGIENE SUPPLIES,027747,Commissioning & Asset Management,Children's & Education Services,103,Supplies and Services,504,Equipment,5023,Revenue,CLEANING & JANITORIAL.CLEANING MATERIALS
29-JUN-2021,7011613,7.56,BUNZL UK LTD T/A BUNZL CLEANING & HYGIENE SUPPLIES,027747,Commissioning & Asset Management,Children's & Education Services,103,Supplies and Services,504,Equipment,5023,Revenue,CLEANING & JANITORIAL.CLEANING MATERIALS
29-JUN-2021,7011613,7.56,BUNZL UK LTD T/A BUNZL CLEANING & HYGIENE SUPPLIES,027747,Commissioning & Asset Management,Children's & Education Services,103,Supplies and Services,504,Equipment,5023,Revenue,CLEANING & JANITORIAL.CLEANING MATERIALS
29-JUN-2021,7011613,7.56,BUNZL UK LTD T/A BUNZL CLEANING & HYGIENE SUPPLIES,027747,Commissioning & Asset Management,Children's & Education Services,103,Supplies and Services,504,Equipment,5023,Revenue,CLEANING & JANITORIAL.CLEANING MATERIALS
29-JUN-2021,7011613,7.56,BUNZL UK LTD T/A BUNZL CLEANING & HYGIENE SUPPLIES,027747,Commissioning & Asset Management,Children's & Education Services,103,Supplies and Services,504,Equipment,5023,Revenue,CLEANING & JANITORIAL.CLEANING MATERIALS
29-JUN-2021,7011613,7.56,BUNZL UK LTD T/A BUNZL CLEANING & HYGIENE SUPPLIES,027747,Commissioning & Asset Management,Children's & Education Services,103,Supplies and Services,504,Equipment,5023,Revenue,CLEANING & JANITORIAL.CLEANING MATERIALS
29-JUN-2021,7011613,7.56,BUNZL UK LTD T/A BUNZL CLEANING & HYGIENE SUPPLIES,027747,Commissioning & Asset Management,Children's & Education Services,103,Supplies and Services,504,Equipment,5023,Revenue,CLEANING & JANITORIAL.CLEANING MATERIALS
29-JUN-2021,7011613,7.56,BUNZL UK LTD T/A BUNZL CLEANING & HYGIENE SUPPLIES,027747,Commissioning & Asset Management,Children's & Education Services,103,Supplies and Services,504,Equipment,5023,Revenue,CLEANING & JANITORIAL.CLEANING MATERIALS
29-JUN-2021,7011613,7.56,BUNZL UK LTD T/A BUNZL CLEANING & HYGIENE SUPPLIES,027747,Commissioning & Asset Management,Children's & Education Services,103,Supplies and Services,504,Equipment,5023,Revenue,CLEANING & JANITORIAL.CLEANING MATERIALS
29-JUN-2021,7011613,7.56,BUNZL UK LTD T/A BUNZL CLEANING & HYGIENE SUPPLIES,027747,Commissioning & Asset Management,Children's & Education Services,103,Supplies and Services,504,Equipment,5023,Revenue,CLEANING & JANITORIAL.CLEANING MATERIALS
29-JUN-2021,7011613,7.56,BUNZL UK LTD T/A BUNZL CLEANING & HYGIENE SUPPLIES,027747,Commissioning & Asset Management,Children's & Education Services,103,Supplies and Services,504,Equipment,5023,Revenue,CLEANING & JANITORIAL.CLEANING MATERIALS
29-JUN-2021,7011613,7.56,BUNZL UK LTD T/A BUNZL CLEANING & HYGIENE SUPPLIES,027747,Commissioning & Asset Management,Children's & Education Services,103,Supplies and Services,504,Equipment,5023,Revenue,CLEANING & JANITORIAL.CLEANING MATERIALS
29-JUN-2021,7011613,7.56,BUNZL UK LTD T/A BUNZL CLEANING & HYGIENE SUPPLIES,027747,Commissioning & Asset Management,Children's & Education Services,103,Supplies and Services,504,Equipment,5023,Revenue,CLEANING & JANITORIAL.CLEANING MATERIALS
29-JUN-2021,7011613,7.56,BUNZL UK LTD T/A BUNZL CLEANING & HYGIENE SUPPLIES,027747,Commissioning & Asset Management,Children's & Education Services,103,Supplies and Services,504,Equipment,5023,Revenue,CLEANING & JANITORIAL.CLEANING MATERIALS
29-JUN-2021,7011613,7.56,BUNZL UK LTD T/A BUNZL CLEANING & HYGIENE SUPPLIES,027747,Commissioning & Asset Management,Children's & Education Services,103,Supplies and Services,504,Equipment,5023,Revenue,CLEANING & JANITORIAL.CLEANING MATERIALS
29-JUN-2021,7011613,7.56,BUNZL UK LTD T/A BUNZL CLEANING & HYGIENE SUPPLIES,027747,Commissioning & Asset Management,Children's & Education Services,103,Supplies and Services,504,Equipment,5023,Revenue,CLEANING & JANITORIAL.CLEANING MATERIALS
29-JUN-2021,7011613,7.57,BUNZL UK LTD T/A BUNZL CLEANING & HYGIENE SUPPLIES,027747,Commissioning & Asset Management,Children's & Education Services,103,Supplies and Services,504,Equipment,5023,Revenue,CLEANING & JANITORIAL.CLEANING MATERIALS
29-JUN-2021,7011613,7.57,BUNZL UK LTD T/A BUNZL CLEANING & HYGIENE SUPPLIES,027747,Commissioning & Asset Management,Children's & Education Services,103,Supplies and Services,504,Equipment,5023,Revenue,CLEANING & JANITORIAL.CLEANING MATERIALS
29-JUN-2021,7011613,7.57,BUNZL UK LTD T/A BUNZL CLEANING & HYGIENE SUPPLIES,027747,Commissioning & Asset Management,Children's & Education Services,103,Supplies and Services,504,Equipment,5023,Revenue,CLEANING & JANITORIAL.CLEANING MATERIALS
29-JUN-2021,7011613,7.57,BUNZL UK LTD T/A BUNZL CLEANING & HYGIENE SUPPLIES,027747,Commissioning & Asset Management,Children's & Education Services,103,Supplies and Services,504,Equipment,5023,Revenue,CLEANING & JANITORIAL.CLEANING MATERIALS
29-JUN-2021,7011613,7.57,BUNZL UK LTD T/A BUNZL CLEANING & HYGIENE SUPPLIES,027747,Commissioning & Asset Management,Children's & Education Services,103,Supplies and Services,504,Equipment,5023,Revenue,CLEANING & JANITORIAL.CLEANING MATERIALS
29-JUN-2021,7011613,7.57,BUNZL UK LTD T/A BUNZL CLEANING & HYGIENE SUPPLIES,027747,Commissioning & Asset Management,Children's & Education Services,103,Supplies and Services,504,Equipment,5023,Revenue,CLEANING & JANITORIAL.CLEANING MATERIALS
29-JUN-2021,7011613,7.57,BUNZL UK LTD T/A BUNZL CLEANING & HYGIENE SUPPLIES,027747,Commissioning & Asset Management,Children's & Education Services,103,Supplies and Services,504,Equipment,5023,Revenue,CLEANING & JANITORIAL.CLEANING MATERIALS
29-JUN-2021,7011613,7.57,BUNZL UK LTD T/A BUNZL CLEANING & HYGIENE SUPPLIES,027747,Commissioning & Asset Management,Children's & Education Services,103,Supplies and Services,504,Equipment,5023,Revenue,CLEANING & JANITORIAL.CLEANING MATERIALS
29-JUN-2021,7011613,7.57,BUNZL UK LTD T/A BUNZL CLEANING & HYGIENE SUPPLIES,027747,Commissioning & Asset Management,Children's & Education Services,103,Supplies and Services,504,Equipment,5023,Revenue,CLEANING & JANITORIAL.CLEANING MATERIALS
29-JUN-2021,7011613,7.57,BUNZL UK LTD T/A BUNZL CLEANING & HYGIENE SUPPLIES,027747,Commissioning & Asset Management,Children's & Education Services,103,Supplies and Services,504,Equipment,5023,Revenue,CLEANING & JANITORIAL.CLEANING MATERIALS
29-JUN-2021,7011613,7.57,BUNZL UK LTD T/A BUNZL CLEANING & HYGIENE SUPPLIES,027747,Commissioning & Asset Management,Children's & Education Services,103,Supplies and Services,504,Equipment,5023,Revenue,CLEANING & JANITORIAL.CLEANING MATERIALS
29-JUN-2021,7011613,7.57,BUNZL UK LTD T/A BUNZL CLEANING & HYGIENE SUPPLIES,027747,Commissioning & Asset Management,Children's & Education Services,103,Supplies and Services,504,Equipment,5023,Revenue,CLEANING & JANITORIAL.CLEANING MATERIALS
29-JUN-2021,7011613,7.57,BUNZL UK LTD T/A BUNZL CLEANING & HYGIENE SUPPLIES,027747,Commissioning & Asset Management,Children's & Education Services,103,Supplies and Services,504,Equipment,5023,Revenue,CLEANING & JANITORIAL.CLEANING MATERIALS
29-JUN-2021,7011613,7.57,BUNZL UK LTD T/A BUNZL CLEANING & HYGIENE SUPPLIES,027747,Commissioning & Asset Management,Children's & Education Services,103,Supplies and Services,504,Equipment,5023,Revenue,CLEANING & JANITORIAL.CLEANING MATERIALS
29-JUN-2021,7011613,7.8,BUNZL UK LTD T/A BUNZL CLEANING & HYGIENE SUPPLIES,027747,Commissioning & Asset Management,Children's & Education Services,103,Supplies and Services,504,Equipment,5023,Revenue,CLEANING & JANITORIAL.CLEANING MATERIALS
29-JUN-2021,7011613,7.8,BUNZL UK LTD T/A BUNZL CLEANING & HYGIENE SUPPLIES,027747,Commissioning & Asset Management,Children's & Education Services,103,Supplies and Services,504,Equipment,5023,Revenue,CLEANING & JANITORIAL.CLEANING MATERIALS
29-JUN-2021,7011613,7.8,BUNZL UK LTD T/A BUNZL CLEANING & HYGIENE SUPPLIES,027747,Commissioning & Asset Management,Children's & Education Services,103,Supplies and Services,504,Equipment,5023,Revenue,CLEANING & JANITORIAL.CLEANING MATERIALS
29-JUN-2021,7011613,7.8,BUNZL UK LTD T/A BUNZL CLEANING & HYGIENE SUPPLIES,027747,Commissioning & Asset Management,Children's & Education Services,103,Supplies and Services,504,Equipment,5023,Revenue,CLEANING & JANITORIAL.CLEANING MATERIALS
29-JUN-2021,7011613,7.8,BUNZL UK LTD T/A BUNZL CLEANING & HYGIENE SUPPLIES,027747,Commissioning & Asset Management,Children's & Education Services,103,Supplies and Services,504,Equipment,5023,Revenue,CLEANING & JANITORIAL.CLEANING MATERIALS
29-JUN-2021,7011613,7.8,BUNZL UK LTD T/A BUNZL CLEANING & HYGIENE SUPPLIES,027747,Commissioning & Asset Management,Children's & Education Services,103,Supplies and Services,504,Equipment,5023,Revenue,CLEANING & JANITORIAL.CLEANING MATERIALS
29-JUN-2021,7011613,7.8,BUNZL UK LTD T/A BUNZL CLEANING & HYGIENE SUPPLIES,027747,Commissioning & Asset Management,Children's & Education Services,103,Supplies and Services,504,Equipment,5023,Revenue,CLEANING & JANITORIAL.CLEANING MATERIALS
29-JUN-2021,7011613,7.88,BUNZL UK LTD T/A BUNZL CLEANING & HYGIENE SUPPLIES,027747,Commissioning & Asset Management,Children's & Education Services,103,Supplies and Services,504,Equipment,5023,Revenue,CLEANING & JANITORIAL.CLEANING MATERIALS
29-JUN-2021,7011613,7.88,BUNZL UK LTD T/A BUNZL CLEANING & HYGIENE SUPPLIES,027747,Commissioning & Asset Management,Children's & Education Services,103,Supplies and Services,504,Equipment,5023,Revenue,CLEANING & JANITORIAL.CLEANING MATERIALS
29-JUN-2021,7011613,7.88,BUNZL UK LTD T/A BUNZL CLEANING & HYGIENE SUPPLIES,027747,Commissioning & Asset Management,Children's & Education Services,103,Supplies and Services,504,Equipment,5023,Revenue,CLEANING & JANITORIAL.CLEANING MATERIALS
29-JUN-2021,7011613,7.88,BUNZL UK LTD T/A BUNZL CLEANING & HYGIENE SUPPLIES,027747,Commissioning & Asset Management,Children's & Education Services,103,Supplies and Services,504,Equipment,5023,Revenue,CLEANING & JANITORIAL.CLEANING MATERIALS
29-JUN-2021,7011613,7.88,BUNZL UK LTD T/A BUNZL CLEANING & HYGIENE SUPPLIES,027747,Commissioning & Asset Management,Children's & Education Services,103,Supplies and Services,504,Equipment,5023,Revenue,CLEANING & JANITORIAL.CLEANING MATERIALS
29-JUN-2021,7011613,7.88,BUNZL UK LTD T/A BUNZL CLEANING & HYGIENE SUPPLIES,027747,Commissioning & Asset Management,Children's & Education Services,103,Supplies and Services,504,Equipment,5023,Revenue,CLEANING & JANITORIAL.CLEANING MATERIALS
29-JUN-2021,7011613,7.88,BUNZL UK LTD T/A BUNZL CLEANING & HYGIENE SUPPLIES,027747,Commissioning & Asset Management,Children's & Education Services,103,Supplies and Services,504,Equipment,5023,Revenue,CLEANING & JANITORIAL.CLEANING MATERIALS
29-JUN-2021,7011613,7.88,BUNZL UK LTD T/A BUNZL CLEANING & HYGIENE SUPPLIES,027747,Commissioning & Asset Management,Children's & Education Services,103,Supplies and Services,504,Equipment,5023,Revenue,CLEANING & JANITORIAL.CLEANING MATERIALS
29-JUN-2021,7011613,7.88,BUNZL UK LTD T/A BUNZL CLEANING & HYGIENE SUPPLIES,027747,Commissioning & Asset Management,Children's & Education Services,103,Supplies and Services,504,Equipment,5023,Revenue,CLEANING & JANITORIAL.CLEANING MATERIALS
29-JUN-2021,7011613,7.88,BUNZL UK LTD T/A BUNZL CLEANING & HYGIENE SUPPLIES,027747,Commissioning & Asset Management,Children's & Education Services,103,Supplies and Services,504,Equipment,5023,Revenue,CLEANING & JANITORIAL.CLEANING MATERIALS
29-JUN-2021,7011613,7.88,BUNZL UK LTD T/A BUNZL CLEANING & HYGIENE SUPPLIES,027747,Commissioning & Asset Management,Children's & Education Services,103,Supplies and Services,504,Equipment,5023,Revenue,CLEANING & JANITORIAL.CLEANING MATERIALS
29-JUN-2021,7011613,7.9,BUNZL UK LTD T/A BUNZL CLEANING & HYGIENE SUPPLIES,027747,Commissioning & Asset Management,Children's & Education Services,103,Supplies and Services,504,Equipment,5023,Revenue,CLEANING & JANITORIAL.CLEANING MATERIALS
29-JUN-2021,7011613,7.9,BUNZL UK LTD T/A BUNZL CLEANING & HYGIENE SUPPLIES,027747,Commissioning & Asset Management,Children's & Education Services,103,Supplies and Services,504,Equipment,5023,Revenue,CLEANING & JANITORIAL.CLEANING MATERIALS
29-JUN-2021,7011613,7.9,BUNZL UK LTD T/A BUNZL CLEANING & HYGIENE SUPPLIES,027747,Commissioning & Asset Management,Children's & Education Services,103,Supplies and Services,504,Equipment,5023,Revenue,CLEANING & JANITORIAL.CLEANING MATERIALS
29-JUN-2021,7011613,7.9,BUNZL UK LTD T/A BUNZL CLEANING & HYGIENE SUPPLIES,027747,Commissioning & Asset Management,Children's & Education Services,103,Supplies and Services,504,Equipment,5023,Revenue,CLEANING & JANITORIAL.CLEANING MATERIALS
29-JUN-2021,7011613,7.9,BUNZL UK LTD T/A BUNZL CLEANING & HYGIENE SUPPLIES,027747,Commissioning & Asset Management,Children's & Education Services,103,Supplies and Services,504,Equipment,5023,Revenue,CLEANING & JANITORIAL.CLEANING MATERIALS
29-JUN-2021,7011613,7.9,BUNZL UK LTD T/A BUNZL CLEANING & HYGIENE SUPPLIES,027747,Commissioning & Asset Management,Children's & Education Services,103,Supplies and Services,504,Equipment,5023,Revenue,CLEANING & JANITORIAL.CLEANING MATERIALS
29-JUN-2021,7011613,7.9,BUNZL UK LTD T/A BUNZL CLEANING & HYGIENE SUPPLIES,027747,Commissioning & Asset Management,Children's & Education Services,103,Supplies and Services,504,Equipment,5023,Revenue,CLEANING & JANITORIAL.CLEANING MATERIALS
29-JUN-2021,7011613,7.9,BUNZL UK LTD T/A BUNZL CLEANING & HYGIENE SUPPLIES,027747,Commissioning & Asset Management,Children's & Education Services,103,Supplies and Services,504,Equipment,5023,Revenue,CLEANING & JANITORIAL.CLEANING MATERIALS
29-JUN-2021,7011613,7.9,BUNZL UK LTD T/A BUNZL CLEANING & HYGIENE SUPPLIES,027747,Commissioning & Asset Management,Children's & Education Services,103,Supplies and Services,504,Equipment,5023,Revenue,CLEANING & JANITORIAL.CLEANING MATERIALS
29-JUN-2021,7011613,7.9,BUNZL UK LTD T/A BUNZL CLEANING & HYGIENE SUPPLIES,027747,Commissioning & Asset Management,Children's & Education Services,103,Supplies and Services,504,Equipment,5023,Revenue,CLEANING & JANITORIAL.CLEANING MATERIALS
29-JUN-2021,7011613,7.9,BUNZL UK LTD T/A BUNZL CLEANING & HYGIENE SUPPLIES,027747,Commissioning & Asset Management,Children's & Education Services,103,Supplies and Services,504,Equipment,5023,Revenue,CLEANING & JANITORIAL.CLEANING MATERIALS
29-JUN-2021,7011613,7.9,BUNZL UK LTD T/A BUNZL CLEANING & HYGIENE SUPPLIES,027747,Commissioning & Asset Management,Children's & Education Services,103,Supplies and Services,504,Equipment,5023,Revenue,CLEANING & JANITORIAL.CLEANING MATERIALS
29-JUN-2021,7011613,7.9,BUNZL UK LTD T/A BUNZL CLEANING & HYGIENE SUPPLIES,027747,Commissioning & Asset Management,Children's & Education Services,103,Supplies and Services,504,Equipment,5023,Revenue,CLEANING & JANITORIAL.CLEANING MATERIALS
29-JUN-2021,7011613,7.9,BUNZL UK LTD T/A BUNZL CLEANING & HYGIENE SUPPLIES,027747,Commissioning & Asset Management,Children's & Education Services,103,Supplies and Services,504,Equipment,5023,Revenue,CLEANING & JANITORIAL.CLEANING MATERIALS
29-JUN-2021,7011613,7.9,BUNZL UK LTD T/A BUNZL CLEANING & HYGIENE SUPPLIES,027747,Commissioning & Asset Management,Children's & Education Services,103,Supplies and Services,504,Equipment,5023,Revenue,CLEANING & JANITORIAL.CLEANING MATERIALS
29-JUN-2021,7011613,7.9,BUNZL UK LTD T/A BUNZL CLEANING & HYGIENE SUPPLIES,027747,Commissioning & Asset Management,Children's & Education Services,103,Supplies and Services,504,Equipment,5023,Revenue,CLEANING & JANITORIAL.CLEANING MATERIALS
29-JUN-2021,7011613,7.9,BUNZL UK LTD T/A BUNZL CLEANING & HYGIENE SUPPLIES,027747,Commissioning & Asset Management,Children's & Education Services,103,Supplies and Services,504,Equipment,5023,Revenue,CLEANING & JANITORIAL.CLEANING MATERIALS
29-JUN-2021,7011613,7.9,BUNZL UK LTD T/A BUNZL CLEANING & HYGIENE SUPPLIES,027747,Commissioning & Asset Management,Children's & Education Services,103,Supplies and Services,504,Equipment,5023,Revenue,CLEANING & JANITORIAL.CLEANING MATERIALS
29-JUN-2021,7011613,7.9,BUNZL UK LTD T/A BUNZL CLEANING & HYGIENE SUPPLIES,027747,Commissioning & Asset Management,Children's & Education Services,103,Supplies and Services,504,Equipment,5023,Revenue,CLEANING & JANITORIAL.CLEANING MATERIALS
29-JUN-2021,7011613,7.9,BUNZL UK LTD T/A BUNZL CLEANING & HYGIENE SUPPLIES,027747,Commissioning & Asset Management,Children's & Education Services,103,Supplies and Services,504,Equipment,5023,Revenue,CLEANING & JANITORIAL.CLEANING MATERIALS
29-JUN-2021,7011613,8.4,BUNZL UK LTD T/A BUNZL CLEANING & HYGIENE SUPPLIES,027747,Commissioning & Asset Management,Children's & Education Services,103,Supplies and Services,504,Equipment,5023,Revenue,CLEANING & JANITORIAL.CLEANING MATERIALS
29-JUN-2021,7011613,8.4,BUNZL UK LTD T/A BUNZL CLEANING & HYGIENE SUPPLIES,027747,Commissioning & Asset Management,Children's & Education Services,103,Supplies and Services,504,Equipment,5023,Revenue,CLEANING & JANITORIAL.CLEANING MATERIALS
29-JUN-2021,7011613,8.96,BUNZL UK LTD T/A BUNZL CLEANING & HYGIENE SUPPLIES,027747,Commissioning & Asset Management,Children's & Education Services,103,Supplies and Services,504,Equipment,5023,Revenue,CLEANING & JANITORIAL.CLEANING MATERIALS
29-JUN-2021,7011613,8.96,BUNZL UK LTD T/A BUNZL CLEANING & HYGIENE SUPPLIES,027747,Commissioning & Asset Management,Children's & Education Services,103,Supplies and Services,504,Equipment,5023,Revenue,CLEANING & JANITORIAL.CLEANING MATERIALS
29-JUN-2021,7011613,8.96,BUNZL UK LTD T/A BUNZL CLEANING & HYGIENE SUPPLIES,027747,Commissioning & Asset Management,Children's & Education Services,103,Supplies and Services,504,Equipment,5023,Revenue,CLEANING & JANITORIAL.CLEANING MATERIALS
29-JUN-2021,7011613,8.96,BUNZL UK LTD T/A BUNZL CLEANING & HYGIENE SUPPLIES,027747,Commissioning & Asset Management,Children's & Education Services,103,Supplies and Services,504,Equipment,5023,Revenue,CLEANING & JANITORIAL.CLEANING MATERIALS
29-JUN-2021,7011613,8.96,BUNZL UK LTD T/A BUNZL CLEANING & HYGIENE SUPPLIES,027747,Commissioning & Asset Management,Children's & Education Services,103,Supplies and Services,504,Equipment,5023,Revenue,CLEANING & JANITORIAL.CLEANING MATERIALS
29-JUN-2021,7011613,8.96,BUNZL UK LTD T/A BUNZL CLEANING & HYGIENE SUPPLIES,027747,Commissioning & Asset Management,Children's & Education Services,103,Supplies and Services,504,Equipment,5023,Revenue,CLEANING & JANITORIAL.CLEANING MATERIALS
29-JUN-2021,7011613,8.96,BUNZL UK LTD T/A BUNZL CLEANING & HYGIENE SUPPLIES,027747,Commissioning & Asset Management,Children's & Education Services,103,Supplies and Services,504,Equipment,5023,Revenue,CLEANING & JANITORIAL.CLEANING MATERIALS
29-JUN-2021,7011613,8.96,BUNZL UK LTD T/A BUNZL CLEANING & HYGIENE SUPPLIES,027747,Commissioning & Asset Management,Children's & Education Services,103,Supplies and Services,504,Equipment,5023,Revenue,CLEANING & JANITORIAL.CLEANING MATERIALS
29-JUN-2021,7011613,8.96,BUNZL UK LTD T/A BUNZL CLEANING & HYGIENE SUPPLIES,027747,Commissioning & Asset Management,Children's & Education Services,103,Supplies and Services,504,Equipment,5023,Revenue,CLEANING & JANITORIAL.CLEANING MATERIALS
29-JUN-2021,7011613,8.96,BUNZL UK LTD T/A BUNZL CLEANING & HYGIENE SUPPLIES,027747,Commissioning & Asset Management,Children's & Education Services,103,Supplies and Services,504,Equipment,5023,Revenue,CLEANING & JANITORIAL.CLEANING MATERIALS
29-JUN-2021,7011613,8.96,BUNZL UK LTD T/A BUNZL CLEANING & HYGIENE SUPPLIES,027747,Commissioning & Asset Management,Children's & Education Services,103,Supplies and Services,504,Equipment,5023,Revenue,CLEANING & JANITORIAL.CLEANING MATERIALS
29-JUN-2021,7011613,8.96,BUNZL UK LTD T/A BUNZL CLEANING & HYGIENE SUPPLIES,027747,Commissioning & Asset Management,Children's & Education Services,103,Supplies and Services,504,Equipment,5023,Revenue,CLEANING & JANITORIAL.CLEANING MATERIALS
29-JUN-2021,7011613,8.96,BUNZL UK LTD T/A BUNZL CLEANING & HYGIENE SUPPLIES,027747,Commissioning & Asset Management,Children's & Education Services,103,Supplies and Services,504,Equipment,5023,Revenue,CLEANING & JANITORIAL.CLEANING MATERIALS
29-JUN-2021,7011613,8.96,BUNZL UK LTD T/A BUNZL CLEANING & HYGIENE SUPPLIES,027747,Commissioning & Asset Management,Children's & Education Services,103,Supplies and Services,504,Equipment,5023,Revenue,CLEANING & JANITORIAL.CLEANING MATERIALS
29-JUN-2021,7011613,8.96,BUNZL UK LTD T/A BUNZL CLEANING & HYGIENE SUPPLIES,027747,Commissioning & Asset Management,Children's & Education Services,103,Supplies and Services,504,Equipment,5023,Revenue,CLEANING & JANITORIAL.CLEANING MATERIALS
29-JUN-2021,7011613,8.96,BUNZL UK LTD T/A BUNZL CLEANING & HYGIENE SUPPLIES,027747,Commissioning & Asset Management,Children's & Education Services,103,Supplies and Services,504,Equipment,5023,Revenue,CLEANING & JANITORIAL.CLEANING MATERIALS
29-JUN-2021,7011613,8.96,BUNZL UK LTD T/A BUNZL CLEANING & HYGIENE SUPPLIES,027747,Commissioning & Asset Management,Children's & Education Services,103,Supplies and Services,504,Equipment,5023,Revenue,CLEANING & JANITORIAL.CLEANING MATERIALS
29-JUN-2021,7011613,8.96,BUNZL UK LTD T/A BUNZL CLEANING & HYGIENE SUPPLIES,027747,Commissioning & Asset Management,Children's & Education Services,103,Supplies and Services,504,Equipment,5023,Revenue,CLEANING & JANITORIAL.CLEANING MATERIALS
29-JUN-2021,7011613,8.96,BUNZL UK LTD T/A BUNZL CLEANING & HYGIENE SUPPLIES,027747,Commissioning & Asset Management,Children's & Education Services,103,Supplies and Services,504,Equipment,5023,Revenue,CLEANING & JANITORIAL.CLEANING MATERIALS
29-JUN-2021,7011613,8.96,BUNZL UK LTD T/A BUNZL CLEANING & HYGIENE SUPPLIES,027747,Commissioning & Asset Management,Children's & Education Services,103,Supplies and Services,504,Equipment,5023,Revenue,CLEANING & JANITORIAL.CLEANING MATERIALS
29-JUN-2021,7011613,8.96,BUNZL UK LTD T/A BUNZL CLEANING & HYGIENE SUPPLIES,027747,Commissioning & Asset Management,Children's & Education Services,103,Supplies and Services,504,Equipment,5023,Revenue,CLEANING & JANITORIAL.CLEANING MATERIALS
29-JUN-2021,7011613,8.96,BUNZL UK LTD T/A BUNZL CLEANING & HYGIENE SUPPLIES,027747,Commissioning & Asset Management,Children's & Education Services,103,Supplies and Services,504,Equipment,5023,Revenue,CLEANING & JANITORIAL.CLEANING MATERIALS
29-JUN-2021,7011613,8.96,BUNZL UK LTD T/A BUNZL CLEANING & HYGIENE SUPPLIES,027747,Commissioning & Asset Management,Children's & Education Services,103,Supplies and Services,504,Equipment,5023,Revenue,CLEANING & JANITORIAL.CLEANING MATERIALS
29-JUN-2021,7011613,8.96,BUNZL UK LTD T/A BUNZL CLEANING & HYGIENE SUPPLIES,027747,Commissioning & Asset Management,Children's & Education Services,103,Supplies and Services,504,Equipment,5023,Revenue,CLEANING & JANITORIAL.CLEANING MATERIALS
29-JUN-2021,7011613,8.96,BUNZL UK LTD T/A BUNZL CLEANING & HYGIENE SUPPLIES,027747,Commissioning & Asset Management,Children's & Education Services,103,Supplies and Services,504,Equipment,5023,Revenue,CLEANING & JANITORIAL.CLEANING MATERIALS
29-JUN-2021,7011613,9,BUNZL UK LTD T/A BUNZL CLEANING & HYGIENE SUPPLIES,027747,Commissioning & Asset Management,Children's & Education Services,103,Supplies and Services,504,Equipment,5023,Revenue,CLEANING & JANITORIAL.CLEANING MATERIALS
29-JUN-2021,7011613,9,BUNZL UK LTD T/A BUNZL CLEANING & HYGIENE SUPPLIES,027747,Commissioning & Asset Management,Children's & Education Services,103,Supplies and Services,504,Equipment,5023,Revenue,CLEANING & JANITORIAL.CLEANING MATERIALS
29-JUN-2021,7011613,9,BUNZL UK LTD T/A BUNZL CLEANING & HYGIENE SUPPLIES,027747,Commissioning & Asset Management,Children's & Education Services,103,Supplies and Services,504,Equipment,5023,Revenue,CLEANING & JANITORIAL.CLEANING MATERIALS
29-JUN-2021,7011613,9,BUNZL UK LTD T/A BUNZL CLEANING & HYGIENE SUPPLIES,027747,Commissioning & Asset Management,Children's & Education Services,103,Supplies and Services,504,Equipment,5023,Revenue,CLEANING & JANITORIAL.CLEANING MATERIALS
29-JUN-2021,7011613,9,BUNZL UK LTD T/A BUNZL CLEANING & HYGIENE SUPPLIES,027747,Commissioning & Asset Management,Children's & Education Services,103,Supplies and Services,504,Equipment,5023,Revenue,CLEANING & JANITORIAL.CLEANING MATERIALS
29-JUN-2021,7011613,9,BUNZL UK LTD T/A BUNZL CLEANING & HYGIENE SUPPLIES,027747,Commissioning & Asset Management,Children's & Education Services,103,Supplies and Services,504,Equipment,5023,Revenue,CLEANING & JANITORIAL.CLEANING MATERIALS
29-JUN-2021,7011613,9,BUNZL UK LTD T/A BUNZL CLEANING & HYGIENE SUPPLIES,027747,Commissioning & Asset Management,Children's & Education Services,103,Supplies and Services,504,Equipment,5023,Revenue,CLEANING & JANITORIAL.CLEANING MATERIALS
29-JUN-2021,7011613,9,BUNZL UK LTD T/A BUNZL CLEANING & HYGIENE SUPPLIES,027747,Commissioning & Asset Management,Children's & Education Services,103,Supplies and Services,504,Equipment,5023,Revenue,CLEANING & JANITORIAL.CLEANING MATERIALS
29-JUN-2021,7011613,9,BUNZL UK LTD T/A BUNZL CLEANING & HYGIENE SUPPLIES,027747,Commissioning & Asset Management,Children's & Education Services,103,Supplies and Services,504,Equipment,5023,Revenue,CLEANING & JANITORIAL.CLEANING MATERIALS
29-JUN-2021,7011613,9,BUNZL UK LTD T/A BUNZL CLEANING & HYGIENE SUPPLIES,027747,Commissioning & Asset Management,Children's & Education Services,103,Supplies and Services,504,Equipment,5023,Revenue,CLEANING & JANITORIAL.CLEANING MATERIALS
29-JUN-2021,7011613,9,BUNZL UK LTD T/A BUNZL CLEANING & HYGIENE SUPPLIES,027747,Commissioning & Asset Management,Children's & Education Services,103,Supplies and Services,504,Equipment,5023,Revenue,CLEANING & JANITORIAL.CLEANING MATERIALS
29-JUN-2021,7011613,9,BUNZL UK LTD T/A BUNZL CLEANING & HYGIENE SUPPLIES,027747,Commissioning & Asset Management,Children's & Education Services,103,Supplies and Services,504,Equipment,5023,Revenue,CLEANING & JANITORIAL.CLEANING MATERIALS
29-JUN-2021,7011613,9,BUNZL UK LTD T/A BUNZL CLEANING & HYGIENE SUPPLIES,027747,Commissioning & Asset Management,Children's & Education Services,103,Supplies and Services,504,Equipment,5023,Revenue,CLEANING & JANITORIAL.CLEANING MATERIALS
29-JUN-2021,7011613,9,BUNZL UK LTD T/A BUNZL CLEANING & HYGIENE SUPPLIES,027747,Commissioning & Asset Management,Children's & Education Services,103,Supplies and Services,504,Equipment,5023,Revenue,CLEANING & JANITORIAL.CLEANING MATERIALS
29-JUN-2021,7011613,9,BUNZL UK LTD T/A BUNZL CLEANING & HYGIENE SUPPLIES,027747,Commissioning & Asset Management,Children's & Education Services,103,Supplies and Services,504,Equipment,5023,Revenue,CLEANING & JANITORIAL.CLEANING MATERIALS
29-JUN-2021,7011613,9,BUNZL UK LTD T/A BUNZL CLEANING & HYGIENE SUPPLIES,027747,Commissioning & Asset Management,Children's & Education Services,103,Supplies and Services,504,Equipment,5023,Revenue,CLEANING & JANITORIAL.CLEANING MATERIALS
29-JUN-2021,7011613,9,BUNZL UK LTD T/A BUNZL CLEANING & HYGIENE SUPPLIES,027747,Commissioning & Asset Management,Children's & Education Services,103,Supplies and Services,504,Equipment,5023,Revenue,CLEANING & JANITORIAL.CLEANING MATERIALS
29-JUN-2021,7011613,9,BUNZL UK LTD T/A BUNZL CLEANING & HYGIENE SUPPLIES,027747,Commissioning & Asset Management,Children's & Education Services,103,Supplies and Services,504,Equipment,5023,Revenue,CLEANING & JANITORIAL.CLEANING MATERIALS
29-JUN-2021,7011613,9,BUNZL UK LTD T/A BUNZL CLEANING & HYGIENE SUPPLIES,027747,Commissioning & Asset Management,Children's & Education Services,103,Supplies and Services,504,Equipment,5023,Revenue,CLEANING & JANITORIAL.CLEANING MATERIALS
29-JUN-2021,7011613,9.75,BUNZL UK LTD T/A BUNZL CLEANING & HYGIENE SUPPLIES,027747,Commissioning & Asset Management,Children's & Education Services,103,Supplies and Services,504,Equipment,5023,Revenue,CLEANING & JANITORIAL.CLEANING MATERIALS
29-JUN-2021,7011613,9.96,BUNZL UK LTD T/A BUNZL CLEANING & HYGIENE SUPPLIES,027747,Commissioning & Asset Management,Children's & Education Services,103,Supplies and Services,504,Equipment,5023,Revenue,CLEANING & JANITORIAL.CLEANING MATERIALS
29-JUN-2021,7011613,9.96,BUNZL UK LTD T/A BUNZL CLEANING & HYGIENE SUPPLIES,027747,Commissioning & Asset Management,Children's & Education Services,103,Supplies and Services,504,Equipment,5023,Revenue,CLEANING & JANITORIAL.CLEANING MATERIALS
29-JUN-2021,7011613,9.96,BUNZL UK LTD T/A BUNZL CLEANING & HYGIENE SUPPLIES,027747,Commissioning & Asset Management,Children's & Education Services,103,Supplies and Services,504,Equipment,5023,Revenue,CLEANING & JANITORIAL.CLEANING MATERIALS
29-JUN-2021,7011613,9.96,BUNZL UK LTD T/A BUNZL CLEANING & HYGIENE SUPPLIES,027747,Commissioning & Asset Management,Children's & Education Services,103,Supplies and Services,504,Equipment,5023,Revenue,CLEANING & JANITORIAL.CLEANING MATERIALS
29-JUN-2021,7011613,10.19,BUNZL UK LTD T/A BUNZL CLEANING & HYGIENE SUPPLIES,027747,Commissioning & Asset Management,Children's & Education Services,103,Supplies and Services,504,Equipment,5023,Revenue,CLEANING & JANITORIAL.CLEANING MATERIALS
29-JUN-2021,7011613,10.19,BUNZL UK LTD T/A BUNZL CLEANING & HYGIENE SUPPLIES,027747,Commissioning & Asset Management,Children's & Education Services,103,Supplies and Services,504,Equipment,5023,Revenue,CLEANING & JANITORIAL.CLEANING MATERIALS
29-JUN-2021,7011613,10.19,BUNZL UK LTD T/A BUNZL CLEANING & HYGIENE SUPPLIES,027747,Commissioning & Asset Management,Children's & Education Services,103,Supplies and Services,504,Equipment,5023,Revenue,CLEANING & JANITORIAL.CLEANING MATERIALS
29-JUN-2021,7011613,10.19,BUNZL UK LTD T/A BUNZL CLEANING & HYGIENE SUPPLIES,027747,Commissioning & Asset Management,Children's & Education Services,103,Supplies and Services,504,Equipment,5023,Revenue,CLEANING & JANITORIAL.CLEANING MATERIALS
29-JUN-2021,7011613,10.19,BUNZL UK LTD T/A BUNZL CLEANING & HYGIENE SUPPLIES,027747,Commissioning & Asset Management,Children's & Education Services,103,Supplies and Services,504,Equipment,5023,Revenue,CLEANING & JANITORIAL.CLEANING MATERIALS
29-JUN-2021,7011613,10.19,BUNZL UK LTD T/A BUNZL CLEANING & HYGIENE SUPPLIES,027747,Commissioning & Asset Management,Children's & Education Services,103,Supplies and Services,504,Equipment,5023,Revenue,CLEANING & JANITORIAL.CLEANING MATERIALS
29-JUN-2021,7011613,10.2,BUNZL UK LTD T/A BUNZL CLEANING & HYGIENE SUPPLIES,027747,Commissioning & Asset Management,Children's & Education Services,103,Supplies and Services,504,Equipment,5023,Revenue,CLEANING & JANITORIAL.CLEANING MATERIALS
29-JUN-2021,7011613,10.94,BUNZL UK LTD T/A BUNZL CLEANING & HYGIENE SUPPLIES,027747,Commissioning & Asset Management,Children's & Education Services,103,Supplies and Services,504,Equipment,5023,Revenue,CLEANING & JANITORIAL.CLEANING MATERIALS
29-JUN-2021,7011613,10.94,BUNZL UK LTD T/A BUNZL CLEANING & HYGIENE SUPPLIES,027747,Commissioning & Asset Management,Children's & Education Services,103,Supplies and Services,504,Equipment,5023,Revenue,CLEANING & JANITORIAL.CLEANING MATERIALS
29-JUN-2021,7011613,10.94,BUNZL UK LTD T/A BUNZL CLEANING & HYGIENE SUPPLIES,027747,Commissioning & Asset Management,Children's & Education Services,103,Supplies and Services,504,Equipment,5023,Revenue,CLEANING & JANITORIAL.CLEANING MATERIALS
29-JUN-2021,7011613,10.94,BUNZL UK LTD T/A BUNZL CLEANING & HYGIENE SUPPLIES,027747,Commissioning & Asset Management,Children's & Education Services,103,Supplies and Services,504,Equipment,5023,Revenue,CLEANING & JANITORIAL.CLEANING MATERIALS
29-JUN-2021,7011613,10.94,BUNZL UK LTD T/A BUNZL CLEANING & HYGIENE SUPPLIES,027747,Commissioning & Asset Management,Children's & Education Services,103,Supplies and Services,504,Equipment,5023,Revenue,CLEANING & JANITORIAL.CLEANING MATERIALS
29-JUN-2021,7011613,10.94,BUNZL UK LTD T/A BUNZL CLEANING & HYGIENE SUPPLIES,027747,Commissioning & Asset Management,Children's & Education Services,103,Supplies and Services,504,Equipment,5023,Revenue,CLEANING & JANITORIAL.CLEANING MATERIALS
29-JUN-2021,7011613,11.16,BUNZL UK LTD T/A BUNZL CLEANING & HYGIENE SUPPLIES,027747,Commissioning & Asset Management,Children's & Education Services,103,Supplies and Services,504,Equipment,5023,Revenue,CLEANING & JANITORIAL.CLEANING MATERIALS
29-JUN-2021,7011613,11.16,BUNZL UK LTD T/A BUNZL CLEANING & HYGIENE SUPPLIES,027747,Commissioning & Asset Management,Children's & Education Services,103,Supplies and Services,504,Equipment,5023,Revenue,CLEANING & JANITORIAL.CLEANING MATERIALS
29-JUN-2021,7011613,11.34,BUNZL UK LTD T/A BUNZL CLEANING & HYGIENE SUPPLIES,027747,Commissioning & Asset Management,Children's & Education Services,103,Supplies and Services,504,Equipment,5023,Revenue,CLEANING & JANITORIAL.CLEANING MATERIALS
29-JUN-2021,7011613,11.7,BUNZL UK LTD T/A BUNZL CLEANING & HYGIENE SUPPLIES,027747,Commissioning & Asset Management,Children's & Education Services,103,Supplies and Services,504,Equipment,5023,Revenue,CLEANING & JANITORIAL.CLEANING MATERIALS
29-JUN-2021,7011613,11.7,BUNZL UK LTD T/A BUNZL CLEANING & HYGIENE SUPPLIES,027747,Commissioning & Asset Management,Children's & Education Services,103,Supplies and Services,504,Equipment,5023,Revenue,CLEANING & JANITORIAL.CLEANING MATERIALS
29-JUN-2021,7011613,11.7,BUNZL UK LTD T/A BUNZL CLEANING & HYGIENE SUPPLIES,027747,Commissioning & Asset Management,Children's & Education Services,103,Supplies and Services,504,Equipment,5023,Revenue,CLEANING & JANITORIAL.CLEANING MATERIALS
29-JUN-2021,7011613,11.8,BUNZL UK LTD T/A BUNZL CLEANING & HYGIENE SUPPLIES,027747,Commissioning & Asset Management,Children's & Education Services,103,Supplies and Services,504,Equipment,5023,Revenue,CLEANING & JANITORIAL.CLEANING MATERIALS
29-JUN-2021,7011613,11.82,BUNZL UK LTD T/A BUNZL CLEANING & HYGIENE SUPPLIES,027747,Commissioning & Asset Management,Children's & Education Services,103,Supplies and Services,504,Equipment,5023,Revenue,CLEANING & JANITORIAL.CLEANING MATERIALS
29-JUN-2021,7011613,11.82,BUNZL UK LTD T/A BUNZL CLEANING & HYGIENE SUPPLIES,027747,Commissioning & Asset Management,Children's & Education Services,103,Supplies and Services,504,Equipment,5023,Revenue,CLEANING & JANITORIAL.CLEANING MATERIALS
29-JUN-2021,7011613,11.85,BUNZL UK LTD T/A BUNZL CLEANING & HYGIENE SUPPLIES,027747,Commissioning & Asset Management,Children's & Education Services,103,Supplies and Services,504,Equipment,5023,Revenue,CLEANING & JANITORIAL.CLEANING MATERIALS
29-JUN-2021,7011613,11.85,BUNZL UK LTD T/A BUNZL CLEANING & HYGIENE SUPPLIES,027747,Commissioning & Asset Management,Children's & Education Services,103,Supplies and Services,504,Equipment,5023,Revenue,CLEANING & JANITORIAL.CLEANING MATERIALS
29-JUN-2021,7011613,11.85,BUNZL UK LTD T/A BUNZL CLEANING & HYGIENE SUPPLIES,027747,Commissioning & Asset Management,Children's & Education Services,103,Supplies and Services,504,Equipment,5023,Revenue,CLEANING & JANITORIAL.CLEANING MATERIALS
29-JUN-2021,7011613,11.85,BUNZL UK LTD T/A BUNZL CLEANING & HYGIENE SUPPLIES,027747,Commissioning & Asset Management,Children's & Education Services,103,Supplies and Services,504,Equipment,5023,Revenue,CLEANING & JANITORIAL.CLEANING MATERIALS
29-JUN-2021,7011613,11.85,BUNZL UK LTD T/A BUNZL CLEANING & HYGIENE SUPPLIES,027747,Commissioning & Asset Management,Children's & Education Services,103,Supplies and Services,504,Equipment,5023,Revenue,CLEANING & JANITORIAL.CLEANING MATERIALS
29-JUN-2021,7011613,11.85,BUNZL UK LTD T/A BUNZL CLEANING & HYGIENE SUPPLIES,027747,Commissioning & Asset Management,Children's & Education Services,103,Supplies and Services,504,Equipment,5023,Revenue,CLEANING & JANITORIAL.CLEANING MATERIALS
29-JUN-2021,7011613,11.85,BUNZL UK LTD T/A BUNZL CLEANING & HYGIENE SUPPLIES,027747,Commissioning & Asset Management,Children's & Education Services,103,Supplies and Services,504,Equipment,5023,Revenue,CLEANING & JANITORIAL.CLEANING MATERIALS
29-JUN-2021,7011613,11.85,BUNZL UK LTD T/A BUNZL CLEANING & HYGIENE SUPPLIES,027747,Commissioning & Asset Management,Children's & Education Services,103,Supplies and Services,504,Equipment,5023,Revenue,CLEANING & JANITORIAL.CLEANING MATERIALS
29-JUN-2021,7011613,11.85,BUNZL UK LTD T/A BUNZL CLEANING & HYGIENE SUPPLIES,027747,Commissioning & Asset Management,Children's & Education Services,103,Supplies and Services,504,Equipment,5023,Revenue,CLEANING & JANITORIAL.CLEANING MATERIALS
29-JUN-2021,7011613,11.85,BUNZL UK LTD T/A BUNZL CLEANING & HYGIENE SUPPLIES,027747,Commissioning & Asset Management,Children's & Education Services,103,Supplies and Services,504,Equipment,5023,Revenue,CLEANING & JANITORIAL.CLEANING MATERIALS
29-JUN-2021,7011613,11.85,BUNZL UK LTD T/A BUNZL CLEANING & HYGIENE SUPPLIES,027747,Commissioning & Asset Management,Children's & Education Services,103,Supplies and Services,504,Equipment,5023,Revenue,CLEANING & JANITORIAL.CLEANING MATERIALS
29-JUN-2021,7011613,11.85,BUNZL UK LTD T/A BUNZL CLEANING & HYGIENE SUPPLIES,027747,Commissioning & Asset Management,Children's & Education Services,103,Supplies and Services,504,Equipment,5023,Revenue,CLEANING & JANITORIAL.CLEANING MATERIALS
29-JUN-2021,7011613,11.85,BUNZL UK LTD T/A BUNZL CLEANING & HYGIENE SUPPLIES,027747,Commissioning & Asset Management,Children's & Education Services,103,Supplies and Services,504,Equipment,5023,Revenue,CLEANING & JANITORIAL.CLEANING MATERIALS
29-JUN-2021,7011613,11.92,BUNZL UK LTD T/A BUNZL CLEANING & HYGIENE SUPPLIES,027747,Commissioning & Asset Management,Children's & Education Services,103,Supplies and Services,504,Equipment,5023,Revenue,CLEANING & JANITORIAL.CLEANING MATERIALS
29-JUN-2021,7011613,11.92,BUNZL UK LTD T/A BUNZL CLEANING & HYGIENE SUPPLIES,027747,Commissioning & Asset Management,Children's & Education Services,103,Supplies and Services,504,Equipment,5023,Revenue,CLEANING & JANITORIAL.CLEANING MATERIALS
29-JUN-2021,7011613,13.34,BUNZL UK LTD T/A BUNZL CLEANING & HYGIENE SUPPLIES,027747,Commissioning & Asset Management,Children's & Education Services,103,Supplies and Services,504,Equipment,5023,Revenue,CLEANING & JANITORIAL.CLEANING MATERIALS
29-JUN-2021,7011613,13.34,BUNZL UK LTD T/A BUNZL CLEANING & HYGIENE SUPPLIES,027747,Commissioning & Asset Management,Children's & Education Services,103,Supplies and Services,504,Equipment,5023,Revenue,CLEANING & JANITORIAL.CLEANING MATERIALS
29-JUN-2021,7011613,13.34,BUNZL UK LTD T/A BUNZL CLEANING & HYGIENE SUPPLIES,027747,Commissioning & Asset Management,Children's & Education Services,103,Supplies and Services,504,Equipment,5023,Revenue,CLEANING & JANITORIAL.CLEANING MATERIALS
29-JUN-2021,7011613,13.6,BUNZL UK LTD T/A BUNZL CLEANING & HYGIENE SUPPLIES,027747,Commissioning & Asset Management,Children's & Education Services,103,Supplies and Services,504,Equipment,5023,Revenue,CLEANING & JANITORIAL.CLEANING MATERIALS
29-JUN-2021,7011613,13.62,BUNZL UK LTD T/A BUNZL CLEANING & HYGIENE SUPPLIES,027747,Commissioning & Asset Management,Children's & Education Services,103,Supplies and Services,504,Equipment,5023,Revenue,CLEANING & JANITORIAL.CLEANING MATERIALS
29-JUN-2021,7011613,13.99,BUNZL UK LTD T/A BUNZL CLEANING & HYGIENE SUPPLIES,027747,Commissioning & Asset Management,Children's & Education Services,103,Supplies and Services,504,Equipment,5023,Revenue,CLEANING & JANITORIAL.CLEANING MATERIALS
29-JUN-2021,7011613,14.94,BUNZL UK LTD T/A BUNZL CLEANING & HYGIENE SUPPLIES,027747,Commissioning & Asset Management,Children's & Education Services,103,Supplies and Services,504,Equipment,5023,Revenue,CLEANING & JANITORIAL.CLEANING MATERIALS
29-JUN-2021,7011613,14.94,BUNZL UK LTD T/A BUNZL CLEANING & HYGIENE SUPPLIES,027747,Commissioning & Asset Management,Children's & Education Services,103,Supplies and Services,504,Equipment,5023,Revenue,CLEANING & JANITORIAL.CLEANING MATERIALS
29-JUN-2021,7011613,15.12,BUNZL UK LTD T/A BUNZL CLEANING & HYGIENE SUPPLIES,027747,Commissioning & Asset Management,Children's & Education Services,103,Supplies and Services,504,Equipment,5023,Revenue,CLEANING & JANITORIAL.CLEANING MATERIALS
29-JUN-2021,7011613,15.12,BUNZL UK LTD T/A BUNZL CLEANING & HYGIENE SUPPLIES,027747,Commissioning & Asset Management,Children's & Education Services,103,Supplies and Services,504,Equipment,5023,Revenue,CLEANING & JANITORIAL.CLEANING MATERIALS
29-JUN-2021,7011613,15.14,BUNZL UK LTD T/A BUNZL CLEANING & HYGIENE SUPPLIES,027747,Commissioning & Asset Management,Children's & Education Services,103,Supplies and Services,504,Equipment,5023,Revenue,CLEANING & JANITORIAL.CLEANING MATERIALS
29-JUN-2021,7011613,15.14,BUNZL UK LTD T/A BUNZL CLEANING & HYGIENE SUPPLIES,027747,Commissioning & Asset Management,Children's & Education Services,103,Supplies and Services,504,Equipment,5023,Revenue,CLEANING & JANITORIAL.CLEANING MATERIALS
29-JUN-2021,7011613,15.14,BUNZL UK LTD T/A BUNZL CLEANING & HYGIENE SUPPLIES,027747,Commissioning & Asset Management,Children's & Education Services,103,Supplies and Services,504,Equipment,5023,Revenue,CLEANING & JANITORIAL.CLEANING MATERIALS
29-JUN-2021,7011613,15.14,BUNZL UK LTD T/A BUNZL CLEANING & HYGIENE SUPPLIES,027747,Commissioning & Asset Management,Children's & Education Services,103,Supplies and Services,504,Equipment,5023,Revenue,CLEANING & JANITORIAL.CLEANING MATERIALS
29-JUN-2021,7011613,15.14,BUNZL UK LTD T/A BUNZL CLEANING & HYGIENE SUPPLIES,027747,Commissioning & Asset Management,Children's & Education Services,103,Supplies and Services,504,Equipment,5023,Revenue,CLEANING & JANITORIAL.CLEANING MATERIALS
29-JUN-2021,7011613,15.14,BUNZL UK LTD T/A BUNZL CLEANING & HYGIENE SUPPLIES,027747,Commissioning & Asset Management,Children's & Education Services,103,Supplies and Services,504,Equipment,5023,Revenue,CLEANING & JANITORIAL.CLEANING MATERIALS
29-JUN-2021,7011613,15.14,BUNZL UK LTD T/A BUNZL CLEANING & HYGIENE SUPPLIES,027747,Commissioning & Asset Management,Children's & Education Services,103,Supplies and Services,504,Equipment,5023,Revenue,CLEANING & JANITORIAL.CLEANING MATERIALS
29-JUN-2021,7011613,15.14,BUNZL UK LTD T/A BUNZL CLEANING & HYGIENE SUPPLIES,027747,Commissioning & Asset Management,Children's & Education Services,103,Supplies and Services,504,Equipment,5023,Revenue,CLEANING & JANITORIAL.CLEANING MATERIALS
29-JUN-2021,7011613,15.14,BUNZL UK LTD T/A BUNZL CLEANING & HYGIENE SUPPLIES,027747,Commissioning & Asset Management,Children's & Education Services,103,Supplies and Services,504,Equipment,5023,Revenue,CLEANING & JANITORIAL.CLEANING MATERIALS
29-JUN-2021,7011613,15.14,BUNZL UK LTD T/A BUNZL CLEANING & HYGIENE SUPPLIES,027747,Commissioning & Asset Management,Children's & Education Services,103,Supplies and Services,504,Equipment,5023,Revenue,CLEANING & JANITORIAL.CLEANING MATERIALS
29-JUN-2021,7011613,15.14,BUNZL UK LTD T/A BUNZL CLEANING & HYGIENE SUPPLIES,027747,Commissioning & Asset Management,Children's & Education Services,103,Supplies and Services,504,Equipment,5023,Revenue,CLEANING & JANITORIAL.CLEANING MATERIALS
29-JUN-2021,7011613,15.14,BUNZL UK LTD T/A BUNZL CLEANING & HYGIENE SUPPLIES,027747,Commissioning & Asset Management,Children's & Education Services,103,Supplies and Services,504,Equipment,5023,Revenue,CLEANING & JANITORIAL.CLEANING MATERIALS
29-JUN-2021,7011613,15.14,BUNZL UK LTD T/A BUNZL CLEANING & HYGIENE SUPPLIES,027747,Commissioning & Asset Management,Children's & Education Services,103,Supplies and Services,504,Equipment,5023,Revenue,CLEANING & JANITORIAL.CLEANING MATERIALS
29-JUN-2021,7011613,15.14,BUNZL UK LTD T/A BUNZL CLEANING & HYGIENE SUPPLIES,027747,Commissioning & Asset Management,Children's & Education Services,103,Supplies and Services,504,Equipment,5023,Revenue,CLEANING & JANITORIAL.CLEANING MATERIALS
29-JUN-2021,7011613,15.14,BUNZL UK LTD T/A BUNZL CLEANING & HYGIENE SUPPLIES,027747,Commissioning & Asset Management,Children's & Education Services,103,Supplies and Services,504,Equipment,5023,Revenue,CLEANING & JANITORIAL.CLEANING MATERIALS
29-JUN-2021,7011613,15.14,BUNZL UK LTD T/A BUNZL CLEANING & HYGIENE SUPPLIES,027747,Commissioning & Asset Management,Children's & Education Services,103,Supplies and Services,504,Equipment,5023,Revenue,CLEANING & JANITORIAL.CLEANING MATERIALS
29-JUN-2021,7011613,15.14,BUNZL UK LTD T/A BUNZL CLEANING & HYGIENE SUPPLIES,027747,Commissioning & Asset Management,Children's & Education Services,103,Supplies and Services,504,Equipment,5023,Revenue,CLEANING & JANITORIAL.CLEANING MATERIALS
29-JUN-2021,7011613,15.14,BUNZL UK LTD T/A BUNZL CLEANING & HYGIENE SUPPLIES,027747,Commissioning & Asset Management,Children's & Education Services,103,Supplies and Services,504,Equipment,5023,Revenue,CLEANING & JANITORIAL.CLEANING MATERIALS
29-JUN-2021,7011613,15.14,BUNZL UK LTD T/A BUNZL CLEANING & HYGIENE SUPPLIES,027747,Commissioning & Asset Management,Children's & Education Services,103,Supplies and Services,504,Equipment,5023,Revenue,CLEANING & JANITORIAL.CLEANING MATERIALS
29-JUN-2021,7011613,15.6,BUNZL UK LTD T/A BUNZL CLEANING & HYGIENE SUPPLIES,027747,Commissioning & Asset Management,Children's & Education Services,103,Supplies and Services,504,Equipment,5023,Revenue,CLEANING & JANITORIAL.CLEANING MATERIALS
29-JUN-2021,7011613,15.64,BUNZL UK LTD T/A BUNZL CLEANING & HYGIENE SUPPLIES,027747,Commissioning & Asset Management,Children's & Education Services,103,Supplies and Services,504,Equipment,5023,Revenue,CLEANING & JANITORIAL.CLEANING MATERIALS
29-JUN-2021,7011613,15.64,BUNZL UK LTD T/A BUNZL CLEANING & HYGIENE SUPPLIES,027747,Commissioning & Asset Management,Children's & Education Services,103,Supplies and Services,504,Equipment,5023,Revenue,CLEANING & JANITORIAL.CLEANING MATERIALS
29-JUN-2021,7011613,15.64,BUNZL UK LTD T/A BUNZL CLEANING & HYGIENE SUPPLIES,027747,Commissioning & Asset Management,Children's & Education Services,103,Supplies and Services,504,Equipment,5023,Revenue,CLEANING & JANITORIAL.CLEANING MATERIALS
29-JUN-2021,7011613,15.64,BUNZL UK LTD T/A BUNZL CLEANING & HYGIENE SUPPLIES,027747,Commissioning & Asset Management,Children's & Education Services,103,Supplies and Services,504,Equipment,5023,Revenue,CLEANING & JANITORIAL.CLEANING MATERIALS
29-JUN-2021,7011613,15.64,BUNZL UK LTD T/A BUNZL CLEANING & HYGIENE SUPPLIES,027747,Commissioning & Asset Management,Children's & Education Services,103,Supplies and Services,504,Equipment,5023,Revenue,CLEANING & JANITORIAL.CLEANING MATERIALS
29-JUN-2021,7011613,15.64,BUNZL UK LTD T/A BUNZL CLEANING & HYGIENE SUPPLIES,027747,Commissioning & Asset Management,Children's & Education Services,103,Supplies and Services,504,Equipment,5023,Revenue,CLEANING & JANITORIAL.CLEANING MATERIALS
29-JUN-2021,7011613,15.64,BUNZL UK LTD T/A BUNZL CLEANING & HYGIENE SUPPLIES,027747,Commissioning & Asset Management,Children's & Education Services,103,Supplies and Services,504,Equipment,5023,Revenue,CLEANING & JANITORIAL.CLEANING MATERIALS
29-JUN-2021,7011613,15.64,BUNZL UK LTD T/A BUNZL CLEANING & HYGIENE SUPPLIES,027747,Commissioning & Asset Management,Children's & Education Services,103,Supplies and Services,504,Equipment,5023,Revenue,CLEANING & JANITORIAL.CLEANING MATERIALS
29-JUN-2021,7011613,15.64,BUNZL UK LTD T/A BUNZL CLEANING & HYGIENE SUPPLIES,027747,Commissioning & Asset Management,Children's & Education Services,103,Supplies and Services,504,Equipment,5023,Revenue,CLEANING & JANITORIAL.CLEANING MATERIALS
29-JUN-2021,7011613,15.64,BUNZL UK LTD T/A BUNZL CLEANING & HYGIENE SUPPLIES,027747,Commissioning & Asset Management,Children's & Education Services,103,Supplies and Services,504,Equipment,5023,Revenue,CLEANING & JANITORIAL.CLEANING MATERIALS
29-JUN-2021,7011613,15.64,BUNZL UK LTD T/A BUNZL CLEANING & HYGIENE SUPPLIES,027747,Commissioning & Asset Management,Children's & Education Services,103,Supplies and Services,504,Equipment,5023,Revenue,CLEANING & JANITORIAL.CLEANING MATERIALS
29-JUN-2021,7011613,15.76,BUNZL UK LTD T/A BUNZL CLEANING & HYGIENE SUPPLIES,027747,Commissioning & Asset Management,Children's & Education Services,103,Supplies and Services,504,Equipment,5023,Revenue,CLEANING & JANITORIAL.CLEANING MATERIALS
29-JUN-2021,7011613,15.76,BUNZL UK LTD T/A BUNZL CLEANING & HYGIENE SUPPLIES,027747,Commissioning & Asset Management,Children's & Education Services,103,Supplies and Services,504,Equipment,5023,Revenue,CLEANING & JANITORIAL.CLEANING MATERIALS
29-JUN-2021,7011613,15.76,BUNZL UK LTD T/A BUNZL CLEANING & HYGIENE SUPPLIES,027747,Commissioning & Asset Management,Children's & Education Services,103,Supplies and Services,504,Equipment,5023,Revenue,CLEANING & JANITORIAL.CLEANING MATERIALS
29-JUN-2021,7011613,15.76,BUNZL UK LTD T/A BUNZL CLEANING & HYGIENE SUPPLIES,027747,Commissioning & Asset Management,Children's & Education Services,103,Supplies and Services,504,Equipment,5023,Revenue,CLEANING & JANITORIAL.CLEANING MATERIALS
29-JUN-2021,7011613,15.8,BUNZL UK LTD T/A BUNZL CLEANING & HYGIENE SUPPLIES,027747,Commissioning & Asset Management,Children's & Education Services,103,Supplies and Services,504,Equipment,5023,Revenue,CLEANING & JANITORIAL.CLEANING MATERIALS
29-JUN-2021,7011613,15.8,BUNZL UK LTD T/A BUNZL CLEANING & HYGIENE SUPPLIES,027747,Commissioning & Asset Management,Children's & Education Services,103,Supplies and Services,504,Equipment,5023,Revenue,CLEANING & JANITORIAL.CLEANING MATERIALS
29-JUN-2021,7011613,15.8,BUNZL UK LTD T/A BUNZL CLEANING & HYGIENE SUPPLIES,027747,Commissioning & Asset Management,Children's & Education Services,103,Supplies and Services,504,Equipment,5023,Revenue,CLEANING & JANITORIAL.CLEANING MATERIALS
29-JUN-2021,7011613,15.8,BUNZL UK LTD T/A BUNZL CLEANING & HYGIENE SUPPLIES,027747,Commissioning & Asset Management,Children's & Education Services,103,Supplies and Services,504,Equipment,5023,Revenue,CLEANING & JANITORIAL.CLEANING MATERIALS
29-JUN-2021,7011613,15.8,BUNZL UK LTD T/A BUNZL CLEANING & HYGIENE SUPPLIES,027747,Commissioning & Asset Management,Children's & Education Services,103,Supplies and Services,504,Equipment,5023,Revenue,CLEANING & JANITORIAL.CLEANING MATERIALS
29-JUN-2021,7011613,15.8,BUNZL UK LTD T/A BUNZL CLEANING & HYGIENE SUPPLIES,027747,Commissioning & Asset Management,Children's & Education Services,103,Supplies and Services,504,Equipment,5023,Revenue,CLEANING & JANITORIAL.CLEANING MATERIALS
29-JUN-2021,7011613,15.8,BUNZL UK LTD T/A BUNZL CLEANING & HYGIENE SUPPLIES,027747,Commissioning & Asset Management,Children's & Education Services,103,Supplies and Services,504,Equipment,5023,Revenue,CLEANING & JANITORIAL.CLEANING MATERIALS
29-JUN-2021,7011613,15.8,BUNZL UK LTD T/A BUNZL CLEANING & HYGIENE SUPPLIES,027747,Commissioning & Asset Management,Children's & Education Services,103,Supplies and Services,504,Equipment,5023,Revenue,CLEANING & JANITORIAL.CLEANING MATERIALS
29-JUN-2021,7011613,15.8,BUNZL UK LTD T/A BUNZL CLEANING & HYGIENE SUPPLIES,027747,Commissioning & Asset Management,Children's & Education Services,103,Supplies and Services,504,Equipment,5023,Revenue,CLEANING & JANITORIAL.CLEANING MATERIALS
29-JUN-2021,7011613,15.8,BUNZL UK LTD T/A BUNZL CLEANING & HYGIENE SUPPLIES,027747,Commissioning & Asset Management,Children's & Education Services,103,Supplies and Services,504,Equipment,5023,Revenue,CLEANING & JANITORIAL.CLEANING MATERIALS
29-JUN-2021,7011613,15.8,BUNZL UK LTD T/A BUNZL CLEANING & HYGIENE SUPPLIES,027747,Commissioning & Asset Management,Children's & Education Services,103,Supplies and Services,504,Equipment,5023,Revenue,CLEANING & JANITORIAL.CLEANING MATERIALS
29-JUN-2021,7011613,15.8,BUNZL UK LTD T/A BUNZL CLEANING & HYGIENE SUPPLIES,027747,Commissioning & Asset Management,Children's & Education Services,103,Supplies and Services,504,Equipment,5023,Revenue,CLEANING & JANITORIAL.CLEANING MATERIALS
29-JUN-2021,7011613,15.8,BUNZL UK LTD T/A BUNZL CLEANING & HYGIENE SUPPLIES,027747,Commissioning & Asset Management,Children's & Education Services,103,Supplies and Services,504,Equipment,5023,Revenue,CLEANING & JANITORIAL.CLEANING MATERIALS
29-JUN-2021,7011613,15.8,BUNZL UK LTD T/A BUNZL CLEANING & HYGIENE SUPPLIES,027747,Commissioning & Asset Management,Children's & Education Services,103,Supplies and Services,504,Equipment,5023,Revenue,CLEANING & JANITORIAL.CLEANING MATERIALS
29-JUN-2021,7011613,15.8,BUNZL UK LTD T/A BUNZL CLEANING & HYGIENE SUPPLIES,027747,Commissioning & Asset Management,Children's & Education Services,103,Supplies and Services,504,Equipment,5023,Revenue,CLEANING & JANITORIAL.CLEANING MATERIALS
29-JUN-2021,7011613,15.8,BUNZL UK LTD T/A BUNZL CLEANING & HYGIENE SUPPLIES,027747,Commissioning & Asset Management,Children's & Education Services,103,Supplies and Services,504,Equipment,5023,Revenue,CLEANING & JANITORIAL.CLEANING MATERIALS
29-JUN-2021,7011613,15.8,BUNZL UK LTD T/A BUNZL CLEANING & HYGIENE SUPPLIES,027747,Commissioning & Asset Management,Children's & Education Services,103,Supplies and Services,504,Equipment,5023,Revenue,CLEANING & JANITORIAL.CLEANING MATERIALS
29-JUN-2021,7011613,15.8,BUNZL UK LTD T/A BUNZL CLEANING & HYGIENE SUPPLIES,027747,Commissioning & Asset Management,Children's & Education Services,103,Supplies and Services,504,Equipment,5023,Revenue,CLEANING & JANITORIAL.CLEANING MATERIALS
29-JUN-2021,7011613,15.8,BUNZL UK LTD T/A BUNZL CLEANING & HYGIENE SUPPLIES,027747,Commissioning & Asset Management,Children's & Education Services,103,Supplies and Services,504,Equipment,5023,Revenue,CLEANING & JANITORIAL.CLEANING MATERIALS
29-JUN-2021,7011613,15.8,BUNZL UK LTD T/A BUNZL CLEANING & HYGIENE SUPPLIES,027747,Commissioning & Asset Management,Children's & Education Services,103,Supplies and Services,504,Equipment,5023,Revenue,CLEANING & JANITORIAL.CLEANING MATERIALS
29-JUN-2021,7011613,15.8,BUNZL UK LTD T/A BUNZL CLEANING & HYGIENE SUPPLIES,027747,Commissioning & Asset Management,Children's & Education Services,103,Supplies and Services,504,Equipment,5023,Revenue,CLEANING & JANITORIAL.CLEANING MATERIALS
29-JUN-2021,7011613,16.74,BUNZL UK LTD T/A BUNZL CLEANING & HYGIENE SUPPLIES,027747,Commissioning & Asset Management,Children's & Education Services,103,Supplies and Services,504,Equipment,5023,Revenue,CLEANING & JANITORIAL.CLEANING MATERIALS
29-JUN-2021,7011613,16.74,BUNZL UK LTD T/A BUNZL CLEANING & HYGIENE SUPPLIES,027747,Commissioning & Asset Management,Children's & Education Services,103,Supplies and Services,504,Equipment,5023,Revenue,CLEANING & JANITORIAL.CLEANING MATERIALS
29-JUN-2021,7011613,16.74,BUNZL UK LTD T/A BUNZL CLEANING & HYGIENE SUPPLIES,027747,Commissioning & Asset Management,Children's & Education Services,103,Supplies and Services,504,Equipment,5023,Revenue,CLEANING & JANITORIAL.CLEANING MATERIALS
29-JUN-2021,7011613,17.92,BUNZL UK LTD T/A BUNZL CLEANING & HYGIENE SUPPLIES,027747,Commissioning & Asset Management,Children's & Education Services,103,Supplies and Services,504,Equipment,5023,Revenue,CLEANING & JANITORIAL.CLEANING MATERIALS
29-JUN-2021,7011613,17.92,BUNZL UK LTD T/A BUNZL CLEANING & HYGIENE SUPPLIES,027747,Commissioning & Asset Management,Children's & Education Services,103,Supplies and Services,504,Equipment,5023,Revenue,CLEANING & JANITORIAL.CLEANING MATERIALS
29-JUN-2021,7011613,17.92,BUNZL UK LTD T/A BUNZL CLEANING & HYGIENE SUPPLIES,027747,Commissioning & Asset Management,Children's & Education Services,103,Supplies and Services,504,Equipment,5023,Revenue,CLEANING & JANITORIAL.CLEANING MATERIALS
29-JUN-2021,7011613,18,BUNZL UK LTD T/A BUNZL CLEANING & HYGIENE SUPPLIES,027747,Commissioning & Asset Management,Children's & Education Services,103,Supplies and Services,504,Equipment,5023,Revenue,CLEANING & JANITORIAL.CLEANING MATERIALS
29-JUN-2021,7011613,18,BUNZL UK LTD T/A BUNZL CLEANING & HYGIENE SUPPLIES,027747,Commissioning & Asset Management,Children's & Education Services,103,Supplies and Services,504,Equipment,5023,Revenue,CLEANING & JANITORIAL.CLEANING MATERIALS
29-JUN-2021,7011613,18,BUNZL UK LTD T/A BUNZL CLEANING & HYGIENE SUPPLIES,027747,Commissioning & Asset Management,Children's & Education Services,103,Supplies and Services,504,Equipment,5023,Revenue,CLEANING & JANITORIAL.CLEANING MATERIALS
29-JUN-2021,7011613,18,BUNZL UK LTD T/A BUNZL CLEANING & HYGIENE SUPPLIES,027747,Commissioning & Asset Management,Children's & Education Services,103,Supplies and Services,504,Equipment,5023,Revenue,CLEANING & JANITORIAL.CLEANING MATERIALS
29-JUN-2021,7011613,18,BUNZL UK LTD T/A BUNZL CLEANING & HYGIENE SUPPLIES,027747,Commissioning & Asset Management,Children's & Education Services,103,Supplies and Services,504,Equipment,5023,Revenue,CLEANING & JANITORIAL.CLEANING MATERIALS
29-JUN-2021,7011613,18,BUNZL UK LTD T/A BUNZL CLEANING & HYGIENE SUPPLIES,027747,Commissioning & Asset Management,Children's & Education Services,103,Supplies and Services,504,Equipment,5023,Revenue,CLEANING & JANITORIAL.CLEANING MATERIALS
29-JUN-2021,7011613,18,BUNZL UK LTD T/A BUNZL CLEANING & HYGIENE SUPPLIES,027747,Commissioning & Asset Management,Children's & Education Services,103,Supplies and Services,504,Equipment,5023,Revenue,CLEANING & JANITORIAL.CLEANING MATERIALS
29-JUN-2021,7011613,18,BUNZL UK LTD T/A BUNZL CLEANING & HYGIENE SUPPLIES,027747,Commissioning & Asset Management,Children's & Education Services,103,Supplies and Services,504,Equipment,5023,Revenue,CLEANING & JANITORIAL.CLEANING MATERIALS
29-JUN-2021,7011613,18,BUNZL UK LTD T/A BUNZL CLEANING & HYGIENE SUPPLIES,027747,Commissioning & Asset Management,Children's & Education Services,103,Supplies and Services,504,Equipment,5023,Revenue,CLEANING & JANITORIAL.CLEANING MATERIALS
29-JUN-2021,7011613,18,BUNZL UK LTD T/A BUNZL CLEANING & HYGIENE SUPPLIES,027747,Commissioning & Asset Management,Children's & Education Services,103,Supplies and Services,504,Equipment,5023,Revenue,CLEANING & JANITORIAL.CLEANING MATERIALS
29-JUN-2021,7011613,18,BUNZL UK LTD T/A BUNZL CLEANING & HYGIENE SUPPLIES,027747,Commissioning & Asset Management,Children's & Education Services,103,Supplies and Services,504,Equipment,5023,Revenue,CLEANING & JANITORIAL.CLEANING MATERIALS
29-JUN-2021,7011613,18,BUNZL UK LTD T/A BUNZL CLEANING & HYGIENE SUPPLIES,027747,Commissioning & Asset Management,Children's & Education Services,103,Supplies and Services,504,Equipment,5023,Revenue,CLEANING & JANITORIAL.CLEANING MATERIALS
29-JUN-2021,7011613,18,BUNZL UK LTD T/A BUNZL CLEANING & HYGIENE SUPPLIES,027747,Commissioning & Asset Management,Children's & Education Services,103,Supplies and Services,504,Equipment,5023,Revenue,CLEANING & JANITORIAL.CLEANING MATERIALS
29-JUN-2021,7011613,18,BUNZL UK LTD T/A BUNZL CLEANING & HYGIENE SUPPLIES,027747,Commissioning & Asset Management,Children's & Education Services,103,Supplies and Services,504,Equipment,5023,Revenue,CLEANING & JANITORIAL.CLEANING MATERIALS
29-JUN-2021,7011613,18,BUNZL UK LTD T/A BUNZL CLEANING & HYGIENE SUPPLIES,027747,Commissioning & Asset Management,Children's & Education Services,103,Supplies and Services,504,Equipment,5023,Revenue,CLEANING & JANITORIAL.CLEANING MATERIALS
29-JUN-2021,7011613,18,BUNZL UK LTD T/A BUNZL CLEANING & HYGIENE SUPPLIES,027747,Commissioning & Asset Management,Children's & Education Services,103,Supplies and Services,504,Equipment,5023,Revenue,CLEANING & JANITORIAL.CLEANING MATERIALS
29-JUN-2021,7011613,18.72,BUNZL UK LTD T/A BUNZL CLEANING & HYGIENE SUPPLIES,027747,Commissioning & Asset Management,Children's & Education Services,103,Supplies and Services,504,Equipment,5023,Revenue,CLEANING & JANITORIAL.CLEANING MATERIALS
29-JUN-2021,7011613,19.75,BUNZL UK LTD T/A BUNZL CLEANING & HYGIENE SUPPLIES,027747,Commissioning & Asset Management,Children's & Education Services,103,Supplies and Services,504,Equipment,5023,Revenue,CLEANING & JANITORIAL.CLEANING MATERIALS
29-JUN-2021,7011613,19.92,BUNZL UK LTD T/A BUNZL CLEANING & HYGIENE SUPPLIES,027747,Commissioning & Asset Management,Children's & Education Services,103,Supplies and Services,504,Equipment,5023,Revenue,CLEANING & JANITORIAL.CLEANING MATERIALS
29-JUN-2021,7011613,21.88,BUNZL UK LTD T/A BUNZL CLEANING & HYGIENE SUPPLIES,027747,Commissioning & Asset Management,Children's & Education Services,103,Supplies and Services,504,Equipment,5023,Revenue,CLEANING & JANITORIAL.CLEANING MATERIALS
29-JUN-2021,7011613,22.32,BUNZL UK LTD T/A BUNZL CLEANING & HYGIENE SUPPLIES,027747,Commissioning & Asset Management,Children's & Education Services,103,Supplies and Services,504,Equipment,5023,Revenue,CLEANING & JANITORIAL.CLEANING MATERIALS
29-JUN-2021,7011613,22.68,BUNZL UK LTD T/A BUNZL CLEANING & HYGIENE SUPPLIES,027747,Commissioning & Asset Management,Children's & Education Services,103,Supplies and Services,504,Equipment,5023,Revenue,CLEANING & JANITORIAL.CLEANING MATERIALS
29-JUN-2021,7011613,22.71,BUNZL UK LTD T/A BUNZL CLEANING & HYGIENE SUPPLIES,027747,Commissioning & Asset Management,Children's & Education Services,103,Supplies and Services,504,Equipment,5023,Revenue,CLEANING & JANITORIAL.CLEANING MATERIALS
29-JUN-2021,7011613,22.71,BUNZL UK LTD T/A BUNZL CLEANING & HYGIENE SUPPLIES,027747,Commissioning & Asset Management,Children's & Education Services,103,Supplies and Services,504,Equipment,5023,Revenue,CLEANING & JANITORIAL.CLEANING MATERIALS
29-JUN-2021,7011613,23.64,BUNZL UK LTD T/A BUNZL CLEANING & HYGIENE SUPPLIES,027747,Commissioning & Asset Management,Children's & Education Services,103,Supplies and Services,504,Equipment,5023,Revenue,CLEANING & JANITORIAL.CLEANING MATERIALS
29-JUN-2021,7011613,23.7,BUNZL UK LTD T/A BUNZL CLEANING & HYGIENE SUPPLIES,027747,Commissioning & Asset Management,Children's & Education Services,103,Supplies and Services,504,Equipment,5023,Revenue,CLEANING & JANITORIAL.CLEANING MATERIALS
29-JUN-2021,7011613,23.7,BUNZL UK LTD T/A BUNZL CLEANING & HYGIENE SUPPLIES,027747,Commissioning & Asset Management,Children's & Education Services,103,Supplies and Services,504,Equipment,5023,Revenue,CLEANING & JANITORIAL.CLEANING MATERIALS
29-JUN-2021,7011613,23.7,BUNZL UK LTD T/A BUNZL CLEANING & HYGIENE SUPPLIES,027747,Commissioning & Asset Management,Children's & Education Services,103,Supplies and Services,504,Equipment,5023,Revenue,CLEANING & JANITORIAL.CLEANING MATERIALS
29-JUN-2021,7011613,23.7,BUNZL UK LTD T/A BUNZL CLEANING & HYGIENE SUPPLIES,027747,Commissioning & Asset Management,Children's & Education Services,103,Supplies and Services,504,Equipment,5023,Revenue,CLEANING & JANITORIAL.CLEANING MATERIALS
29-JUN-2021,7011613,23.7,BUNZL UK LTD T/A BUNZL CLEANING & HYGIENE SUPPLIES,027747,Commissioning & Asset Management,Children's & Education Services,103,Supplies and Services,504,Equipment,5023,Revenue,CLEANING & JANITORIAL.CLEANING MATERIALS
29-JUN-2021,7011613,23.7,BUNZL UK LTD T/A BUNZL CLEANING & HYGIENE SUPPLIES,027747,Commissioning & Asset Management,Children's & Education Services,103,Supplies and Services,504,Equipment,5023,Revenue,CLEANING & JANITORIAL.CLEANING MATERIALS
29-JUN-2021,7011613,23.7,BUNZL UK LTD T/A BUNZL CLEANING & HYGIENE SUPPLIES,027747,Commissioning & Asset Management,Children's & Education Services,103,Supplies and Services,504,Equipment,5023,Revenue,CLEANING & JANITORIAL.CLEANING MATERIALS
29-JUN-2021,7011613,23.7,BUNZL UK LTD T/A BUNZL CLEANING & HYGIENE SUPPLIES,027747,Commissioning & Asset Management,Children's & Education Services,103,Supplies and Services,504,Equipment,5023,Revenue,CLEANING & JANITORIAL.CLEANING MATERIALS
29-JUN-2021,7011613,23.7,BUNZL UK LTD T/A BUNZL CLEANING & HYGIENE SUPPLIES,027747,Commissioning & Asset Management,Children's & Education Services,103,Supplies and Services,504,Equipment,5023,Revenue,CLEANING & JANITORIAL.CLEANING MATERIALS
29-JUN-2021,7011613,23.7,BUNZL UK LTD T/A BUNZL CLEANING & HYGIENE SUPPLIES,027747,Commissioning & Asset Management,Children's & Education Services,103,Supplies and Services,504,Equipment,5023,Revenue,CLEANING & JANITORIAL.CLEANING MATERIALS
29-JUN-2021,7011613,23.7,BUNZL UK LTD T/A BUNZL CLEANING & HYGIENE SUPPLIES,027747,Commissioning & Asset Management,Children's & Education Services,103,Supplies and Services,504,Equipment,5023,Revenue,CLEANING & JANITORIAL.CLEANING MATERIALS
29-JUN-2021,7011613,23.7,BUNZL UK LTD T/A BUNZL CLEANING & HYGIENE SUPPLIES,027747,Commissioning & Asset Management,Children's & Education Services,103,Supplies and Services,504,Equipment,5023,Revenue,CLEANING & JANITORIAL.CLEANING MATERIALS
29-JUN-2021,7011613,23.7,BUNZL UK LTD T/A BUNZL CLEANING & HYGIENE SUPPLIES,027747,Commissioning & Asset Management,Children's & Education Services,103,Supplies and Services,504,Equipment,5023,Revenue,CLEANING & JANITORIAL.CLEANING MATERIALS
29-JUN-2021,7011613,23.7,BUNZL UK LTD T/A BUNZL CLEANING & HYGIENE SUPPLIES,027747,Commissioning & Asset Management,Children's & Education Services,103,Supplies and Services,504,Equipment,5023,Revenue,CLEANING & JANITORIAL.CLEANING MATERIALS
29-JUN-2021,7011613,26.88,BUNZL UK LTD T/A BUNZL CLEANING & HYGIENE SUPPLIES,027747,Commissioning & Asset Management,Children's & Education Services,103,Supplies and Services,504,Equipment,5023,Revenue,CLEANING & JANITORIAL.CLEANING MATERIALS
29-JUN-2021,7011613,27,BUNZL UK LTD T/A BUNZL CLEANING & HYGIENE SUPPLIES,027747,Commissioning & Asset Management,Children's & Education Services,103,Supplies and Services,504,Equipment,5023,Revenue,CLEANING & JANITORIAL.CLEANING MATERIALS
29-JUN-2021,7011613,27,BUNZL UK LTD T/A BUNZL CLEANING & HYGIENE SUPPLIES,027747,Commissioning & Asset Management,Children's & Education Services,103,Supplies and Services,504,Equipment,5023,Revenue,CLEANING & JANITORIAL.CLEANING MATERIALS
29-JUN-2021,7011613,27,BUNZL UK LTD T/A BUNZL CLEANING & HYGIENE SUPPLIES,027747,Commissioning & Asset Management,Children's & Education Services,103,Supplies and Services,504,Equipment,5023,Revenue,CLEANING & JANITORIAL.CLEANING MATERIALS
29-JUN-2021,7011613,27,BUNZL UK LTD T/A BUNZL CLEANING & HYGIENE SUPPLIES,027747,Commissioning & Asset Management,Children's & Education Services,103,Supplies and Services,504,Equipment,5023,Revenue,CLEANING & JANITORIAL.CLEANING MATERIALS
29-JUN-2021,7011613,27,BUNZL UK LTD T/A BUNZL CLEANING & HYGIENE SUPPLIES,027747,Commissioning & Asset Management,Children's & Education Services,103,Supplies and Services,504,Equipment,5023,Revenue,CLEANING & JANITORIAL.CLEANING MATERIALS
29-JUN-2021,7011613,27.24,BUNZL UK LTD T/A BUNZL CLEANING & HYGIENE SUPPLIES,027747,Commissioning & Asset Management,Children's & Education Services,103,Supplies and Services,504,Equipment,5023,Revenue,CLEANING & JANITORIAL.CLEANING MATERIALS
29-JUN-2021,7011613,30.28,BUNZL UK LTD T/A BUNZL CLEANING & HYGIENE SUPPLIES,027747,Commissioning & Asset Management,Children's & Education Services,103,Supplies and Services,504,Equipment,5023,Revenue,CLEANING & JANITORIAL.CLEANING MATERIALS
29-JUN-2021,7011613,30.28,BUNZL UK LTD T/A BUNZL CLEANING & HYGIENE SUPPLIES,027747,Commissioning & Asset Management,Children's & Education Services,103,Supplies and Services,504,Equipment,5023,Revenue,CLEANING & JANITORIAL.CLEANING MATERIALS
29-JUN-2021,7011613,30.28,BUNZL UK LTD T/A BUNZL CLEANING & HYGIENE SUPPLIES,027747,Commissioning & Asset Management,Children's & Education Services,103,Supplies and Services,504,Equipment,5023,Revenue,CLEANING & JANITORIAL.CLEANING MATERIALS
29-JUN-2021,7011613,30.28,BUNZL UK LTD T/A BUNZL CLEANING & HYGIENE SUPPLIES,027747,Commissioning & Asset Management,Children's & Education Services,103,Supplies and Services,504,Equipment,5023,Revenue,CLEANING & JANITORIAL.CLEANING MATERIALS
29-JUN-2021,7011613,30.28,BUNZL UK LTD T/A BUNZL CLEANING & HYGIENE SUPPLIES,027747,Commissioning & Asset Management,Children's & Education Services,103,Supplies and Services,504,Equipment,5023,Revenue,CLEANING & JANITORIAL.CLEANING MATERIALS
29-JUN-2021,7011613,31.28,BUNZL UK LTD T/A BUNZL CLEANING & HYGIENE SUPPLIES,027747,Commissioning & Asset Management,Children's & Education Services,103,Supplies and Services,504,Equipment,5023,Revenue,CLEANING & JANITORIAL.CLEANING MATERIALS
29-JUN-2021,7011613,31.6,BUNZL UK LTD T/A BUNZL CLEANING & HYGIENE SUPPLIES,027747,Commissioning & Asset Management,Children's & Education Services,103,Supplies and Services,504,Equipment,5023,Revenue,CLEANING & JANITORIAL.CLEANING MATERIALS
29-JUN-2021,7011613,31.6,BUNZL UK LTD T/A BUNZL CLEANING & HYGIENE SUPPLIES,027747,Commissioning & Asset Management,Children's & Education Services,103,Supplies and Services,504,Equipment,5023,Revenue,CLEANING & JANITORIAL.CLEANING MATERIALS
29-JUN-2021,7011613,32.82,BUNZL UK LTD T/A BUNZL CLEANING & HYGIENE SUPPLIES,027747,Commissioning & Asset Management,Children's & Education Services,103,Supplies and Services,504,Equipment,5023,Revenue,CLEANING & JANITORIAL.CLEANING MATERIALS
29-JUN-2021,7011613,36,BUNZL UK LTD T/A BUNZL CLEANING & HYGIENE SUPPLIES,027747,Commissioning & Asset Management,Children's & Education Services,103,Supplies and Services,504,Equipment,5023,Revenue,CLEANING & JANITORIAL.CLEANING MATERIALS
29-JUN-2021,7011613,36,BUNZL UK LTD T/A BUNZL CLEANING & HYGIENE SUPPLIES,027747,Commissioning & Asset Management,Children's & Education Services,103,Supplies and Services,504,Equipment,5023,Revenue,CLEANING & JANITORIAL.CLEANING MATERIALS
29-JUN-2021,7011613,36,BUNZL UK LTD T/A BUNZL CLEANING & HYGIENE SUPPLIES,027747,Commissioning & Asset Management,Children's & Education Services,103,Supplies and Services,504,Equipment,5023,Revenue,CLEANING & JANITORIAL.CLEANING MATERIALS
29-JUN-2021,7011613,36,BUNZL UK LTD T/A BUNZL CLEANING & HYGIENE SUPPLIES,027747,Commissioning & Asset Management,Children's & Education Services,103,Supplies and Services,504,Equipment,5023,Revenue,CLEANING & JANITORIAL.CLEANING MATERIALS
29-JUN-2021,7011613,36,BUNZL UK LTD T/A BUNZL CLEANING & HYGIENE SUPPLIES,027747,Commissioning & Asset Management,Children's & Education Services,103,Supplies and Services,504,Equipment,5023,Revenue,CLEANING & JANITORIAL.CLEANING MATERIALS
29-JUN-2021,7011613,36,BUNZL UK LTD T/A BUNZL CLEANING & HYGIENE SUPPLIES,027747,Commissioning & Asset Management,Children's & Education Services,103,Supplies and Services,504,Equipment,5023,Revenue,CLEANING & JANITORIAL.CLEANING MATERIALS
29-JUN-2021,7011613,36,BUNZL UK LTD T/A BUNZL CLEANING & HYGIENE SUPPLIES,027747,Commissioning & Asset Management,Children's & Education Services,103,Supplies and Services,504,Equipment,5023,Revenue,CLEANING & JANITORIAL.CLEANING MATERIALS
29-JUN-2021,7011613,39.38,BUNZL UK LTD T/A BUNZL CLEANING & HYGIENE SUPPLIES,027747,Commissioning & Asset Management,Children's & Education Services,103,Supplies and Services,504,Equipment,5023,Revenue,CLEANING & JANITORIAL.CLEANING MATERIALS
29-JUN-2021,7011613,39.5,BUNZL UK LTD T/A BUNZL CLEANING & HYGIENE SUPPLIES,027747,Commissioning & Asset Management,Children's & Education Services,103,Supplies and Services,504,Equipment,5023,Revenue,CLEANING & JANITORIAL.CLEANING MATERIALS
29-JUN-2021,7011613,39.5,BUNZL UK LTD T/A BUNZL CLEANING & HYGIENE SUPPLIES,027747,Commissioning & Asset Management,Children's & Education Services,103,Supplies and Services,504,Equipment,5023,Revenue,CLEANING & JANITORIAL.CLEANING MATERIALS
29-JUN-2021,7011613,45,BUNZL UK LTD T/A BUNZL CLEANING & HYGIENE SUPPLIES,027747,Commissioning & Asset Management,Children's & Education Services,103,Supplies and Services,504,Equipment,5023,Revenue,CLEANING & JANITORIAL.CLEANING MATERIALS
29-JUN-2021,7011613,45.42,BUNZL UK LTD T/A BUNZL CLEANING & HYGIENE SUPPLIES,027747,Commissioning & Asset Management,Children's & Education Services,103,Supplies and Services,504,Equipment,5023,Revenue,CLEANING & JANITORIAL.CLEANING MATERIALS
29-JUN-2021,7011613,47.4,BUNZL UK LTD T/A BUNZL CLEANING & HYGIENE SUPPLIES,027747,Commissioning & Asset Management,Children's & Education Services,103,Supplies and Services,504,Equipment,5023,Revenue,CLEANING & JANITORIAL.CLEANING MATERIALS
29-JUN-2021,7011613,54,BUNZL UK LTD T/A BUNZL CLEANING & HYGIENE SUPPLIES,027747,Commissioning & Asset Management,Children's & Education Services,103,Supplies and Services,504,Equipment,5023,Revenue,CLEANING & JANITORIAL.CLEANING MATERIALS
29-JUN-2021,7011613,57.97,BUNZL UK LTD T/A BUNZL CLEANING & HYGIENE SUPPLIES,027747,Commissioning & Asset Management,Children's & Education Services,103,Supplies and Services,504,Equipment,5023,Revenue,CLEANING & JANITORIAL.CLEANING MATERIALS
29-JUN-2021,7011613,57.97,BUNZL UK LTD T/A BUNZL CLEANING & HYGIENE SUPPLIES,027747,Commissioning & Asset Management,Children's & Education Services,103,Supplies and Services,504,Equipment,5023,Revenue,CLEANING & JANITORIAL.CLEANING MATERIALS
29-JUN-2021,7011613,57.97,BUNZL UK LTD T/A BUNZL CLEANING & HYGIENE SUPPLIES,027747,Commissioning & Asset Management,Children's & Education Services,103,Supplies and Services,504,Equipment,5023,Revenue,CLEANING & JANITORIAL.CLEANING MATERIALS
29-JUN-2021,7011613,57.97,BUNZL UK LTD T/A BUNZL CLEANING & HYGIENE SUPPLIES,027747,Commissioning & Asset Management,Children's & Education Services,103,Supplies and Services,504,Equipment,5023,Revenue,CLEANING & JANITORIAL.CLEANING MATERIALS
29-JUN-2021,7011613,60.56,BUNZL UK LTD T/A BUNZL CLEANING & HYGIENE SUPPLIES,027747,Commissioning & Asset Management,Children's & Education Services,103,Supplies and Services,504,Equipment,5023,Revenue,CLEANING & JANITORIAL.CLEANING MATERIALS
29-JUN-2021,7011613,60.96,BUNZL UK LTD T/A BUNZL CLEANING & HYGIENE SUPPLIES,027747,Commissioning & Asset Management,Children's & Education Services,103,Supplies and Services,504,Equipment,5023,Revenue,CLEANING & JANITORIAL.CLEANING MATERIALS
29-JUN-2021,7011613,66.71,BUNZL UK LTD T/A BUNZL CLEANING & HYGIENE SUPPLIES,027747,Commissioning & Asset Management,Children's & Education Services,103,Supplies and Services,504,Equipment,5023,Revenue,CLEANING & JANITORIAL.CLEANING MATERIALS
29-JUN-2021,7011613,66.96,BUNZL UK LTD T/A BUNZL CLEANING & HYGIENE SUPPLIES,027747,Commissioning & Asset Management,Children's & Education Services,103,Supplies and Services,504,Equipment,5023,Revenue,CLEANING & JANITORIAL.CLEANING MATERIALS
29-JUN-2021,7011613,108.86,BUNZL UK LTD T/A BUNZL CLEANING & HYGIENE SUPPLIES,027747,Commissioning & Asset Management,Children's & Education Services,103,Supplies and Services,504,Equipment,5023,Revenue,CLEANING & JANITORIAL.CLEANING MATERIALS
29-JUN-2021,7011613,108.86,BUNZL UK LTD T/A BUNZL CLEANING & HYGIENE SUPPLIES,027747,Commissioning & Asset Management,Children's & Education Services,103,Supplies and Services,504,Equipment,5023,Revenue,CLEANING & JANITORIAL.CLEANING MATERIALS
29-JUN-2021,7011613,108.86,BUNZL UK LTD T/A BUNZL CLEANING & HYGIENE SUPPLIES,027747,Commissioning & Asset Management,Children's & Education Services,103,Supplies and Services,504,Equipment,5023,Revenue,CLEANING & JANITORIAL.CLEANING MATERIALS
29-JUN-2021,7011613,108.86,BUNZL UK LTD T/A BUNZL CLEANING & HYGIENE SUPPLIES,027747,Commissioning & Asset Management,Children's & Education Services,103,Supplies and Services,504,Equipment,5023,Revenue,CLEANING & JANITORIAL.CLEANING MATERIALS
29-JUN-2021,7011613,108.86,BUNZL UK LTD T/A BUNZL CLEANING & HYGIENE SUPPLIES,027747,Commissioning & Asset Management,Children's & Education Services,103,Supplies and Services,504,Equipment,5023,Revenue,CLEANING & JANITORIAL.CLEANING MATERIALS
29-JUN-2021,7011613,416.67,BUNZL UK LTD T/A BUNZL CLEANING & HYGIENE SUPPLIES,027747,Commissioning & Asset Management,Children's & Education Services,103,Supplies and Services,504,Miscellaneous Expenses,5034,Revenue,CLEANING & JANITORIAL.CLEANING MATERIALS
29-JUN-2021,7011613,509.49,BUNZL UK LTD T/A BUNZL CLEANING & HYGIENE SUPPLIES,027747,Commissioning & Asset Management,Children's & Education Services,103,Supplies and Services,504,Equipment,5023,Revenue,CLEANING & JANITORIAL.CLEANING MATERIALS
29-JUN-2021,7011613,545.7,BUNZL UK LTD T/A BUNZL CLEANING & HYGIENE SUPPLIES,027747,Commissioning & Asset Management,Children's & Education Services,103,Supplies and Services,504,Miscellaneous Expenses,5034,Revenue,CLEANING & JANITORIAL.CLEANING MATERIALS
29-JUN-2021,7011614,32.38,KENILWORTH HOTEL,396858,"Environment, Housing & Leisure",Housing Services,108,Third Party Payments,505,Private Contractors,5042,Revenue,HUMAN RESOURCES.ACCOMMODATION
29-JUN-2021,7011614,32.38,KENILWORTH HOTEL,396858,"Environment, Housing & Leisure",Housing Services,108,Third Party Payments,505,Private Contractors,5042,Revenue,HUMAN RESOURCES.ACCOMMODATION
29-JUN-2021,7011614,32.38,KENILWORTH HOTEL,396858,"Environment, Housing & Leisure",Housing Services,108,Third Party Payments,505,Private Contractors,5042,Revenue,HUMAN RESOURCES.ACCOMMODATION
29-JUN-2021,7011614,32.38,KENILWORTH HOTEL,396858,"Environment, Housing & Leisure",Housing Services,108,Third Party Payments,505,Private Contractors,5042,Revenue,HUMAN RESOURCES.ACCOMMODATION
29-JUN-2021,7011614,32.38,KENILWORTH HOTEL,396858,"Environment, Housing & Leisure",Housing Services,108,Third Party Payments,505,Private Contractors,5042,Revenue,HUMAN RESOURCES.ACCOMMODATION
29-JUN-2021,7011614,32.38,KENILWORTH HOTEL,396858,"Environment, Housing & Leisure",Housing Services,108,Third Party Payments,505,Private Contractors,5042,Revenue,HUMAN RESOURCES.ACCOMMODATION
29-JUN-2021,7011614,32.38,KENILWORTH HOTEL,396858,"Environment, Housing & Leisure",Housing Services,108,Third Party Payments,505,Private Contractors,5042,Revenue,HUMAN RESOURCES.ACCOMMODATION
29-JUN-2021,7011614,32.38,KENILWORTH HOTEL,396858,"Environment, Housing & Leisure",Housing Services,108,Third Party Payments,505,Private Contractors,5042,Revenue,HUMAN RESOURCES.ACCOMMODATION
29-JUN-2021,7011614,32.38,KENILWORTH HOTEL,396858,"Environment, Housing & Leisure",Housing Services,108,Third Party Payments,505,Private Contractors,5042,Revenue,HUMAN RESOURCES.ACCOMMODATION
29-JUN-2021,7011614,32.38,KENILWORTH HOTEL,396858,"Environment, Housing & Leisure",Housing Services,108,Third Party Payments,505,Private Contractors,5042,Revenue,HUMAN RESOURCES.ACCOMMODATION
29-JUN-2021,7011614,32.38,KENILWORTH HOTEL,396858,"Environment, Housing & Leisure",Housing Services,108,Third Party Payments,505,Private Contractors,5042,Revenue,HUMAN RESOURCES.ACCOMMODATION
29-JUN-2021,7011614,32.38,KENILWORTH HOTEL,396858,"Environment, Housing & Leisure",Housing Services,108,Third Party Payments,505,Private Contractors,5042,Revenue,HUMAN RESOURCES.ACCOMMODATION
29-JUN-2021,7011614,32.38,KENILWORTH HOTEL,396858,"Environment, Housing & Leisure",Housing Services,108,Third Party Payments,505,Private Contractors,5042,Revenue,HUMAN RESOURCES.ACCOMMODATION
29-JUN-2021,7011614,32.38,KENILWORTH HOTEL,396858,"Environment, Housing & Leisure",Housing Services,108,Third Party Payments,505,Private Contractors,5042,Revenue,HUMAN RESOURCES.ACCOMMODATION
29-JUN-2021,7011614,32.38,KENILWORTH HOTEL,396858,"Environment, Housing & Leisure",Housing Services,108,Third Party Payments,505,Private Contractors,5042,Revenue,HUMAN RESOURCES.ACCOMMODATION
29-JUN-2021,7011614,32.38,KENILWORTH HOTEL,396858,"Environment, Housing & Leisure",Housing Services,108,Third Party Payments,505,Private Contractors,5042,Revenue,HUMAN RESOURCES.ACCOMMODATION
29-JUN-2021,7011614,32.38,KENILWORTH HOTEL,396858,"Environment, Housing & Leisure",Housing Services,108,Third Party Payments,505,Private Contractors,5042,Revenue,HUMAN RESOURCES.ACCOMMODATION
29-JUN-2021,7011614,32.38,KENILWORTH HOTEL,396858,"Environment, Housing & Leisure",Housing Services,108,Third Party Payments,505,Private Contractors,5042,Revenue,HUMAN RESOURCES.ACCOMMODATION
29-JUN-2021,7011614,32.38,KENILWORTH HOTEL,396858,"Environment, Housing & Leisure",Housing Services,108,Third Party Payments,505,Private Contractors,5042,Revenue,HUMAN RESOURCES.ACCOMMODATION
29-JUN-2021,7011614,32.38,KENILWORTH HOTEL,396858,"Environment, Housing & Leisure",Housing Services,108,Third Party Payments,505,Private Contractors,5042,Revenue,HUMAN RESOURCES.ACCOMMODATION
29-JUN-2021,7011614,32.38,KENILWORTH HOTEL,396858,"Environment, Housing & Leisure",Housing Services,108,Third Party Payments,505,Private Contractors,5042,Revenue,HUMAN RESOURCES.ACCOMMODATION
29-JUN-2021,7011614,32.38,KENILWORTH HOTEL,396858,"Environment, Housing & Leisure",Housing Services,108,Third Party Payments,505,Private Contractors,5042,Revenue,HUMAN RESOURCES.ACCOMMODATION
29-JUN-2021,7011614,32.38,KENILWORTH HOTEL,396858,"Environment, Housing & Leisure",Housing Services,108,Third Party Payments,505,Private Contractors,5042,Revenue,HUMAN RESOURCES.ACCOMMODATION
29-JUN-2021,7011614,32.38,KENILWORTH HOTEL,396858,"Environment, Housing & Leisure",Housing Services,108,Third Party Payments,505,Private Contractors,5042,Revenue,HUMAN RESOURCES.ACCOMMODATION
29-JUN-2021,7011614,32.38,KENILWORTH HOTEL,396858,"Environment, Housing & Leisure",Housing Services,108,Third Party Payments,505,Private Contractors,5042,Revenue,HUMAN RESOURCES.ACCOMMODATION
29-JUN-2021,7011614,32.38,KENILWORTH HOTEL,396858,Central Items,Planning Services ,110,Third Party Payments,505,Private Contractors,5042,Revenue,HUMAN RESOURCES.ACCOMMODATION
29-JUN-2021,7011614,32.39,KENILWORTH HOTEL,396858,Central Items,Planning Services ,110,Third Party Payments,505,Private Contractors,5042,Revenue,HUMAN RESOURCES.ACCOMMODATION
29-JUN-2021,7011614,37.14,KENILWORTH HOTEL,396858,"Environment, Housing & Leisure",Housing Services,108,Third Party Payments,505,Private Contractors,5042,Revenue,HUMAN RESOURCES.ACCOMMODATION
29-JUN-2021,7011614,37.14,KENILWORTH HOTEL,396858,"Environment, Housing & Leisure",Housing Services,108,Third Party Payments,505,Private Contractors,5042,Revenue,HUMAN RESOURCES.ACCOMMODATION
29-JUN-2021,7011614,37.14,KENILWORTH HOTEL,396858,"Environment, Housing & Leisure",Housing Services,108,Third Party Payments,505,Private Contractors,5042,Revenue,HUMAN RESOURCES.ACCOMMODATION
29-JUN-2021,7011614,37.14,KENILWORTH HOTEL,396858,"Environment, Housing & Leisure",Housing Services,108,Third Party Payments,505,Private Contractors,5042,Revenue,HUMAN RESOURCES.ACCOMMODATION
29-JUN-2021,7011614,37.15,KENILWORTH HOTEL,396858,"Environment, Housing & Leisure",Housing Services,108,Third Party Payments,505,Private Contractors,5042,Revenue,HUMAN RESOURCES.ACCOMMODATION
29-JUN-2021,7011614,97.14,KENILWORTH HOTEL,396858,"Environment, Housing & Leisure",Housing Services,108,Third Party Payments,505,Private Contractors,5042,Revenue,HUMAN RESOURCES.ACCOMMODATION
29-JUN-2021,7011614,97.14,KENILWORTH HOTEL,396858,"Environment, Housing & Leisure",Housing Services,108,Third Party Payments,505,Private Contractors,5042,Revenue,HUMAN RESOURCES.ACCOMMODATION
29-JUN-2021,7011614,97.14,KENILWORTH HOTEL,396858,"Environment, Housing & Leisure",Housing Services,108,Third Party Payments,505,Private Contractors,5042,Revenue,HUMAN RESOURCES.ACCOMMODATION
29-JUN-2021,7011614,97.14,KENILWORTH HOTEL,396858,Central Items,Planning Services ,110,Third Party Payments,505,Private Contractors,5042,Revenue,HUMAN RESOURCES.ACCOMMODATION
29-JUN-2021,7011614,97.15,KENILWORTH HOTEL,396858,"Environment, Housing & Leisure",Housing Services,108,Third Party Payments,505,Private Contractors,5042,Revenue,HUMAN RESOURCES.ACCOMMODATION
29-JUN-2021,7011614,97.15,KENILWORTH HOTEL,396858,"Environment, Housing & Leisure",Housing Services,108,Third Party Payments,505,Private Contractors,5042,Revenue,HUMAN RESOURCES.ACCOMMODATION
29-JUN-2021,7011614,129.52,KENILWORTH HOTEL,396858,"Environment, Housing & Leisure",Housing Services,108,Third Party Payments,505,Private Contractors,5042,Revenue,HUMAN RESOURCES.ACCOMMODATION
29-JUN-2021,7011614,161.9,KENILWORTH HOTEL,396858,"Environment, Housing & Leisure",Housing Services,108,Third Party Payments,505,Private Contractors,5042,Revenue,HUMAN RESOURCES.ACCOMMODATION
29-JUN-2021,7011614,388.57,KENILWORTH HOTEL,396858,"Environment, Housing & Leisure",Housing Services,108,Third Party Payments,505,Private Contractors,5042,Revenue,HUMAN RESOURCES.ACCOMMODATION
29-JUN-2021,7011615,89.02,BEAVER BUILDER,396851,"Health, Education, Care and Safeguarding",Children's & Education Services,103,Supplies and Services,504,Communications & Computing,5028,Revenue,ICT.SOFTWARE
29-JUN-2021,7011616,162.26,KARBON HOMES LTD,105505,"Health, Education, Care and Safeguarding",Children's & Education Services,103,Third Party Payments,505,Other Establishments,5041,Revenue,SOCIAL CARE.CARE SERVICES
29-JUN-2021,7011617,25,BOROUGH IT LTD,396489,Housing Property and Construction,Housing Services,108,Supplies and Services,504,Miscellaneous Expenses,5034,Revenue,ICT.SOFTWARE
29-JUN-2021,7011617,50,BOROUGH IT LTD,396489,Housing Property and Construction,Housing Services,108,Supplies and Services,504,Miscellaneous Expenses,5034,Revenue,ICT.SOFTWARE
29-JUN-2021,7011618,38.1,ALCATRAZ GUEST HOUSE,387483,"Environment, Housing & Leisure",Housing Services,108,Third Party Payments,505,Private Contractors,5042,Revenue,SOCIAL CARE.CARE SERVICES
29-JUN-2021,7011618,38.1,ALCATRAZ GUEST HOUSE,387483,"Environment, Housing & Leisure",Housing Services,108,Third Party Payments,505,Private Contractors,5042,Revenue,SOCIAL CARE.CARE SERVICES
29-JUN-2021,7011618,38.1,ALCATRAZ GUEST HOUSE,387483,"Environment, Housing & Leisure",Housing Services,108,Third Party Payments,505,Private Contractors,5042,Revenue,SOCIAL CARE.CARE SERVICES
29-JUN-2021,7011618,38.1,ALCATRAZ GUEST HOUSE,387483,Central Items,Planning Services ,110,Third Party Payments,505,Private Contractors,5042,Revenue,SOCIAL CARE.CARE SERVICES
29-JUN-2021,7011618,76.19,ALCATRAZ GUEST HOUSE,387483,"Environment, Housing & Leisure",Housing Services,108,Third Party Payments,505,Private Contractors,5042,Revenue,SOCIAL CARE.CARE SERVICES
29-JUN-2021,7011618,76.19,ALCATRAZ GUEST HOUSE,387483,"Environment, Housing & Leisure",Housing Services,108,Third Party Payments,505,Private Contractors,5042,Revenue,SOCIAL CARE.CARE SERVICES
29-JUN-2021,7011618,76.19,ALCATRAZ GUEST HOUSE,387483,"Environment, Housing & Leisure",Housing Services,108,Third Party Payments,505,Private Contractors,5042,Revenue,SOCIAL CARE.CARE SERVICES
29-JUN-2021,7011618,76.19,ALCATRAZ GUEST HOUSE,387483,"Environment, Housing & Leisure",Housing Services,108,Third Party Payments,505,Private Contractors,5042,Revenue,SOCIAL CARE.CARE SERVICES
29-JUN-2021,7011618,76.19,ALCATRAZ GUEST HOUSE,387483,"Environment, Housing & Leisure",Housing Services,108,Third Party Payments,505,Private Contractors,5042,Revenue,SOCIAL CARE.CARE SERVICES
29-JUN-2021,7011618,76.19,ALCATRAZ GUEST HOUSE,387483,"Environment, Housing & Leisure",Housing Services,108,Third Party Payments,505,Private Contractors,5042,Revenue,SOCIAL CARE.CARE SERVICES
29-JUN-2021,7011618,76.19,ALCATRAZ GUEST HOUSE,387483,Central Items,Planning Services ,110,Third Party Payments,505,Private Contractors,5042,Revenue,SOCIAL CARE.CARE SERVICES
29-JUN-2021,7011618,76.19,ALCATRAZ GUEST HOUSE,387483,Central Items,Planning Services ,110,Third Party Payments,505,Private Contractors,5042,Revenue,SOCIAL CARE.CARE SERVICES
29-JUN-2021,7011618,76.19,ALCATRAZ GUEST HOUSE,387483,Central Items,Planning Services ,110,Third Party Payments,505,Private Contractors,5042,Revenue,SOCIAL CARE.CARE SERVICES
29-JUN-2021,7011618,95.24,ALCATRAZ GUEST HOUSE,387483,"Environment, Housing & Leisure",Housing Services,108,Third Party Payments,505,Private Contractors,5042,Revenue,SOCIAL CARE.CARE SERVICES
29-JUN-2021,7011618,95.24,ALCATRAZ GUEST HOUSE,387483,Central Items,Planning Services ,110,Third Party Payments,505,Private Contractors,5042,Revenue,SOCIAL CARE.CARE SERVICES
29-JUN-2021,7011618,114.29,ALCATRAZ GUEST HOUSE,387483,"Environment, Housing & Leisure",Housing Services,108,Third Party Payments,505,Private Contractors,5042,Revenue,SOCIAL CARE.CARE SERVICES
29-JUN-2021,7011618,114.29,ALCATRAZ GUEST HOUSE,387483,"Environment, Housing & Leisure",Housing Services,108,Third Party Payments,505,Private Contractors,5042,Revenue,SOCIAL CARE.CARE SERVICES
29-JUN-2021,7011618,114.29,ALCATRAZ GUEST HOUSE,387483,"Environment, Housing & Leisure",Housing Services,108,Third Party Payments,505,Private Contractors,5042,Revenue,SOCIAL CARE.CARE SERVICES
29-JUN-2021,7011618,114.29,ALCATRAZ GUEST HOUSE,387483,"Environment, Housing & Leisure",Housing Services,108,Third Party Payments,505,Private Contractors,5042,Revenue,SOCIAL CARE.CARE SERVICES
29-JUN-2021,7011618,114.29,ALCATRAZ GUEST HOUSE,387483,"Environment, Housing & Leisure",Housing Services,108,Third Party Payments,505,Private Contractors,5042,Revenue,SOCIAL CARE.CARE SERVICES
29-JUN-2021,7011618,114.29,ALCATRAZ GUEST HOUSE,387483,"Environment, Housing & Leisure",Housing Services,108,Third Party Payments,505,Private Contractors,5042,Revenue,SOCIAL CARE.CARE SERVICES
29-JUN-2021,7011618,114.29,ALCATRAZ GUEST HOUSE,387483,"Environment, Housing & Leisure",Housing Services,108,Third Party Payments,505,Private Contractors,5042,Revenue,SOCIAL CARE.CARE SERVICES
29-JUN-2021,7011618,114.29,ALCATRAZ GUEST HOUSE,387483,Central Items,Planning Services ,110,Third Party Payments,505,Private Contractors,5042,Revenue,SOCIAL CARE.CARE SERVICES
29-JUN-2021,7011618,114.29,ALCATRAZ GUEST HOUSE,387483,Central Items,Planning Services ,110,Third Party Payments,505,Private Contractors,5042,Revenue,SOCIAL CARE.CARE SERVICES
29-JUN-2021,7011618,114.29,ALCATRAZ GUEST HOUSE,387483,Central Items,Planning Services ,110,Third Party Payments,505,Private Contractors,5042,Revenue,SOCIAL CARE.CARE SERVICES
29-JUN-2021,7011618,114.29,ALCATRAZ GUEST HOUSE,387483,Central Items,Planning Services ,110,Third Party Payments,505,Private Contractors,5042,Revenue,SOCIAL CARE.CARE SERVICES
29-JUN-2021,7011618,152.38,ALCATRAZ GUEST HOUSE,387483,"Environment, Housing & Leisure",Housing Services,108,Third Party Payments,505,Private Contractors,5042,Revenue,SOCIAL CARE.CARE SERVICES
29-JUN-2021,7011618,152.38,ALCATRAZ GUEST HOUSE,387483,Central Items,Planning Services ,110,Third Party Payments,505,Private Contractors,5042,Revenue,SOCIAL CARE.CARE SERVICES
29-JUN-2021,7011618,152.38,ALCATRAZ GUEST HOUSE,387483,Central Items,Planning Services ,110,Third Party Payments,505,Private Contractors,5042,Revenue,SOCIAL CARE.CARE SERVICES
29-JUN-2021,7011618,190.48,ALCATRAZ GUEST HOUSE,387483,"Environment, Housing & Leisure",Housing Services,108,Third Party Payments,505,Private Contractors,5042,Revenue,SOCIAL CARE.CARE SERVICES
29-JUN-2021,7011618,190.48,ALCATRAZ GUEST HOUSE,387483,"Environment, Housing & Leisure",Housing Services,108,Third Party Payments,505,Private Contractors,5042,Revenue,SOCIAL CARE.CARE SERVICES
29-JUN-2021,7011618,190.48,ALCATRAZ GUEST HOUSE,387483,Central Items,Planning Services ,110,Third Party Payments,505,Private Contractors,5042,Revenue,SOCIAL CARE.CARE SERVICES
29-JUN-2021,7011618,228.57,ALCATRAZ GUEST HOUSE,387483,"Environment, Housing & Leisure",Housing Services,108,Third Party Payments,505,Private Contractors,5042,Revenue,SOCIAL CARE.CARE SERVICES
29-JUN-2021,7011618,476.19,ALCATRAZ GUEST HOUSE,387483,"Environment, Housing & Leisure",Housing Services,108,Third Party Payments,505,Private Contractors,5042,Revenue,SOCIAL CARE.CARE SERVICES
29-JUN-2021,7011618,476.19,ALCATRAZ GUEST HOUSE,387483,"Environment, Housing & Leisure",Housing Services,108,Third Party Payments,505,Private Contractors,5042,Revenue,SOCIAL CARE.CARE SERVICES
29-JUN-2021,7011619,24.96,ADOBE  CREATIVE CLOUD,395909,"Health, Education, Care and Safeguarding",Children's & Education Services,103,Supplies and Services,504,Communications & Computing,5028,Revenue,ICT.SOFTWARE
29-JUN-2021,7011620,45.98,DIRECT HYGIENE.COM,395652,"Environment, Housing & Leisure",Cultural & Related Services,104,Supplies and Services,504,Equipment,5023,Revenue,CLEANING & JANITORIAL.WASHROOM SANITATION SERVICE
29-JUN-2021,7011621,119.98,MITIE GROUP PLC,339208,"Health, Education, Care and Safeguarding",Children's & Education Services,103,Supplies and Services,504,Equipment,5023,Revenue,FIRE & SECURITY.FIRE ALARMS
29-JUN-2021,7011622,9.52,UTILITA ENERGY LIMITED,395514,"Health, Education, Care and Safeguarding",Children's & Education Services,103,Third Party Payments,505,Other Establishments,5041,Revenue,GAS.GAS
29-JUN-2021,7011622,14.29,UTILITA ENERGY LIMITED,395514,"Health, Education, Care and Safeguarding",Children's & Education Services,103,Third Party Payments,505,Other Establishments,5041,Revenue,GAS.GAS
29-JUN-2021,7011622,14.29,UTILITA ENERGY LIMITED,395514,"Health, Education, Care and Safeguarding",Children's & Education Services,103,Third Party Payments,505,Other Establishments,5041,Revenue,GAS.GAS
29-JUN-2021,7011622,14.29,UTILITA ENERGY LIMITED,395514,"Health, Education, Care and Safeguarding",Children's & Education Services,103,Third Party Payments,505,Other Establishments,5041,Revenue,GAS.GAS
29-JUN-2021,7011622,14.29,UTILITA ENERGY LIMITED,395514,"Health, Education, Care and Safeguarding",Children's & Education Services,103,Third Party Payments,505,Other Establishments,5041,Revenue,GAS.GAS
29-JUN-2021,7011622,19.05,UTILITA ENERGY LIMITED,395514,"Health, Education, Care and Safeguarding",Children's & Education Services,103,Third Party Payments,505,Other Establishments,5041,Revenue,GAS.GAS
29-JUN-2021,7011622,40,UTILITA ENERGY LIMITED,395514,"Health, Education, Care and Safeguarding",Children's & Education Services,103,Third Party Payments,505,Other Establishments,5041,Revenue,GAS.GAS
29-JUN-2021,7011622,44.62,UTILITA ENERGY LIMITED,395514,Housing Operations,Housing Revenue Account,N/A,Premises-Related Expenditure,502,Energy Costs,5006,Revenue,GAS.GAS
29-JUN-2021,7011622,47.62,UTILITA ENERGY LIMITED,395514,"Health, Education, Care and Safeguarding",Children's & Education Services,103,Third Party Payments,505,Other Establishments,5041,Revenue,GAS.GAS
29-JUN-2021,7011622,50,UTILITA ENERGY LIMITED,395514,Housing Operations,Housing Revenue Account,N/A,Premises-Related Expenditure,502,Energy Costs,5006,Revenue,GAS.GAS
29-JUN-2021,7011623,10,VIMEO PLUS,395248,"Health, Education, Care and Safeguarding",Children's & Education Services,103,Supplies and Services,504,Communications & Computing,5028,Revenue,ICT.SOFTWARE
29-JUN-2021,7011624,-8.33,HOTEL ONBOOKING.COM,395243,"Health, Education, Care and Safeguarding",Children's & Education Services,103,Transfer Payments,506,School Children and Students,5046,Revenue,HUMAN RESOURCES.ACCOMMODATION
29-JUN-2021,7011624,203.41,HOTEL ONBOOKING.COM,395243,"Health, Education, Care and Safeguarding",Children's & Education Services,103,Transfer Payments,506,School Children and Students,5046,Revenue,HUMAN RESOURCES.ACCOMMODATION
29-JUN-2021,7011625,28.16,STAGECOACH SERVICES LIMITED,382363,Housing Operations,Housing Revenue Account,N/A,Supplies and Services,504,Expenses,5030,Revenue,HUMAN RESOURCES.TRAVEL & SUBSISTENCE
29-JUN-2021,7011626,7.99,UNLIMITED WEBHOSTING,394828,"Health, Education, Care and Safeguarding",Children's & Education Services,103,Supplies and Services,504,Communications & Computing,5028,Revenue,ICT.WEBSITE DEVELOPMENT
29-JUN-2021,7011627,112.67,MOJO HELPDESK,394317,"Health, Education, Care and Safeguarding",Children's & Education Services,103,Supplies and Services,504,Communications & Computing,5028,Revenue,ICT.SOFTWARE
29-JUN-2021,7011628,8.1,E H BOOTH & CO,394256,"Health, Education, Care and Safeguarding",Children's & Education Services,103,Supplies and Services,504,Equipment,5023,Revenue,HORTICULTURAL.SEEDS & PLANTS
29-JUN-2021,7011628,15.29,E H BOOTH & CO,394256,"Health, Education, Care and Safeguarding",Children's & Education Services,103,Supplies and Services,504,Equipment,5023,Revenue,HORTICULTURAL.SEEDS & PLANTS
29-JUN-2021,7011629,17.96,W BOYES & CO LTD,393691,"Health, Education, Care and Safeguarding",Children's & Education Services,103,Supplies and Services,504,Equipment,5023,Revenue,CLEANING & JANITORIAL.EQUIPMENT
29-JUN-2021,7011630,19.77,TOOLSTATION LTD,393689,"Environment, Housing & Leisure",Cultural & Related Services,104,Supplies and Services,504,Equipment,5023,Revenue,HORTICULTURAL.TOOLS & EQUIPMENT
29-JUN-2021,7011630,26.44,TOOLSTATION LTD,393689,"Environment, Housing & Leisure",Cultural & Related Services,104,Supplies and Services,504,Equipment,5023,Revenue,HORTICULTURAL.TOOLS & EQUIPMENT
29-JUN-2021,7011630,49.97,TOOLSTATION LTD,393689,"Environment, Housing & Leisure",Cultural & Related Services,104,Supplies and Services,504,Equipment,5023,Revenue,HORTICULTURAL.TOOLS & EQUIPMENT
29-JUN-2021,7011631,225.37,PALGRAVE LTD,393477,"Environment, Housing & Leisure",Cultural & Related Services,104,Supplies and Services,504,Equipment,5023,Revenue,EDUCATIONAL SUPPLIES.ARTS & CRAFTS
29-JUN-2021,7011632,5,MOORPARK CONVENIENCE,393460,Housing Operations,Housing Revenue Account,N/A,Premises-Related Expenditure,502,Energy Costs,5006,Revenue,CATERING.FOOD & BEVERAGES
29-JUN-2021,7011632,5,MOORPARK CONVENIENCE,393460,Housing Operations,Housing Revenue Account,N/A,Premises-Related Expenditure,502,Energy Costs,5006,Revenue,CATERING.FOOD & BEVERAGES
29-JUN-2021,7011632,10,MOORPARK CONVENIENCE,393460,Housing Operations,Housing Revenue Account,N/A,Premises-Related Expenditure,502,Energy Costs,5006,Revenue,CATERING.FOOD & BEVERAGES
29-JUN-2021,7011632,10,MOORPARK CONVENIENCE,393460,Housing Operations,Housing Revenue Account,N/A,Premises-Related Expenditure,502,Energy Costs,5006,Revenue,CATERING.FOOD & BEVERAGES
29-JUN-2021,7011632,10,MOORPARK CONVENIENCE,393460,Housing Operations,Housing Revenue Account,N/A,Premises-Related Expenditure,502,Energy Costs,5006,Revenue,CATERING.FOOD & BEVERAGES
29-JUN-2021,7011632,10,MOORPARK CONVENIENCE,393460,Housing Operations,Housing Revenue Account,N/A,Premises-Related Expenditure,502,Energy Costs,5006,Revenue,CATERING.FOOD & BEVERAGES
29-JUN-2021,7011632,15,MOORPARK CONVENIENCE,393460,Housing Operations,Housing Revenue Account,N/A,Premises-Related Expenditure,502,Energy Costs,5006,Revenue,CATERING.FOOD & BEVERAGES
29-JUN-2021,7011632,15,MOORPARK CONVENIENCE,393460,Housing Operations,Housing Revenue Account,N/A,Premises-Related Expenditure,502,Energy Costs,5006,Revenue,CATERING.FOOD & BEVERAGES
29-JUN-2021,7011632,15,MOORPARK CONVENIENCE,393460,Housing Operations,Housing Revenue Account,N/A,Premises-Related Expenditure,502,Energy Costs,5006,Revenue,CATERING.FOOD & BEVERAGES
29-JUN-2021,7011632,15,MOORPARK CONVENIENCE,393460,Housing Operations,Housing Revenue Account,N/A,Premises-Related Expenditure,502,Energy Costs,5006,Revenue,CATERING.FOOD & BEVERAGES
29-JUN-2021,7011632,15,MOORPARK CONVENIENCE,393460,Housing Operations,Housing Revenue Account,N/A,Premises-Related Expenditure,502,Energy Costs,5006,Revenue,CATERING.FOOD & BEVERAGES
29-JUN-2021,7011632,15,MOORPARK CONVENIENCE,393460,Housing Operations,Housing Revenue Account,N/A,Premises-Related Expenditure,502,Energy Costs,5006,Revenue,CATERING.FOOD & BEVERAGES
29-JUN-2021,7011632,15,MOORPARK CONVENIENCE,393460,Housing Operations,Housing Revenue Account,N/A,Premises-Related Expenditure,502,Energy Costs,5006,Revenue,CATERING.FOOD & BEVERAGES
29-JUN-2021,7011632,20,MOORPARK CONVENIENCE,393460,Housing Operations,Housing Revenue Account,N/A,Premises-Related Expenditure,502,Energy Costs,5006,Revenue,CATERING.FOOD & BEVERAGES
29-JUN-2021,7011632,50,MOORPARK CONVENIENCE,393460,Housing Operations,Housing Revenue Account,N/A,Premises-Related Expenditure,502,Energy Costs,5006,Revenue,CATERING.FOOD & BEVERAGES
29-JUN-2021,7011632,50,MOORPARK CONVENIENCE,393460,Housing Operations,Housing Revenue Account,N/A,Premises-Related Expenditure,502,Energy Costs,5006,Revenue,CATERING.FOOD & BEVERAGES
29-JUN-2021,7011632,50,MOORPARK CONVENIENCE,393460,Housing Operations,Housing Revenue Account,N/A,Premises-Related Expenditure,502,Energy Costs,5006,Revenue,CATERING.FOOD & BEVERAGES
29-JUN-2021,7011633,48,TAHDAH VERIFIED,393356,Resources,Children's & Education Services,103,Employees,501,Indirect Employee Expenses,5002,Revenue,ICT.SOFTWARE
29-JUN-2021,7011633,48,TAHDAH VERIFIED,393356,Resources,Children's & Education Services,103,Employees,501,Indirect Employee Expenses,5002,Revenue,ICT.SOFTWARE
29-JUN-2021,7011633,48,TAHDAH VERIFIED,393356,Resources,Children's & Education Services,103,Employees,501,Indirect Employee Expenses,5002,Revenue,ICT.SOFTWARE
29-JUN-2021,7011633,48,TAHDAH VERIFIED,393356,Resources,Children's & Education Services,103,Supplies and Services,504,Equipment,5023,Revenue,ICT.SOFTWARE
29-JUN-2021,7011634,10,NECS,393233,"Health, Education, Care and Safeguarding",Children's & Education Services,103,Premises-Related Expenditure,502,Energy Costs,5006,Revenue,CATERING.FOOD & BEVERAGES
29-JUN-2021,7011634,10,NECS,393233,"Health, Education, Care and Safeguarding",Children's & Education Services,103,Premises-Related Expenditure,502,Energy Costs,5006,Revenue,CATERING.FOOD & BEVERAGES
29-JUN-2021,7011635,0.01,FACEBOOK,393228,"Environment, Housing & Leisure",Cultural & Related Services,104,Supplies and Services,504,"Printing, Stationery and General Office Expenses",5026,Revenue,ADVERTISING & MARKETING.ADVERTISING
29-JUN-2021,7011635,7.29,FACEBOOK,393228,"Environment, Housing & Leisure",Cultural & Related Services,104,Supplies and Services,504,"Printing, Stationery and General Office Expenses",5026,Revenue,ADVERTISING & MARKETING.ADVERTISING
29-JUN-2021,7011636,10,BRITISH GAS BUSINESS,361360,Housing Operations,Housing Revenue Account,N/A,Premises-Related Expenditure,502,Energy Costs,5006,Revenue,GAS.GAS
29-JUN-2021,7011636,10,BRITISH GAS BUSINESS,361360,Housing Operations,Housing Revenue Account,N/A,Premises-Related Expenditure,502,Energy Costs,5006,Revenue,GAS.GAS
29-JUN-2021,7011636,14.29,BRITISH GAS BUSINESS,361360,"Health, Education, Care and Safeguarding",Children's & Education Services,103,Third Party Payments,505,Other Establishments,5041,Revenue,GAS.GAS
29-JUN-2021,7011636,15,BRITISH GAS BUSINESS,361360,Housing Operations,Housing Revenue Account,N/A,Premises-Related Expenditure,502,Energy Costs,5006,Revenue,GAS.GAS
29-JUN-2021,7011636,15,BRITISH GAS BUSINESS,361360,Housing Operations,Housing Revenue Account,N/A,Premises-Related Expenditure,502,Energy Costs,5006,Revenue,GAS.GAS
29-JUN-2021,7011636,20,BRITISH GAS BUSINESS,361360,Housing Operations,Housing Revenue Account,N/A,Premises-Related Expenditure,502,Energy Costs,5006,Revenue,GAS.GAS
29-JUN-2021,7011636,30,BRITISH GAS BUSINESS,361360,Housing Operations,Housing Revenue Account,N/A,Premises-Related Expenditure,502,Energy Costs,5006,Revenue,GAS.GAS
29-JUN-2021,7011636,30,BRITISH GAS BUSINESS,361360,Housing Operations,Housing Revenue Account,N/A,Premises-Related Expenditure,502,Energy Costs,5006,Revenue,GAS.GAS
29-JUN-2021,7011636,35,BRITISH GAS BUSINESS,361360,Housing Operations,Housing Revenue Account,N/A,Premises-Related Expenditure,502,Energy Costs,5006,Revenue,GAS.GAS
29-JUN-2021,7011636,40,BRITISH GAS BUSINESS,361360,Housing Operations,Housing Revenue Account,N/A,Premises-Related Expenditure,502,Energy Costs,5006,Revenue,GAS.GAS
29-JUN-2021,7011636,60,BRITISH GAS BUSINESS,361360,Housing Operations,Housing Revenue Account,N/A,Premises-Related Expenditure,502,Energy Costs,5006,Revenue,GAS.GAS
29-JUN-2021,7011637,160.63,EVENTBRITE INC,392195,"Health, Education, Care and Safeguarding",Children's & Education Services,103,Employees,501,Direct Employee Expenses,5001,Revenue,ADVERTISING & MARKETING.EVENTS & PROMOTIONS
29-JUN-2021,7011638,490,AO RETAIL LIMITED,392123,"Health, Education, Care and Safeguarding",Children's & Education Services,103,Third Party Payments,505,Other Establishments,5041,Revenue,CATERING.EQUIPMENT & UTENSILS
29-JUN-2021,7011639,206.74,ON A ROLL SANDWICH COMPANY,391893,Commissioning & Asset Management,Children's & Education Services,103,Supplies and Services,504,Equipment,5023,Revenue,CATERING.FOOD & BEVERAGES
29-JUN-2021,7011639,237.12,ON A ROLL SANDWICH COMPANY,391893,Commissioning & Asset Management,Children's & Education Services,103,Supplies and Services,504,Equipment,5023,Revenue,CATERING.FOOD & BEVERAGES
29-JUN-2021,7011639,242.1,ON A ROLL SANDWICH COMPANY,391893,Commissioning & Asset Management,Children's & Education Services,103,Supplies and Services,504,Equipment,5023,Revenue,CATERING.FOOD & BEVERAGES
29-JUN-2021,7011639,242.1,ON A ROLL SANDWICH COMPANY,391893,Commissioning & Asset Management,Children's & Education Services,103,Supplies and Services,504,Equipment,5023,Revenue,CATERING.FOOD & BEVERAGES
29-JUN-2021,7011639,243.7,ON A ROLL SANDWICH COMPANY,391893,Commissioning & Asset Management,Children's & Education Services,103,Supplies and Services,504,Equipment,5023,Revenue,CATERING.FOOD & BEVERAGES
29-JUN-2021,7011639,244.43,ON A ROLL SANDWICH COMPANY,391893,Commissioning & Asset Management,Children's & Education Services,103,Supplies and Services,504,Equipment,5023,Revenue,CATERING.FOOD & BEVERAGES
29-JUN-2021,7011639,283.55,ON A ROLL SANDWICH COMPANY,391893,Commissioning & Asset Management,Children's & Education Services,103,Supplies and Services,504,Equipment,5023,Revenue,CATERING.FOOD & BEVERAGES
29-JUN-2021,7011639,288.25,ON A ROLL SANDWICH COMPANY,391893,Commissioning & Asset Management,Children's & Education Services,103,Supplies and Services,504,Equipment,5023,Revenue,CATERING.FOOD & BEVERAGES
29-JUN-2021,7011639,296.85,ON A ROLL SANDWICH COMPANY,391893,Commissioning & Asset Management,Children's & Education Services,103,Supplies and Services,504,Equipment,5023,Revenue,CATERING.FOOD & BEVERAGES
29-JUN-2021,7011639,298.8,ON A ROLL SANDWICH COMPANY,391893,Commissioning & Asset Management,Children's & Education Services,103,Supplies and Services,504,Equipment,5023,Revenue,CATERING.FOOD & BEVERAGES
29-JUN-2021,7011639,310.9,ON A ROLL SANDWICH COMPANY,391893,Commissioning & Asset Management,Children's & Education Services,103,Supplies and Services,504,Equipment,5023,Revenue,CATERING.FOOD & BEVERAGES
29-JUN-2021,7011639,348.6,ON A ROLL SANDWICH COMPANY,391893,Commissioning & Asset Management,Children's & Education Services,103,Supplies and Services,504,Equipment,5023,Revenue,CATERING.FOOD & BEVERAGES
29-JUN-2021,7011639,348.6,ON A ROLL SANDWICH COMPANY,391893,Commissioning & Asset Management,Children's & Education Services,103,Supplies and Services,504,Equipment,5023,Revenue,CATERING.FOOD & BEVERAGES
29-JUN-2021,7011639,348.6,ON A ROLL SANDWICH COMPANY,391893,Commissioning & Asset Management,Children's & Education Services,103,Supplies and Services,504,Equipment,5023,Revenue,CATERING.FOOD & BEVERAGES
29-JUN-2021,7011639,353.6,ON A ROLL SANDWICH COMPANY,391893,Commissioning & Asset Management,Children's & Education Services,103,Supplies and Services,504,Equipment,5023,Revenue,CATERING.FOOD & BEVERAGES
29-JUN-2021,7011639,373.5,ON A ROLL SANDWICH COMPANY,391893,Commissioning & Asset Management,Children's & Education Services,103,Supplies and Services,504,Equipment,5023,Revenue,CATERING.FOOD & BEVERAGES
29-JUN-2021,7011639,380.59,ON A ROLL SANDWICH COMPANY,391893,Commissioning & Asset Management,Children's & Education Services,103,Supplies and Services,504,Equipment,5023,Revenue,CATERING.FOOD & BEVERAGES
29-JUN-2021,7011639,424.1,ON A ROLL SANDWICH COMPANY,391893,Commissioning & Asset Management,Children's & Education Services,103,Supplies and Services,504,Equipment,5023,Revenue,CATERING.FOOD & BEVERAGES
29-JUN-2021,7011639,509.74,ON A ROLL SANDWICH COMPANY,391893,Commissioning & Asset Management,Children's & Education Services,103,Supplies and Services,504,Equipment,5023,Revenue,CATERING.FOOD & BEVERAGES
29-JUN-2021,7011639,545.88,ON A ROLL SANDWICH COMPANY,391893,Commissioning & Asset Management,Children's & Education Services,103,Supplies and Services,504,Equipment,5023,Revenue,CATERING.FOOD & BEVERAGES
29-JUN-2021,7011639,561.4,ON A ROLL SANDWICH COMPANY,391893,Commissioning & Asset Management,Children's & Education Services,103,Supplies and Services,504,Equipment,5023,Revenue,CATERING.FOOD & BEVERAGES
29-JUN-2021,7011639,566.9,ON A ROLL SANDWICH COMPANY,391893,Commissioning & Asset Management,Children's & Education Services,103,Supplies and Services,504,Equipment,5023,Revenue,CATERING.FOOD & BEVERAGES
29-JUN-2021,7011639,568.87,ON A ROLL SANDWICH COMPANY,391893,Commissioning & Asset Management,Children's & Education Services,103,Supplies and Services,504,Equipment,5023,Revenue,CATERING.FOOD & BEVERAGES
29-JUN-2021,7011639,586.11,ON A ROLL SANDWICH COMPANY,391893,Commissioning & Asset Management,Children's & Education Services,103,Supplies and Services,504,Equipment,5023,Revenue,CATERING.FOOD & BEVERAGES
29-JUN-2021,7011639,587.64,ON A ROLL SANDWICH COMPANY,391893,Commissioning & Asset Management,Children's & Education Services,103,Supplies and Services,504,Equipment,5023,Revenue,CATERING.FOOD & BEVERAGES
29-JUN-2021,7011639,600.96,ON A ROLL SANDWICH COMPANY,391893,Commissioning & Asset Management,Children's & Education Services,103,Supplies and Services,504,Equipment,5023,Revenue,CATERING.FOOD & BEVERAGES
29-JUN-2021,7011639,620.2,ON A ROLL SANDWICH COMPANY,391893,Commissioning & Asset Management,Children's & Education Services,103,Supplies and Services,504,Equipment,5023,Revenue,CATERING.FOOD & BEVERAGES
29-JUN-2021,7011639,736.55,ON A ROLL SANDWICH COMPANY,391893,Commissioning & Asset Management,Children's & Education Services,103,Supplies and Services,504,Equipment,5023,Revenue,CATERING.FOOD & BEVERAGES
29-JUN-2021,7011639,862.6,ON A ROLL SANDWICH COMPANY,391893,Commissioning & Asset Management,Children's & Education Services,103,Supplies and Services,504,Equipment,5023,Revenue,CATERING.FOOD & BEVERAGES
29-JUN-2021,7011639,869.71,ON A ROLL SANDWICH COMPANY,391893,Commissioning & Asset Management,Children's & Education Services,103,Supplies and Services,504,Equipment,5023,Revenue,CATERING.FOOD & BEVERAGES
29-JUN-2021,7011639,876.31,ON A ROLL SANDWICH COMPANY,391893,Commissioning & Asset Management,Children's & Education Services,103,Supplies and Services,504,Equipment,5023,Revenue,CATERING.FOOD & BEVERAGES
29-JUN-2021,7011639,966.1,ON A ROLL SANDWICH COMPANY,391893,Commissioning & Asset Management,Children's & Education Services,103,Supplies and Services,504,Equipment,5023,Revenue,CATERING.FOOD & BEVERAGES
29-JUN-2021,7011639,1006.92,ON A ROLL SANDWICH COMPANY,391893,Commissioning & Asset Management,Children's & Education Services,103,Supplies and Services,504,Equipment,5023,Revenue,CATERING.FOOD & BEVERAGES
29-JUN-2021,7011639,1016.02,ON A ROLL SANDWICH COMPANY,391893,Commissioning & Asset Management,Children's & Education Services,103,Supplies and Services,504,Equipment,5023,Revenue,CATERING.FOOD & BEVERAGES
29-JUN-2021,7011639,1036.76,ON A ROLL SANDWICH COMPANY,391893,Commissioning & Asset Management,Children's & Education Services,103,Supplies and Services,504,Equipment,5023,Revenue,CATERING.FOOD & BEVERAGES
29-JUN-2021,7011639,1096.72,ON A ROLL SANDWICH COMPANY,391893,Commissioning & Asset Management,Children's & Education Services,103,Supplies and Services,504,Equipment,5023,Revenue,CATERING.FOOD & BEVERAGES
29-JUN-2021,7011639,1111.9,ON A ROLL SANDWICH COMPANY,391893,Commissioning & Asset Management,Children's & Education Services,103,Supplies and Services,504,Equipment,5023,Revenue,CATERING.FOOD & BEVERAGES
29-JUN-2021,7011639,1116.22,ON A ROLL SANDWICH COMPANY,391893,Commissioning & Asset Management,Children's & Education Services,103,Supplies and Services,504,Equipment,5023,Revenue,CATERING.FOOD & BEVERAGES
29-JUN-2021,7011639,1173.46,ON A ROLL SANDWICH COMPANY,391893,Commissioning & Asset Management,Children's & Education Services,103,Supplies and Services,504,Equipment,5023,Revenue,CATERING.FOOD & BEVERAGES
29-JUN-2021,7011639,1175.16,ON A ROLL SANDWICH COMPANY,391893,Commissioning & Asset Management,Children's & Education Services,103,Supplies and Services,504,Equipment,5023,Revenue,CATERING.FOOD & BEVERAGES
29-JUN-2021,7011639,1205.27,ON A ROLL SANDWICH COMPANY,391893,Commissioning & Asset Management,Children's & Education Services,103,Supplies and Services,504,Equipment,5023,Revenue,CATERING.FOOD & BEVERAGES
29-JUN-2021,7011639,1253.39,ON A ROLL SANDWICH COMPANY,391893,Commissioning & Asset Management,Children's & Education Services,103,Supplies and Services,504,Equipment,5023,Revenue,CATERING.FOOD & BEVERAGES
29-JUN-2021,7011639,1264.11,ON A ROLL SANDWICH COMPANY,391893,Commissioning & Asset Management,Children's & Education Services,103,Supplies and Services,504,Equipment,5023,Revenue,CATERING.FOOD & BEVERAGES
29-JUN-2021,7011639,1323.61,ON A ROLL SANDWICH COMPANY,391893,Commissioning & Asset Management,Children's & Education Services,103,Supplies and Services,504,Equipment,5023,Revenue,CATERING.FOOD & BEVERAGES
29-JUN-2021,7011639,1331.95,ON A ROLL SANDWICH COMPANY,391893,Commissioning & Asset Management,Children's & Education Services,103,Supplies and Services,504,Equipment,5023,Revenue,CATERING.FOOD & BEVERAGES
29-JUN-2021,7011639,1368.53,ON A ROLL SANDWICH COMPANY,391893,Commissioning & Asset Management,Children's & Education Services,103,Supplies and Services,504,Equipment,5023,Revenue,CATERING.FOOD & BEVERAGES
29-JUN-2021,7011639,1549.6,ON A ROLL SANDWICH COMPANY,391893,Commissioning & Asset Management,Children's & Education Services,103,Supplies and Services,504,Equipment,5023,Revenue,CATERING.FOOD & BEVERAGES
29-JUN-2021,7011640,6.5,PRODUCT SUPPORT AG,391921,"Health, Education, Care and Safeguarding",Children's & Education Services,103,Supplies and Services,504,Miscellaneous Expenses,5034,Revenue,ICT.MAINTENANCE & SUPPORT
29-JUN-2021,7011641,0.01,BOURNE LEISURE LTD,346426,"Health, Education, Care and Safeguarding",Children's & Education Services,103,Supplies and Services,504,Equipment,5023,Revenue,HUMAN RESOURCES.ACCOMMODATION
29-JUN-2021,7011641,69.47,BOURNE LEISURE LTD,346426,"Health, Education, Care and Safeguarding",Children's & Education Services,103,Supplies and Services,504,Equipment,5023,Revenue,HUMAN RESOURCES.ACCOMMODATION
29-JUN-2021,7011642,64.17,DUNELM LTD,391723,"Health, Education, Care and Safeguarding",Children's & Education Services,103,Third Party Payments,505,Other Establishments,5041,Revenue,FURNITURE.SOFT FURNISHINGS
29-JUN-2021,7011642,138.33,DUNELM LTD,391723,"Health, Education, Care and Safeguarding",Children's & Education Services,103,Third Party Payments,505,Other Establishments,5041,Revenue,FURNITURE.SOFT FURNISHINGS
29-JUN-2021,7011643,8.67,ALDI STORES LTD,391717,"Health, Education, Care and Safeguarding",Children's & Education Services,103,Supplies and Services,504,Expenses,5030,Revenue,CATERING.FOOD & BEVERAGES
29-JUN-2021,7011643,20,ALDI STORES LTD,391717,"Health, Education, Care and Safeguarding",Children's & Education Services,103,Third Party Payments,505,Other Establishments,5041,Revenue,CATERING.FOOD & BEVERAGES
29-JUN-2021,7011643,20,ALDI STORES LTD,391717,"Health, Education, Care and Safeguarding",Children's & Education Services,103,Third Party Payments,505,Other Establishments,5041,Revenue,CATERING.FOOD & BEVERAGES
29-JUN-2021,7011643,30,ALDI STORES LTD,391717,"Health, Education, Care and Safeguarding",Children's & Education Services,103,Third Party Payments,505,Other Establishments,5041,Revenue,CATERING.FOOD & BEVERAGES
29-JUN-2021,7011643,34.83,ALDI STORES LTD,391717,"Health, Education, Care and Safeguarding",Children's & Education Services,103,Third Party Payments,505,Other Establishments,5041,Revenue,CATERING.FOOD & BEVERAGES
29-JUN-2021,7011643,42.27,ALDI STORES LTD,391717,"Health, Education, Care and Safeguarding",Children's & Education Services,103,Supplies and Services,504,Equipment,5023,Revenue,CATERING.FOOD & BEVERAGES
29-JUN-2021,7011643,49.99,ALDI STORES LTD,391717,"Health, Education, Care and Safeguarding",Children's & Education Services,103,Supplies and Services,504,Equipment,5023,Revenue,CATERING.FOOD & BEVERAGES
29-JUN-2021,7011643,54.32,ALDI STORES LTD,391717,"Health, Education, Care and Safeguarding",Children's & Education Services,103,Third Party Payments,505,Other Establishments,5041,Revenue,CATERING.FOOD & BEVERAGES
29-JUN-2021,7011643,54.45,ALDI STORES LTD,391717,"Health, Education, Care and Safeguarding",Children's & Education Services,103,Supplies and Services,504,Equipment,5023,Revenue,CATERING.FOOD & BEVERAGES
29-JUN-2021,7011643,59.45,ALDI STORES LTD,391717,"Health, Education, Care and Safeguarding",Children's & Education Services,103,Supplies and Services,504,Equipment,5023,Revenue,CATERING.FOOD & BEVERAGES
29-JUN-2021,7011643,60,ALDI STORES LTD,391717,Corporate Strategy,Children's & Education Services,103,Supplies and Services,504,Expenses,5030,Revenue,CATERING.FOOD & BEVERAGES
29-JUN-2021,7011643,74.04,ALDI STORES LTD,391717,"Health, Education, Care and Safeguarding",Children's & Education Services,103,Third Party Payments,505,Other Establishments,5041,Revenue,CATERING.FOOD & BEVERAGES
29-JUN-2021,7011643,365.5,ALDI STORES LTD,391717,Central Items,Planning Services ,110,Supplies and Services,504,Equipment,5023,Revenue,CATERING.FOOD & BEVERAGES
29-JUN-2021,7011644,45,TELEPHONE PAYMENT,391672,"Health, Education, Care and Safeguarding",Children's & Education Services,103,Third Party Payments,505,Other Establishments,5041,Revenue,FINANCIAL SERVICES.FINANCIAL SERVICES
29-JUN-2021,7011645,27.33,BOOKERECOMM,391464,"Environment, Housing & Leisure",Cultural & Related Services,104,Supplies and Services,504,Catering,5024,Revenue,NON INFLUENCIBLE.NON INFLUENCIBLE
29-JUN-2021,7011645,47.55,BOOKERECOMM,391464,"Environment, Housing & Leisure",Cultural & Related Services,104,Supplies and Services,504,Catering,5024,Revenue,NON INFLUENCIBLE.NON INFLUENCIBLE
29-JUN-2021,7011645,49.95,BOOKERECOMM,391464,"Environment, Housing & Leisure",Cultural & Related Services,104,Supplies and Services,504,Catering,5024,Revenue,NON INFLUENCIBLE.NON INFLUENCIBLE
29-JUN-2021,7011645,83.94,BOOKERECOMM,391464,"Environment, Housing & Leisure",Cultural & Related Services,104,Supplies and Services,504,Catering,5024,Revenue,NON INFLUENCIBLE.NON INFLUENCIBLE
29-JUN-2021,7011646,28.35,H&M,391479,"Health, Education, Care and Safeguarding",Children's & Education Services,103,Third Party Payments,505,Other Establishments,5041,Revenue,NON INFLUENCIBLE.NON INFLUENCIBLE
29-JUN-2021,7011647,79,CASH CONVERTERS,391466,"Health, Education, Care and Safeguarding",Children's & Education Services,103,Third Party Payments,505,Other Establishments,5041,Revenue,FINANCIAL SERVICES.FINANCIAL SERVICES
29-JUN-2021,7011648,24.99,BRITISH HEART FOUNDATION,276949,"Health, Education, Care and Safeguarding",Children's & Education Services,103,Supplies and Services,504,"Clothing, Uniforms and Laundry",5025,Revenue,NON INFLUENCIBLE.NON INFLUENCIBLE
29-JUN-2021,7011649,295,CRADLEWELL CURTAIN COM,391251,Housing Property and Construction,Housing Services,108,Supplies and Services,504,Equipment,5023,Revenue,FURNITURE.SOFT FURNISHINGS
29-JUN-2021,7011650,362.57,GIFTSTONES LTD T/A BRITISH FOSSILS,302516,"Environment, Housing & Leisure",Cultural & Related Services,104,Supplies and Services,504,Equipment,5023,Revenue,EDUCATIONAL SUPPLIES.ARTS & CRAFTS
29-JUN-2021,7011651,16,SCOTTISH & SOUTHERN ENERGY,382649,"Health, Education, Care and Safeguarding",Children's & Education Services,103,Third Party Payments,505,Other Establishments,5041,Revenue,ELECTRICITY.ELECTRICITY
29-JUN-2021,7011651,32,SCOTTISH & SOUTHERN ENERGY,382649,"Health, Education, Care and Safeguarding",Children's & Education Services,103,Third Party Payments,505,Other Establishments,5041,Revenue,ELECTRICITY.ELECTRICITY
29-JUN-2021,7011652,25.42,WILDFLOWER TURF LTD,390614,"Environment, Housing & Leisure",Environmental & Regulatory Services,105,Supplies and Services,504,Equipment,5023,Revenue,HORTICULTURAL.LANDSCAPING
29-JUN-2021,7011653,50,E.ON,376300,"Health, Education, Care and Safeguarding",Children's & Education Services,103,Third Party Payments,505,Other Establishments,5041,Revenue,ELECTRICITY.ELECTRICITY
29-JUN-2021,7011653,60,E.ON,376300,"Health, Education, Care and Safeguarding",Children's & Education Services,103,Third Party Payments,505,Other Establishments,5041,Revenue,ELECTRICITY.ELECTRICITY
29-JUN-2021,7011654,-62.88,R MANNERS & SONS LTD,013498,Commissioning & Asset Management,Children's & Education Services,103,Supplies and Services,504,Equipment,5023,Revenue,CATERING.FOOD & BEVERAGES
29-JUN-2021,7011654,-55.5,R MANNERS & SONS LTD,013498,Commissioning & Asset Management,Children's & Education Services,103,Supplies and Services,504,Equipment,5023,Revenue,CATERING.FOOD & BEVERAGES
29-JUN-2021,7011654,-51.8,R MANNERS & SONS LTD,013498,Commissioning & Asset Management,Children's & Education Services,103,Supplies and Services,504,Equipment,5023,Revenue,CATERING.FOOD & BEVERAGES
29-JUN-2021,7011654,-44.4,R MANNERS & SONS LTD,013498,Commissioning & Asset Management,Children's & Education Services,103,Supplies and Services,504,Equipment,5023,Revenue,CATERING.FOOD & BEVERAGES
29-JUN-2021,7011654,-44.12,R MANNERS & SONS LTD,013498,Commissioning & Asset Management,Children's & Education Services,103,Supplies and Services,504,Equipment,5023,Revenue,CATERING.FOOD & BEVERAGES
29-JUN-2021,7011654,-34.82,R MANNERS & SONS LTD,013498,Commissioning & Asset Management,Children's & Education Services,103,Supplies and Services,504,Equipment,5023,Revenue,CATERING.FOOD & BEVERAGES
29-JUN-2021,7011654,-29.88,R MANNERS & SONS LTD,013498,Commissioning & Asset Management,Children's & Education Services,103,Supplies and Services,504,Equipment,5023,Revenue,CATERING.FOOD & BEVERAGES
29-JUN-2021,7011654,-29.6,R MANNERS & SONS LTD,013498,Commissioning & Asset Management,Children's & Education Services,103,Supplies and Services,504,Equipment,5023,Revenue,CATERING.FOOD & BEVERAGES
29-JUN-2021,7011654,-25.9,R MANNERS & SONS LTD,013498,Commissioning & Asset Management,Children's & Education Services,103,Supplies and Services,504,Equipment,5023,Revenue,CATERING.FOOD & BEVERAGES
29-JUN-2021,7011654,-22.2,R MANNERS & SONS LTD,013498,Commissioning & Asset Management,Children's & Education Services,103,Supplies and Services,504,Equipment,5023,Revenue,CATERING.FOOD & BEVERAGES
29-JUN-2021,7011654,-22.2,R MANNERS & SONS LTD,013498,Commissioning & Asset Management,Children's & Education Services,103,Supplies and Services,504,Equipment,5023,Revenue,CATERING.FOOD & BEVERAGES
29-JUN-2021,7011654,-22.2,R MANNERS & SONS LTD,013498,Commissioning & Asset Management,Children's & Education Services,103,Supplies and Services,504,Equipment,5023,Revenue,CATERING.FOOD & BEVERAGES
29-JUN-2021,7011654,-22.2,R MANNERS & SONS LTD,013498,Commissioning & Asset Management,Children's & Education Services,103,Supplies and Services,504,Equipment,5023,Revenue,CATERING.FOOD & BEVERAGES
29-JUN-2021,7011654,-22.2,R MANNERS & SONS LTD,013498,Commissioning & Asset Management,Children's & Education Services,103,Supplies and Services,504,Equipment,5023,Revenue,CATERING.FOOD & BEVERAGES
29-JUN-2021,7011654,-22.2,R MANNERS & SONS LTD,013498,Commissioning & Asset Management,Children's & Education Services,103,Supplies and Services,504,Equipment,5023,Revenue,CATERING.FOOD & BEVERAGES
29-JUN-2021,7011654,-22.2,R MANNERS & SONS LTD,013498,Commissioning & Asset Management,Children's & Education Services,103,Supplies and Services,504,Equipment,5023,Revenue,CATERING.FOOD & BEVERAGES
29-JUN-2021,7011654,-22.2,R MANNERS & SONS LTD,013498,Commissioning & Asset Management,Children's & Education Services,103,Supplies and Services,504,Equipment,5023,Revenue,CATERING.FOOD & BEVERAGES
29-JUN-2021,7011654,-22.2,R MANNERS & SONS LTD,013498,Commissioning & Asset Management,Children's & Education Services,103,Supplies and Services,504,Equipment,5023,Revenue,CATERING.FOOD & BEVERAGES
29-JUN-2021,7011654,-19.92,R MANNERS & SONS LTD,013498,Commissioning & Asset Management,Children's & Education Services,103,Supplies and Services,504,Equipment,5023,Revenue,CATERING.FOOD & BEVERAGES
29-JUN-2021,7011654,-19.92,R MANNERS & SONS LTD,013498,Commissioning & Asset Management,Children's & Education Services,103,Supplies and Services,504,Equipment,5023,Revenue,CATERING.FOOD & BEVERAGES
29-JUN-2021,7011654,-19.92,R MANNERS & SONS LTD,013498,Commissioning & Asset Management,Children's & Education Services,103,Supplies and Services,504,Equipment,5023,Revenue,CATERING.FOOD & BEVERAGES
29-JUN-2021,7011654,-14.8,R MANNERS & SONS LTD,013498,Commissioning & Asset Management,Children's & Education Services,103,Supplies and Services,504,Equipment,5023,Revenue,CATERING.FOOD & BEVERAGES
29-JUN-2021,7011654,-14.8,R MANNERS & SONS LTD,013498,Commissioning & Asset Management,Children's & Education Services,103,Supplies and Services,504,Equipment,5023,Revenue,CATERING.FOOD & BEVERAGES
29-JUN-2021,7011654,-14.8,R MANNERS & SONS LTD,013498,Commissioning & Asset Management,Children's & Education Services,103,Supplies and Services,504,Equipment,5023,Revenue,CATERING.FOOD & BEVERAGES
29-JUN-2021,7011654,-14.8,R MANNERS & SONS LTD,013498,Commissioning & Asset Management,Children's & Education Services,103,Supplies and Services,504,Equipment,5023,Revenue,CATERING.FOOD & BEVERAGES
29-JUN-2021,7011654,-14.8,R MANNERS & SONS LTD,013498,Commissioning & Asset Management,Children's & Education Services,103,Supplies and Services,504,Equipment,5023,Revenue,CATERING.FOOD & BEVERAGES
29-JUN-2021,7011654,-14.8,R MANNERS & SONS LTD,013498,Commissioning & Asset Management,Children's & Education Services,103,Supplies and Services,504,Equipment,5023,Revenue,CATERING.FOOD & BEVERAGES
29-JUN-2021,7011654,-14.8,R MANNERS & SONS LTD,013498,Commissioning & Asset Management,Children's & Education Services,103,Supplies and Services,504,Equipment,5023,Revenue,CATERING.FOOD & BEVERAGES
29-JUN-2021,7011654,-14.8,R MANNERS & SONS LTD,013498,Commissioning & Asset Management,Children's & Education Services,103,Supplies and Services,504,Equipment,5023,Revenue,CATERING.FOOD & BEVERAGES
29-JUN-2021,7011654,-14.8,R MANNERS & SONS LTD,013498,Commissioning & Asset Management,Children's & Education Services,103,Supplies and Services,504,Equipment,5023,Revenue,CATERING.FOOD & BEVERAGES
29-JUN-2021,7011654,-11.1,R MANNERS & SONS LTD,013498,Commissioning & Asset Management,Children's & Education Services,103,Supplies and Services,504,Equipment,5023,Revenue,CATERING.FOOD & BEVERAGES
29-JUN-2021,7011654,-11.1,R MANNERS & SONS LTD,013498,Commissioning & Asset Management,Children's & Education Services,103,Supplies and Services,504,Equipment,5023,Revenue,CATERING.FOOD & BEVERAGES
29-JUN-2021,7011654,-11.1,R MANNERS & SONS LTD,013498,Commissioning & Asset Management,Children's & Education Services,103,Supplies and Services,504,Equipment,5023,Revenue,CATERING.FOOD & BEVERAGES
29-JUN-2021,7011654,-7.4,R MANNERS & SONS LTD,013498,Commissioning & Asset Management,Children's & Education Services,103,Supplies and Services,504,Equipment,5023,Revenue,CATERING.FOOD & BEVERAGES
29-JUN-2021,7011654,-7.4,R MANNERS & SONS LTD,013498,Commissioning & Asset Management,Children's & Education Services,103,Supplies and Services,504,Equipment,5023,Revenue,CATERING.FOOD & BEVERAGES
29-JUN-2021,7011654,-7.4,R MANNERS & SONS LTD,013498,Commissioning & Asset Management,Children's & Education Services,103,Supplies and Services,504,Equipment,5023,Revenue,CATERING.FOOD & BEVERAGES
29-JUN-2021,7011654,-7.4,R MANNERS & SONS LTD,013498,Commissioning & Asset Management,Children's & Education Services,103,Supplies and Services,504,Equipment,5023,Revenue,CATERING.FOOD & BEVERAGES
29-JUN-2021,7011654,-7.4,R MANNERS & SONS LTD,013498,Commissioning & Asset Management,Children's & Education Services,103,Supplies and Services,504,Equipment,5023,Revenue,CATERING.FOOD & BEVERAGES
29-JUN-2021,7011654,-1.85,R MANNERS & SONS LTD,013498,Commissioning & Asset Management,Children's & Education Services,103,Supplies and Services,504,Equipment,5023,Revenue,CATERING.FOOD & BEVERAGES
29-JUN-2021,7011654,1.85,R MANNERS & SONS LTD,013498,Commissioning & Asset Management,Children's & Education Services,103,Supplies and Services,504,Equipment,5023,Revenue,CATERING.FOOD & BEVERAGES
29-JUN-2021,7011654,1.85,R MANNERS & SONS LTD,013498,Commissioning & Asset Management,Children's & Education Services,103,Supplies and Services,504,Equipment,5023,Revenue,CATERING.FOOD & BEVERAGES
29-JUN-2021,7011654,1.85,R MANNERS & SONS LTD,013498,Commissioning & Asset Management,Children's & Education Services,103,Supplies and Services,504,Equipment,5023,Revenue,CATERING.FOOD & BEVERAGES
29-JUN-2021,7011654,1.85,R MANNERS & SONS LTD,013498,Commissioning & Asset Management,Children's & Education Services,103,Supplies and Services,504,Equipment,5023,Revenue,CATERING.FOOD & BEVERAGES
29-JUN-2021,7011654,1.85,R MANNERS & SONS LTD,013498,Commissioning & Asset Management,Children's & Education Services,103,Supplies and Services,504,Equipment,5023,Revenue,CATERING.FOOD & BEVERAGES
29-JUN-2021,7011654,1.85,R MANNERS & SONS LTD,013498,Commissioning & Asset Management,Children's & Education Services,103,Supplies and Services,504,Equipment,5023,Revenue,CATERING.FOOD & BEVERAGES
29-JUN-2021,7011654,1.85,R MANNERS & SONS LTD,013498,Commissioning & Asset Management,Children's & Education Services,103,Supplies and Services,504,Equipment,5023,Revenue,CATERING.FOOD & BEVERAGES
29-JUN-2021,7011654,1.85,R MANNERS & SONS LTD,013498,Commissioning & Asset Management,Children's & Education Services,103,Supplies and Services,504,Equipment,5023,Revenue,CATERING.FOOD & BEVERAGES
29-JUN-2021,7011654,1.85,R MANNERS & SONS LTD,013498,Commissioning & Asset Management,Children's & Education Services,103,Supplies and Services,504,Equipment,5023,Revenue,CATERING.FOOD & BEVERAGES
29-JUN-2021,7011654,1.85,R MANNERS & SONS LTD,013498,Commissioning & Asset Management,Children's & Education Services,103,Supplies and Services,504,Equipment,5023,Revenue,CATERING.FOOD & BEVERAGES
29-JUN-2021,7011654,1.85,R MANNERS & SONS LTD,013498,Commissioning & Asset Management,Children's & Education Services,103,Supplies and Services,504,Equipment,5023,Revenue,CATERING.FOOD & BEVERAGES
29-JUN-2021,7011654,1.85,R MANNERS & SONS LTD,013498,Commissioning & Asset Management,Children's & Education Services,103,Supplies and Services,504,Equipment,5023,Revenue,CATERING.FOOD & BEVERAGES
29-JUN-2021,7011654,1.85,R MANNERS & SONS LTD,013498,Commissioning & Asset Management,Children's & Education Services,103,Supplies and Services,504,Equipment,5023,Revenue,CATERING.FOOD & BEVERAGES
29-JUN-2021,7011654,1.85,R MANNERS & SONS LTD,013498,Commissioning & Asset Management,Children's & Education Services,103,Supplies and Services,504,Equipment,5023,Revenue,CATERING.FOOD & BEVERAGES
29-JUN-2021,7011654,1.85,R MANNERS & SONS LTD,013498,Commissioning & Asset Management,Children's & Education Services,103,Supplies and Services,504,Equipment,5023,Revenue,CATERING.FOOD & BEVERAGES
29-JUN-2021,7011654,1.85,R MANNERS & SONS LTD,013498,Commissioning & Asset Management,Children's & Education Services,103,Supplies and Services,504,Equipment,5023,Revenue,CATERING.FOOD & BEVERAGES
29-JUN-2021,7011654,1.85,R MANNERS & SONS LTD,013498,Commissioning & Asset Management,Children's & Education Services,103,Supplies and Services,504,Equipment,5023,Revenue,CATERING.FOOD & BEVERAGES
29-JUN-2021,7011654,1.85,R MANNERS & SONS LTD,013498,Commissioning & Asset Management,Children's & Education Services,103,Supplies and Services,504,Equipment,5023,Revenue,CATERING.FOOD & BEVERAGES
29-JUN-2021,7011654,1.89,R MANNERS & SONS LTD,013498,Commissioning & Asset Management,Children's & Education Services,103,Supplies and Services,504,Equipment,5023,Revenue,CATERING.FOOD & BEVERAGES
29-JUN-2021,7011654,2.49,R MANNERS & SONS LTD,013498,Commissioning & Asset Management,Children's & Education Services,103,Supplies and Services,504,Equipment,5023,Revenue,CATERING.FOOD & BEVERAGES
29-JUN-2021,7011654,2.49,R MANNERS & SONS LTD,013498,Commissioning & Asset Management,Children's & Education Services,103,Supplies and Services,504,Equipment,5023,Revenue,CATERING.FOOD & BEVERAGES
29-JUN-2021,7011654,2.49,R MANNERS & SONS LTD,013498,Commissioning & Asset Management,Children's & Education Services,103,Supplies and Services,504,Equipment,5023,Revenue,CATERING.FOOD & BEVERAGES
29-JUN-2021,7011654,2.49,R MANNERS & SONS LTD,013498,Commissioning & Asset Management,Children's & Education Services,103,Supplies and Services,504,Equipment,5023,Revenue,CATERING.FOOD & BEVERAGES
29-JUN-2021,7011654,2.49,R MANNERS & SONS LTD,013498,Commissioning & Asset Management,Children's & Education Services,103,Supplies and Services,504,Equipment,5023,Revenue,CATERING.FOOD & BEVERAGES
29-JUN-2021,7011654,2.49,R MANNERS & SONS LTD,013498,Commissioning & Asset Management,Children's & Education Services,103,Supplies and Services,504,Equipment,5023,Revenue,CATERING.FOOD & BEVERAGES
29-JUN-2021,7011654,2.49,R MANNERS & SONS LTD,013498,Commissioning & Asset Management,Children's & Education Services,103,Supplies and Services,504,Equipment,5023,Revenue,CATERING.FOOD & BEVERAGES
29-JUN-2021,7011654,2.49,R MANNERS & SONS LTD,013498,Commissioning & Asset Management,Children's & Education Services,103,Supplies and Services,504,Equipment,5023,Revenue,CATERING.FOOD & BEVERAGES
29-JUN-2021,7011654,2.49,R MANNERS & SONS LTD,013498,Commissioning & Asset Management,Children's & Education Services,103,Supplies and Services,504,Equipment,5023,Revenue,CATERING.FOOD & BEVERAGES
29-JUN-2021,7011654,2.49,R MANNERS & SONS LTD,013498,Commissioning & Asset Management,Children's & Education Services,103,Supplies and Services,504,Equipment,5023,Revenue,CATERING.FOOD & BEVERAGES
29-JUN-2021,7011654,2.49,R MANNERS & SONS LTD,013498,Commissioning & Asset Management,Children's & Education Services,103,Supplies and Services,504,Equipment,5023,Revenue,CATERING.FOOD & BEVERAGES
29-JUN-2021,7011654,2.49,R MANNERS & SONS LTD,013498,Commissioning & Asset Management,Children's & Education Services,103,Supplies and Services,504,Equipment,5023,Revenue,CATERING.FOOD & BEVERAGES
29-JUN-2021,7011654,2.49,R MANNERS & SONS LTD,013498,Commissioning & Asset Management,Children's & Education Services,103,Supplies and Services,504,Equipment,5023,Revenue,CATERING.FOOD & BEVERAGES
29-JUN-2021,7011654,2.49,R MANNERS & SONS LTD,013498,Commissioning & Asset Management,Children's & Education Services,103,Supplies and Services,504,Equipment,5023,Revenue,CATERING.FOOD & BEVERAGES
29-JUN-2021,7011654,2.75,R MANNERS & SONS LTD,013498,Commissioning & Asset Management,Children's & Education Services,103,Supplies and Services,504,Equipment,5023,Revenue,CATERING.FOOD & BEVERAGES
29-JUN-2021,7011654,2.75,R MANNERS & SONS LTD,013498,Commissioning & Asset Management,Children's & Education Services,103,Supplies and Services,504,Equipment,5023,Revenue,CATERING.FOOD & BEVERAGES
29-JUN-2021,7011654,2.75,R MANNERS & SONS LTD,013498,Commissioning & Asset Management,Children's & Education Services,103,Supplies and Services,504,Equipment,5023,Revenue,CATERING.FOOD & BEVERAGES
29-JUN-2021,7011654,2.75,R MANNERS & SONS LTD,013498,Commissioning & Asset Management,Children's & Education Services,103,Supplies and Services,504,Equipment,5023,Revenue,CATERING.FOOD & BEVERAGES
29-JUN-2021,7011654,2.75,R MANNERS & SONS LTD,013498,Commissioning & Asset Management,Children's & Education Services,103,Supplies and Services,504,Equipment,5023,Revenue,CATERING.FOOD & BEVERAGES
29-JUN-2021,7011654,2.86,R MANNERS & SONS LTD,013498,Commissioning & Asset Management,Children's & Education Services,103,Supplies and Services,504,Equipment,5023,Revenue,CATERING.FOOD & BEVERAGES
29-JUN-2021,7011654,3.7,R MANNERS & SONS LTD,013498,Commissioning & Asset Management,Children's & Education Services,103,Supplies and Services,504,Equipment,5023,Revenue,CATERING.FOOD & BEVERAGES
29-JUN-2021,7011654,3.7,R MANNERS & SONS LTD,013498,Commissioning & Asset Management,Children's & Education Services,103,Supplies and Services,504,Equipment,5023,Revenue,CATERING.FOOD & BEVERAGES
29-JUN-2021,7011654,3.7,R MANNERS & SONS LTD,013498,Commissioning & Asset Management,Children's & Education Services,103,Supplies and Services,504,Equipment,5023,Revenue,CATERING.FOOD & BEVERAGES
29-JUN-2021,7011654,3.7,R MANNERS & SONS LTD,013498,Commissioning & Asset Management,Children's & Education Services,103,Supplies and Services,504,Equipment,5023,Revenue,CATERING.FOOD & BEVERAGES
29-JUN-2021,7011654,3.7,R MANNERS & SONS LTD,013498,Commissioning & Asset Management,Children's & Education Services,103,Supplies and Services,504,Equipment,5023,Revenue,CATERING.FOOD & BEVERAGES
29-JUN-2021,7011654,3.7,R MANNERS & SONS LTD,013498,Commissioning & Asset Management,Children's & Education Services,103,Supplies and Services,504,Equipment,5023,Revenue,CATERING.FOOD & BEVERAGES
29-JUN-2021,7011654,4.41,R MANNERS & SONS LTD,013498,Commissioning & Asset Management,Children's & Education Services,103,Supplies and Services,504,Equipment,5023,Revenue,CATERING.FOOD & BEVERAGES
29-JUN-2021,7011654,4.98,R MANNERS & SONS LTD,013498,Commissioning & Asset Management,Children's & Education Services,103,Supplies and Services,504,Equipment,5023,Revenue,CATERING.FOOD & BEVERAGES
29-JUN-2021,7011654,4.98,R MANNERS & SONS LTD,013498,Commissioning & Asset Management,Children's & Education Services,103,Supplies and Services,504,Equipment,5023,Revenue,CATERING.FOOD & BEVERAGES
29-JUN-2021,7011654,4.98,R MANNERS & SONS LTD,013498,Commissioning & Asset Management,Children's & Education Services,103,Supplies and Services,504,Equipment,5023,Revenue,CATERING.FOOD & BEVERAGES
29-JUN-2021,7011654,4.98,R MANNERS & SONS LTD,013498,Commissioning & Asset Management,Children's & Education Services,103,Supplies and Services,504,Equipment,5023,Revenue,CATERING.FOOD & BEVERAGES
29-JUN-2021,7011654,4.98,R MANNERS & SONS LTD,013498,Commissioning & Asset Management,Children's & Education Services,103,Supplies and Services,504,Equipment,5023,Revenue,CATERING.FOOD & BEVERAGES
29-JUN-2021,7011654,4.98,R MANNERS & SONS LTD,013498,Commissioning & Asset Management,Children's & Education Services,103,Supplies and Services,504,Equipment,5023,Revenue,CATERING.FOOD & BEVERAGES
29-JUN-2021,7011654,4.98,R MANNERS & SONS LTD,013498,Commissioning & Asset Management,Children's & Education Services,103,Supplies and Services,504,Equipment,5023,Revenue,CATERING.FOOD & BEVERAGES
29-JUN-2021,7011654,4.98,R MANNERS & SONS LTD,013498,Commissioning & Asset Management,Children's & Education Services,103,Supplies and Services,504,Equipment,5023,Revenue,CATERING.FOOD & BEVERAGES
29-JUN-2021,7011654,4.98,R MANNERS & SONS LTD,013498,Commissioning & Asset Management,Children's & Education Services,103,Supplies and Services,504,Equipment,5023,Revenue,CATERING.FOOD & BEVERAGES
29-JUN-2021,7011654,4.98,R MANNERS & SONS LTD,013498,Commissioning & Asset Management,Children's & Education Services,103,Supplies and Services,504,Equipment,5023,Revenue,CATERING.FOOD & BEVERAGES
29-JUN-2021,7011654,5.51,R MANNERS & SONS LTD,013498,Commissioning & Asset Management,Children's & Education Services,103,Supplies and Services,504,Equipment,5023,Revenue,CATERING.FOOD & BEVERAGES
29-JUN-2021,7011654,5.72,R MANNERS & SONS LTD,013498,Commissioning & Asset Management,Children's & Education Services,103,Supplies and Services,504,Equipment,5023,Revenue,CATERING.FOOD & BEVERAGES
29-JUN-2021,7011654,5.94,R MANNERS & SONS LTD,013498,Commissioning & Asset Management,Children's & Education Services,103,Supplies and Services,504,Equipment,5023,Revenue,CATERING.FOOD & BEVERAGES
29-JUN-2021,7011654,6.3,R MANNERS & SONS LTD,013498,Commissioning & Asset Management,Children's & Education Services,103,Supplies and Services,504,Equipment,5023,Revenue,CATERING.FOOD & BEVERAGES
29-JUN-2021,7011654,6.3,R MANNERS & SONS LTD,013498,Commissioning & Asset Management,Children's & Education Services,103,Supplies and Services,504,Equipment,5023,Revenue,CATERING.FOOD & BEVERAGES
29-JUN-2021,7011654,6.72,R MANNERS & SONS LTD,013498,Commissioning & Asset Management,Children's & Education Services,103,Supplies and Services,504,Equipment,5023,Revenue,CATERING.FOOD & BEVERAGES
29-JUN-2021,7011654,7.4,R MANNERS & SONS LTD,013498,Commissioning & Asset Management,Children's & Education Services,103,Supplies and Services,504,Equipment,5023,Revenue,CATERING.FOOD & BEVERAGES
29-JUN-2021,7011654,7.4,R MANNERS & SONS LTD,013498,Commissioning & Asset Management,Children's & Education Services,103,Supplies and Services,504,Equipment,5023,Revenue,CATERING.FOOD & BEVERAGES
29-JUN-2021,7011654,7.4,R MANNERS & SONS LTD,013498,Commissioning & Asset Management,Children's & Education Services,103,Supplies and Services,504,Equipment,5023,Revenue,CATERING.FOOD & BEVERAGES
29-JUN-2021,7011654,7.4,R MANNERS & SONS LTD,013498,Commissioning & Asset Management,Children's & Education Services,103,Supplies and Services,504,Equipment,5023,Revenue,CATERING.FOOD & BEVERAGES
29-JUN-2021,7011654,7.4,R MANNERS & SONS LTD,013498,Commissioning & Asset Management,Children's & Education Services,103,Supplies and Services,504,Equipment,5023,Revenue,CATERING.FOOD & BEVERAGES
29-JUN-2021,7011654,7.4,R MANNERS & SONS LTD,013498,Commissioning & Asset Management,Children's & Education Services,103,Supplies and Services,504,Equipment,5023,Revenue,CATERING.FOOD & BEVERAGES
29-JUN-2021,7011654,7.4,R MANNERS & SONS LTD,013498,Commissioning & Asset Management,Children's & Education Services,103,Supplies and Services,504,Equipment,5023,Revenue,CATERING.FOOD & BEVERAGES
29-JUN-2021,7011654,7.4,R MANNERS & SONS LTD,013498,Commissioning & Asset Management,Children's & Education Services,103,Supplies and Services,504,Equipment,5023,Revenue,CATERING.FOOD & BEVERAGES
29-JUN-2021,7011654,7.4,R MANNERS & SONS LTD,013498,Commissioning & Asset Management,Children's & Education Services,103,Supplies and Services,504,Equipment,5023,Revenue,CATERING.FOOD & BEVERAGES
29-JUN-2021,7011654,7.4,R MANNERS & SONS LTD,013498,Commissioning & Asset Management,Children's & Education Services,103,Supplies and Services,504,Equipment,5023,Revenue,CATERING.FOOD & BEVERAGES
29-JUN-2021,7011654,7.4,R MANNERS & SONS LTD,013498,Commissioning & Asset Management,Children's & Education Services,103,Supplies and Services,504,Equipment,5023,Revenue,CATERING.FOOD & BEVERAGES
29-JUN-2021,7011654,7.4,R MANNERS & SONS LTD,013498,Commissioning & Asset Management,Children's & Education Services,103,Supplies and Services,504,Equipment,5023,Revenue,CATERING.FOOD & BEVERAGES
29-JUN-2021,7011654,7.4,R MANNERS & SONS LTD,013498,Commissioning & Asset Management,Children's & Education Services,103,Supplies and Services,504,Equipment,5023,Revenue,CATERING.FOOD & BEVERAGES
29-JUN-2021,7011654,7.4,R MANNERS & SONS LTD,013498,Commissioning & Asset Management,Children's & Education Services,103,Supplies and Services,504,Equipment,5023,Revenue,CATERING.FOOD & BEVERAGES
29-JUN-2021,7011654,7.4,R MANNERS & SONS LTD,013498,Commissioning & Asset Management,Children's & Education Services,103,Supplies and Services,504,Equipment,5023,Revenue,CATERING.FOOD & BEVERAGES
29-JUN-2021,7011654,7.4,R MANNERS & SONS LTD,013498,Commissioning & Asset Management,Children's & Education Services,103,Supplies and Services,504,Equipment,5023,Revenue,CATERING.FOOD & BEVERAGES
29-JUN-2021,7011654,7.4,R MANNERS & SONS LTD,013498,Commissioning & Asset Management,Children's & Education Services,103,Supplies and Services,504,Equipment,5023,Revenue,CATERING.FOOD & BEVERAGES
29-JUN-2021,7011654,7.4,R MANNERS & SONS LTD,013498,Commissioning & Asset Management,Children's & Education Services,103,Supplies and Services,504,Equipment,5023,Revenue,CATERING.FOOD & BEVERAGES
29-JUN-2021,7011654,7.4,R MANNERS & SONS LTD,013498,Commissioning & Asset Management,Children's & Education Services,103,Supplies and Services,504,Equipment,5023,Revenue,CATERING.FOOD & BEVERAGES
29-JUN-2021,7011654,7.4,R MANNERS & SONS LTD,013498,Commissioning & Asset Management,Children's & Education Services,103,Supplies and Services,504,Equipment,5023,Revenue,CATERING.FOOD & BEVERAGES
29-JUN-2021,7011654,7.4,R MANNERS & SONS LTD,013498,Commissioning & Asset Management,Children's & Education Services,103,Supplies and Services,504,Equipment,5023,Revenue,CATERING.FOOD & BEVERAGES
29-JUN-2021,7011654,7.4,R MANNERS & SONS LTD,013498,Commissioning & Asset Management,Children's & Education Services,103,Supplies and Services,504,Equipment,5023,Revenue,CATERING.FOOD & BEVERAGES
29-JUN-2021,7011654,8.03,R MANNERS & SONS LTD,013498,Commissioning & Asset Management,Children's & Education Services,103,Supplies and Services,504,Equipment,5023,Revenue,CATERING.FOOD & BEVERAGES
29-JUN-2021,7011654,9.3,R MANNERS & SONS LTD,013498,Commissioning & Asset Management,Children's & Education Services,103,Supplies and Services,504,Equipment,5023,Revenue,CATERING.FOOD & BEVERAGES
29-JUN-2021,7011654,9.96,R MANNERS & SONS LTD,013498,Commissioning & Asset Management,Children's & Education Services,103,Supplies and Services,504,Equipment,5023,Revenue,CATERING.FOOD & BEVERAGES
29-JUN-2021,7011654,9.96,R MANNERS & SONS LTD,013498,Commissioning & Asset Management,Children's & Education Services,103,Supplies and Services,504,Equipment,5023,Revenue,CATERING.FOOD & BEVERAGES
29-JUN-2021,7011654,9.96,R MANNERS & SONS LTD,013498,Commissioning & Asset Management,Children's & Education Services,103,Supplies and Services,504,Equipment,5023,Revenue,CATERING.FOOD & BEVERAGES
29-JUN-2021,7011654,9.96,R MANNERS & SONS LTD,013498,Commissioning & Asset Management,Children's & Education Services,103,Supplies and Services,504,Equipment,5023,Revenue,CATERING.FOOD & BEVERAGES
29-JUN-2021,7011654,9.96,R MANNERS & SONS LTD,013498,Commissioning & Asset Management,Children's & Education Services,103,Supplies and Services,504,Equipment,5023,Revenue,CATERING.FOOD & BEVERAGES
29-JUN-2021,7011654,9.96,R MANNERS & SONS LTD,013498,Commissioning & Asset Management,Children's & Education Services,103,Supplies and Services,504,Equipment,5023,Revenue,CATERING.FOOD & BEVERAGES
29-JUN-2021,7011654,9.96,R MANNERS & SONS LTD,013498,Commissioning & Asset Management,Children's & Education Services,103,Supplies and Services,504,Equipment,5023,Revenue,CATERING.FOOD & BEVERAGES
29-JUN-2021,7011654,9.96,R MANNERS & SONS LTD,013498,Commissioning & Asset Management,Children's & Education Services,103,Supplies and Services,504,Equipment,5023,Revenue,CATERING.FOOD & BEVERAGES
29-JUN-2021,7011654,9.96,R MANNERS & SONS LTD,013498,Commissioning & Asset Management,Children's & Education Services,103,Supplies and Services,504,Equipment,5023,Revenue,CATERING.FOOD & BEVERAGES
29-JUN-2021,7011654,9.96,R MANNERS & SONS LTD,013498,Commissioning & Asset Management,Children's & Education Services,103,Supplies and Services,504,Equipment,5023,Revenue,CATERING.FOOD & BEVERAGES
29-JUN-2021,7011654,9.96,R MANNERS & SONS LTD,013498,Commissioning & Asset Management,Children's & Education Services,103,Supplies and Services,504,Equipment,5023,Revenue,CATERING.FOOD & BEVERAGES
29-JUN-2021,7011654,9.96,R MANNERS & SONS LTD,013498,Commissioning & Asset Management,Children's & Education Services,103,Supplies and Services,504,Equipment,5023,Revenue,CATERING.FOOD & BEVERAGES
29-JUN-2021,7011654,9.96,R MANNERS & SONS LTD,013498,Commissioning & Asset Management,Children's & Education Services,103,Supplies and Services,504,Equipment,5023,Revenue,CATERING.FOOD & BEVERAGES
29-JUN-2021,7011654,9.96,R MANNERS & SONS LTD,013498,Commissioning & Asset Management,Children's & Education Services,103,Supplies and Services,504,Equipment,5023,Revenue,CATERING.FOOD & BEVERAGES
29-JUN-2021,7011654,9.96,R MANNERS & SONS LTD,013498,Commissioning & Asset Management,Children's & Education Services,103,Supplies and Services,504,Equipment,5023,Revenue,CATERING.FOOD & BEVERAGES
29-JUN-2021,7011654,9.96,R MANNERS & SONS LTD,013498,Commissioning & Asset Management,Children's & Education Services,103,Supplies and Services,504,Equipment,5023,Revenue,CATERING.FOOD & BEVERAGES
29-JUN-2021,7011654,9.96,R MANNERS & SONS LTD,013498,Commissioning & Asset Management,Children's & Education Services,103,Supplies and Services,504,Equipment,5023,Revenue,CATERING.FOOD & BEVERAGES
29-JUN-2021,7011654,10.08,R MANNERS & SONS LTD,013498,Commissioning & Asset Management,Children's & Education Services,103,Supplies and Services,504,Equipment,5023,Revenue,CATERING.FOOD & BEVERAGES
29-JUN-2021,7011654,10.08,R MANNERS & SONS LTD,013498,Commissioning & Asset Management,Children's & Education Services,103,Supplies and Services,504,Equipment,5023,Revenue,CATERING.FOOD & BEVERAGES
29-JUN-2021,7011654,10.08,R MANNERS & SONS LTD,013498,Commissioning & Asset Management,Children's & Education Services,103,Supplies and Services,504,Equipment,5023,Revenue,CATERING.FOOD & BEVERAGES
29-JUN-2021,7011654,10.08,R MANNERS & SONS LTD,013498,Commissioning & Asset Management,Children's & Education Services,103,Supplies and Services,504,Equipment,5023,Revenue,CATERING.FOOD & BEVERAGES
29-JUN-2021,7011654,10.08,R MANNERS & SONS LTD,013498,Commissioning & Asset Management,Children's & Education Services,103,Supplies and Services,504,Equipment,5023,Revenue,CATERING.FOOD & BEVERAGES
29-JUN-2021,7011654,10.16,R MANNERS & SONS LTD,013498,Commissioning & Asset Management,Children's & Education Services,103,Supplies and Services,504,Equipment,5023,Revenue,CATERING.FOOD & BEVERAGES
29-JUN-2021,7011654,11,R MANNERS & SONS LTD,013498,Commissioning & Asset Management,Children's & Education Services,103,Supplies and Services,504,Equipment,5023,Revenue,CATERING.FOOD & BEVERAGES
29-JUN-2021,7011654,11,R MANNERS & SONS LTD,013498,Commissioning & Asset Management,Children's & Education Services,103,Supplies and Services,504,Equipment,5023,Revenue,CATERING.FOOD & BEVERAGES
29-JUN-2021,7011654,11,R MANNERS & SONS LTD,013498,Commissioning & Asset Management,Children's & Education Services,103,Supplies and Services,504,Equipment,5023,Revenue,CATERING.FOOD & BEVERAGES
29-JUN-2021,7011654,11,R MANNERS & SONS LTD,013498,Commissioning & Asset Management,Children's & Education Services,103,Supplies and Services,504,Equipment,5023,Revenue,CATERING.FOOD & BEVERAGES
29-JUN-2021,7011654,11,R MANNERS & SONS LTD,013498,Commissioning & Asset Management,Children's & Education Services,103,Supplies and Services,504,Equipment,5023,Revenue,CATERING.FOOD & BEVERAGES
29-JUN-2021,7011654,11,R MANNERS & SONS LTD,013498,Commissioning & Asset Management,Children's & Education Services,103,Supplies and Services,504,Equipment,5023,Revenue,CATERING.FOOD & BEVERAGES
29-JUN-2021,7011654,11.02,R MANNERS & SONS LTD,013498,Commissioning & Asset Management,Children's & Education Services,103,Supplies and Services,504,Equipment,5023,Revenue,CATERING.FOOD & BEVERAGES
29-JUN-2021,7011654,11.02,R MANNERS & SONS LTD,013498,Commissioning & Asset Management,Children's & Education Services,103,Supplies and Services,504,Equipment,5023,Revenue,CATERING.FOOD & BEVERAGES
29-JUN-2021,7011654,11.02,R MANNERS & SONS LTD,013498,Commissioning & Asset Management,Children's & Education Services,103,Supplies and Services,504,Equipment,5023,Revenue,CATERING.FOOD & BEVERAGES
29-JUN-2021,7011654,11.03,R MANNERS & SONS LTD,013498,Commissioning & Asset Management,Children's & Education Services,103,Supplies and Services,504,Equipment,5023,Revenue,CATERING.FOOD & BEVERAGES
29-JUN-2021,7011654,11.03,R MANNERS & SONS LTD,013498,Commissioning & Asset Management,Children's & Education Services,103,Supplies and Services,504,Equipment,5023,Revenue,CATERING.FOOD & BEVERAGES
29-JUN-2021,7011654,11.03,R MANNERS & SONS LTD,013498,Commissioning & Asset Management,Children's & Education Services,103,Supplies and Services,504,Equipment,5023,Revenue,CATERING.FOOD & BEVERAGES
29-JUN-2021,7011654,11.03,R MANNERS & SONS LTD,013498,Commissioning & Asset Management,Children's & Education Services,103,Supplies and Services,504,Equipment,5023,Revenue,CATERING.FOOD & BEVERAGES
29-JUN-2021,7011654,11.1,R MANNERS & SONS LTD,013498,Commissioning & Asset Management,Children's & Education Services,103,Supplies and Services,504,Equipment,5023,Revenue,CATERING.FOOD & BEVERAGES
29-JUN-2021,7011654,11.1,R MANNERS & SONS LTD,013498,Commissioning & Asset Management,Children's & Education Services,103,Supplies and Services,504,Equipment,5023,Revenue,CATERING.FOOD & BEVERAGES
29-JUN-2021,7011654,11.1,R MANNERS & SONS LTD,013498,Commissioning & Asset Management,Children's & Education Services,103,Supplies and Services,504,Equipment,5023,Revenue,CATERING.FOOD & BEVERAGES
29-JUN-2021,7011654,11.1,R MANNERS & SONS LTD,013498,Commissioning & Asset Management,Children's & Education Services,103,Supplies and Services,504,Equipment,5023,Revenue,CATERING.FOOD & BEVERAGES
29-JUN-2021,7011654,11.1,R MANNERS & SONS LTD,013498,Commissioning & Asset Management,Children's & Education Services,103,Supplies and Services,504,Equipment,5023,Revenue,CATERING.FOOD & BEVERAGES
29-JUN-2021,7011654,11.1,R MANNERS & SONS LTD,013498,Commissioning & Asset Management,Children's & Education Services,103,Supplies and Services,504,Equipment,5023,Revenue,CATERING.FOOD & BEVERAGES
29-JUN-2021,7011654,11.1,R MANNERS & SONS LTD,013498,Commissioning & Asset Management,Children's & Education Services,103,Supplies and Services,504,Equipment,5023,Revenue,CATERING.FOOD & BEVERAGES
29-JUN-2021,7011654,11.1,R MANNERS & SONS LTD,013498,Commissioning & Asset Management,Children's & Education Services,103,Supplies and Services,504,Equipment,5023,Revenue,CATERING.FOOD & BEVERAGES
